Ref No,Fund Type,Dept,Cost Centre Description    ,Description    ,Creditor Name    ,GL Code Net Amount,Payment date        ,,,,,,,,,,,,,,,,,,,,,,,,,,,,,,,,,,,,,Creditor Address,Creditor Code,Cost Centre    ,SortKey,Ledger Code,Invoice Number    ,Voucher No,Gross Amount,Level 3
2,Revenue,CAHD,Supporting People Programme,Grants to Voluntary Bodies,1625 Independent People,17102.16, 01-Nov-2016,,,,,,,,,,,,,,,,,,,,,,,,,,,,,,,,,,,,,1142087,"Kingsley Hall, 58-59 Old Market Street, Bristol, , BS2 0ER",RA006,1CAHD,RA006/5673/SP201,2016/17 Contract,SP495799,17102.16,CAHA
3,Revenue,CAHD,Home Care - Elderly - South,Day Care / Social Activities,3 Trees Community Support Ltd,91.60, 01-Nov-2016,,,,,,,,,,,,,,,,,,,,,,,,,,,,,,,,,,,,,1139679,"56 A Greystoke Avenue, Westbury on Trym, Bristol, , BS10 6AZ",IF364,1CAHD,IF364/6704,1139679P201628,SP495928,10328.80,CAHA
4,Revenue,CAHD,Home Care - Elderly - North,Day Care / Social Activities,3 Trees Community Support Ltd,1351.10, 01-Nov-2016,,,,,,,,,,,,,,,,,,,,,,,,,,,,,,,,,,,,,1139679,"56 A Greystoke Avenue, Westbury on Trym, Bristol, , BS10 6AZ",IF365,1CAHD,IF365/6704,1139679P201628,SP495928,10328.80,CAHA
5,Revenue,CAHD,Home Care - Elderly - North,Other Small Contracts,3 Trees Community Support Ltd,696.16, 01-Nov-2016,,,,,,,,,,,,,,,,,,,,,,,,,,,,,,,,,,,,,1139679,"56 A Greystoke Avenue, Westbury on Trym, Bristol, , BS10 6AZ",IF365,1CAHD,IF365/6705,1139679P201628,SP495928,10328.80,CAHA
6,Revenue,CAHD,Home Care - Elderly - North,Supported Living,3 Trees Community Support Ltd,8189.94, 01-Nov-2016,,,,,,,,,,,,,,,,,,,,,,,,,,,,,,,,,,,,,1139679,"56 A Greystoke Avenue, Westbury on Trym, Bristol, , BS10 6AZ",IF365,1CAHD,IF365/6707,1139679P201628,SP495928,10328.80,CAHA
7,Revenue,CAHD,Training - Adult Services,Training Expenses,Acorn Health & Safety Limited,465.00, 01-Nov-2016,,,,,,,,,,,,,,,,,,,,,,,,,,,,,,,,,,,,,0594817,"Tower Lane Business Park, Tower Lane, Warmley, South Gloucestershire, BS30 8XT",KW203,1CAHD,KW203/2831,INV1285,A0300700,558.00,CAHA
8,Revenue,CAHD,Home Care - Elderly - South,Other Small Contracts,Agincare UK Limited,836.74, 01-Nov-2016,,,,,,,,,,,,,,,,,,,,,,,,,,,,,,,,,,,,,1133223,"Admiralty Buildings Castletown, Portland, Dorset, , DT5 1BB",IF364,1CAHD,IF364/6705,1133223P201626,SP495926,2037.11,CAHA
9,Revenue,CAHD,Home Care - Elderly - North,Other Small Contracts,Agincare UK Limited,1200.37, 01-Nov-2016,,,,,,,,,,,,,,,,,,,,,,,,,,,,,,,,,,,,,1133223,"Admiralty Buildings Castletown, Portland, Dorset, , DT5 1BB",IF365,1CAHD,IF365/6705,1133223P201626,SP495926,2037.11,CAHA
10,Revenue,CAHD,Home Care - Elderly - South,Other Small Contracts,Agincare UK Limited,864.11, 01-Nov-2016,,,,,,,,,,,,,,,,,,,,,,,,,,,,,,,,,,,,,1133223,"Admiralty Buildings Castletown, Portland, Dorset, , DT5 1BB",IF364,1CAHD,IF364/6705,1133223P201627,SP495927,2044.93,CAHA
11,Revenue,CAHD,Home Care - Elderly - North,Other Small Contracts,Agincare UK Limited,1180.82, 01-Nov-2016,,,,,,,,,,,,,,,,,,,,,,,,,,,,,,,,,,,,,1133223,"Admiralty Buildings Castletown, Portland, Dorset, , DT5 1BB",IF365,1CAHD,IF365/6705,1133223P201627,SP495927,2044.93,CAHA
12,Revenue,CAHD,Supporting People Programme,Grants to Voluntary Bodies,Aspects and Milestones Trust,3298.58, 01-Nov-2016,,,,,,,,,,,,,,,,,,,,,,,,,,,,,,,,,,,,,0683294,"Unit 10, Eclipse Office Park, High Street, Staple Hill, Bristol, BS16 5EL",RA006,1CAHD,RA006/5673/SP122,2016/17 Contract,SP495791,3298.58,CAHA
13,Revenue,CAHD,Supporting People Programme,Grants to Voluntary Bodies,Aspects and Milestones Trust,1653.75, 01-Nov-2016,,,,,,,,,,,,,,,,,,,,,,,,,,,,,,,,,,,,,0683294,"Unit 10, Eclipse Office Park, High Street, Staple Hill, Bristol, BS16 5EL",RA006,1CAHD,RA006/5673/SP122,2016/17 Contract,SP495792,1653.75,CAHA
14,Revenue,CAHD,Supporting People Programme,Grants to Voluntary Bodies,Aspects and Milestones Trust,2014.33, 01-Nov-2016,,,,,,,,,,,,,,,,,,,,,,,,,,,,,,,,,,,,,0683294,"Unit 10, Eclipse Office Park, High Street, Staple Hill, Bristol, BS16 5EL",RA006,1CAHD,RA006/5673,2016/17 Contract,SP495793,2014.33,CAHA
15,Revenue,CAHD,Home Care - Elderly - South,Other Small Contracts,Bluebird Care (South Gloucestershire),597.38, 01-Nov-2016,,,,,,,,,,,,,,,,,,,,,,,,,,,,,,,,,,,,,1224235,"1st Floor, 82 Broad Street, Chipping Sodbury, South Gloucestershire, BS37 6AG",IF364,1CAHD,IF364/6705,1224235P201626,SP495930,2544.80,CAHA
16,Revenue,CAHD,Home Care - Elderly - North,Other Small Contracts,Bluebird Care (South Gloucestershire),1947.42, 01-Nov-2016,,,,,,,,,,,,,,,,,,,,,,,,,,,,,,,,,,,,,1224235,"1st Floor, 82 Broad Street, Chipping Sodbury, South Gloucestershire, BS37 6AG",IF365,1CAHD,IF365/6705,1224235P201626,SP495930,2544.80,CAHA
17,Revenue,CAHD,Home Care - Elderly - South,Other Small Contracts,Bluebird Care (South Gloucestershire),587.34, 01-Nov-2016,,,,,,,,,,,,,,,,,,,,,,,,,,,,,,,,,,,,,1224235,"1st Floor, 82 Broad Street, Chipping Sodbury, South Gloucestershire, BS37 6AG",IF364,1CAHD,IF364/6705,1224235P201627,SP495931,2151.60,CAHA
18,Revenue,CAHD,Home Care - Elderly - North,Other Small Contracts,Bluebird Care (South Gloucestershire),1564.26, 01-Nov-2016,,,,,,,,,,,,,,,,,,,,,,,,,,,,,,,,,,,,,1224235,"1st Floor, 82 Broad Street, Chipping Sodbury, South Gloucestershire, BS37 6AG",IF365,1CAHD,IF365/6705,1224235P201627,SP495931,2151.60,CAHA
19,Revenue,CAHD,Supporting People Programme,Grants to Voluntary Bodies,Bristol Missing Link,1464.83, 01-Nov-2016,,,,,,,,,,,,,,,,,,,,,,,,,,,,,,,,,,,,,0671811,"5 Queen Square, Bristol, , , BS1 4JQ",RA006,1CAHD,RA006/5673/SP131,2016/17 Contract,SP495816,1464.83,CAHA
20,Revenue,CAHD,Supporting People Programme,Grants to Voluntary Bodies,Bromford Housing Group,14395.08, 01-Nov-2016,,,,,,,,,,,,,,,,,,,,,,,,,,,,,,,,,,,,,0671921,"1 Exchange Court, Brabourne Avenue, Wolverhampton Business park, Wolverhampton, WV10 6AU",RA006,1CAHD,RA006/5673/SP201,2016/17 Contract,SP495806,14395.08,CAHA
21,Revenue,CAHD,Pathway 2 - (Interim Beds),Permanent Nursing,Brunelcare,15407.00, 01-Nov-2016,,,,,,,,,,,,,,,,,,,,,,,,,,,,,,,,,,,,,0620134,"Deerhurst Nursing Home, Deerhurst, Soundwell, South Gloucestershire, BS15 1XH",IE901,1CAHD,IE901/6710,ORP20856,RP028861,15407.00,CAHA
22,Revenue,CAHD,Home Care - Elderly - South,Other Small Contracts,Care Horizons Limited,346.56, 01-Nov-2016,,,,,,,,,,,,,,,,,,,,,,,,,,,,,,,,,,,,,0804798,"130 Aztec West, Almondsbury, Bristol, , BS32 4UB",IF364,1CAHD,IF364/6705,0804798P201628,SP495924,1149.12,CAHA
23,Revenue,CAHD,Home Care - Elderly - North,Day Care / Social Activities,Care Horizons Limited,538.08, 01-Nov-2016,,,,,,,,,,,,,,,,,,,,,,,,,,,,,,,,,,,,,0804798,"130 Aztec West, Almondsbury, Bristol, , BS32 4UB",IF365,1CAHD,IF365/6704,0804798P201628,SP495924,1149.12,CAHA
24,Revenue,CAHD,Home Care - Elderly - North,Other Small Contracts,Care Horizons Limited,264.48, 01-Nov-2016,,,,,,,,,,,,,,,,,,,,,,,,,,,,,,,,,,,,,0804798,"130 Aztec West, Almondsbury, Bristol, , BS32 4UB",IF365,1CAHD,IF365/6705,0804798P201628,SP495924,1149.12,CAHA
25,Revenue,CAHD,Social Lettings Agency,Fees - General,Individual,10.53, 01-Nov-2016,,,,,,,,,,,,,,,,,,,,,,,,,,,,,,,,,,,,,1213446,"58 Claverham Road, Fishponds, Bristol, , BS16 2HS",RC003,1CAHD,RC003/5700/SG0036,3000454,PP009404,595.11,CAHA
26,Revenue,CAHD,Social Lettings Agency,Fees & Charges Income - General,Individual,595.11, 01-Nov-2016,,,,,,,,,,,,,,,,,,,,,,,,,,,,,,,,,,,,,1213446,"58 Claverham Road, Fishponds, Bristol, , BS16 2HS",RC003,1CAHD,RC003/9400/SG0036,3000454,PP009404,595.11,CAHA
27,Revenue,CAHD,Supporting People Programme,Grants to Voluntary Bodies,Elim Housing Association Limited,5139.16, 01-Nov-2016,,,,,,,,,,,,,,,,,,,,,,,,,,,,,,,,,,,,,1008009,"Units 3 & 4 Pinkers Court, Briarlands Office Park, Gloucester Road, Rudgeway , Bristol, BS35 3QH",RA006,1CAHD,RA006/5673/1,2016/17 Contract,SP495803,5139.16,CAHA
28,Revenue,CAHD,Supporting People Programme,Grants to Voluntary Bodies,Freeways Trust Limited,7530.70, 01-Nov-2016,,,,,,,,,,,,,,,,,,,,,,,,,,,,,,,,,,,,,0466291,"Kenneth House, 487 Gloucester Road, Horfield, Bristol, BS7 8UA",RA006,1CAHD,RA006/5673/1,2016/17 Contract,SP495809,7530.70,CAHA
29,Revenue,CAHD,Supporting People Programme,Grants to Voluntary Bodies,Habinteg Housing Association,666.00, 01-Nov-2016,,,,,,,,,,,,,,,,,,,,,,,,,,,,,,,,,,,,,1061829,"Holyer House, 20-21 Red Lion Court, London, , EC4A 3EB",RA006,1CAHD,RA006/5673/SP021,2016/17 Contract,SP495817,666.00,CAHA
30,Revenue,CAHD,Supporting People Programme,Grants to Voluntary Bodies,Hanover Housing Association,996.16, 01-Nov-2016,,,,,,,,,,,,,,,,,,,,,,,,,,,,,,,,,,,,,0671882,"Hanover, Nelson House, Alington Road, Eynesbury, St Neots, PE19 6RE",RA006,1CAHD,RA006/5673/SP071,2016/17 Contract,SP495807,996.16,CAHA
31,Revenue,CAHD,Supporting People Programme,Grants to Voluntary Bodies,Housing 21,631.50, 01-Nov-2016,,,,,,,,,,,,,,,,,,,,,,,,,,,,,,,,,,,,,1035696,"40 Vicarage Road, Edgbaston, Birmingham, , B15 3EZ",RA006,1CAHD,RA006/5673/SP071,2016/17 Contract,SP495800,631.50,CAHA
32,Revenue,CAHD,Supporting People Programme,Grants to Voluntary Bodies,Housing 21,957.66, 01-Nov-2016,,,,,,,,,,,,,,,,,,,,,,,,,,,,,,,,,,,,,1035696,"40 Vicarage Road, Edgbaston, Birmingham, , B15 3EZ",RA006,1CAHD,RA006/5673/SP071,2016/17 Contract,SP495801,957.66,CAHA
33,Revenue,CAHD,Home Care - Elderly - South,Private & Voluntary Home Care,Housing 21,25849.77, 01-Nov-2016,,,,,,,,,,,,,,,,,,,,,,,,,,,,,,,,,,,,,1035696,"40 Vicarage Road, Edgbaston, Birmingham, , B15 3EZ",IF364,1CAHD,IF364/6703,3000389a,PP009400,25849.77,CAHA
34,Revenue,CAHD,Social Lettings Agency,Fees - General,Individual,10.53, 01-Nov-2016,,,,,,,,,,,,,,,,,,,,,,,,,,,,,,,,,,,,,1228015,"3 Heath Gardens, Downend, Bristol, , BS16 6HE",RC003,1CAHD,RC003/5700/SG0020,3000493,PP009397,595.11,CAHA
35,Revenue,CAHD,Social Lettings Agency,Other Supplies & Services,Individual,595.11, 01-Nov-2016,,,,,,,,,,,,,,,,,,,,,,,,,,,,,,,,,,,,,1228015,"3 Heath Gardens, Downend, Bristol, , BS16 6HE",RC003,1CAHD,RC003/5990/SG0020,3000493,PP009397,595.11,CAHA
36,Revenue,CAHD,Supporting People Programme,Grants to Voluntary Bodies,Keyring Living Support Networks,2988.58, 01-Nov-2016,,,,,,,,,,,,,,,,,,,,,,,,,,,,,,,,,,,,,0671840,"Advance, 2 Witan Way, Witney, Oxen, OX28 6FH",RA006,1CAHD,RA006/5673/SP122,2016/17 Contract,SP495808,2988.58,CAHA
37,Revenue,CAHD,Supporting People Programme,Grants to Voluntary Bodies,Kingswood Young Homeless Project,17359.58, 01-Nov-2016,,,,,,,,,,,,,,,,,,,,,,,,,,,,,,,,,,,,,0093350,"The Treasurer, C/O 71 High Street, Kingswood, Bristol, BS15 4AD",RA006,1CAHD,RA006/5673/SP201,2016/17 Contract,SP495794,17359.58,CAHA
38,Revenue,CAHD,Supporting People Programme,Grants to Voluntary Bodies,Knightstone Housing Association Limited,2544.33, 01-Nov-2016,,,,,,,,,,,,,,,,,,,,,,,,,,,,,,,,,,,,,0170503,"Station Road, Worle, Weston Super Mare, North Somerset, BS22 0AP",RA006,1CAHD,RA006/5673/SP122,2016/17 Contract,SP495787,2544.33,CAHA
39,Revenue,CAHD,Supporting People Programme,Grants to Voluntary Bodies,Knightstone Housing Association Limited,865.25, 01-Nov-2016,,,,,,,,,,,,,,,,,,,,,,,,,,,,,,,,,,,,,0170503,"Station Road, Worle, Weston Super Mare, North Somerset, BS22 0AP",RA006,1CAHD,RA006/5673/SP071,2016/17 Contract,SP495810,865.25,CAHA
40,Revenue,CAHD,Supporting People Programme,Grants to Voluntary Bodies,Knightstone Housing Association Limited,2543.75, 01-Nov-2016,,,,,,,,,,,,,,,,,,,,,,,,,,,,,,,,,,,,,0170503,"Station Road, Worle, Weston Super Mare, North Somerset, BS22 0AP",RA006,1CAHD,RA006/5673/SP122,2016/17 Contract,SP495811,2543.75,CAHA
41,Revenue,CAHD,Supporting People Programme,Grants to Voluntary Bodies,Knightstone Housing Association Limited,1833.66, 01-Nov-2016,,,,,,,,,,,,,,,,,,,,,,,,,,,,,,,,,,,,,0170503,"Station Road, Worle, Weston Super Mare, North Somerset, BS22 0AP",RA006,1CAHD,RA006/5673/SP201,2016/17 Contract,SP495812,1833.66,CAHA
42,Revenue,CAHD,Supporting People Programme,Grants to Voluntary Bodies,Knightstone Housing Association Limited,13845.33, 01-Nov-2016,,,,,,,,,,,,,,,,,,,,,,,,,,,,,,,,,,,,,0170503,"Station Road, Worle, Weston Super Mare, North Somerset, BS22 0AP",RA006,1CAHD,RA006/5673/SP021,2016/17 Contract,SP495819,13845.33,CAHA
43,Revenue,CAHD,Supporting People Programme,Grants to Voluntary Bodies,Knightstone Housing Association Limited,8747.50, 01-Nov-2016,,,,,,,,,,,,,,,,,,,,,,,,,,,,,,,,,,,,,0170503,"Station Road, Worle, Weston Super Mare, North Somerset, BS22 0AP",RA006,1CAHD,RA006/5673/SP031,2016/17 Contract,SP495820,8747.50,CAHA
44,Revenue,CAHD,Supporting People Programme,Grants to Voluntary Bodies,Knightstone Housing Association Limited,7789.00, 01-Nov-2016,,,,,,,,,,,,,,,,,,,,,,,,,,,,,,,,,,,,,0170503,"Station Road, Worle, Weston Super Mare, North Somerset, BS22 0AP",RA006,1CAHD,RA006/5673/SP161,2016/17 Contract,SP495821,7789.00,CAHA
45,Revenue,CAHD,Supporting People Programme,Grants to Voluntary Bodies,Merlin Housing Society,14987.58, 01-Nov-2016,,,,,,,,,,,,,,,,,,,,,,,,,,,,,,,,,,,,,0908652,"Building 2 Riverside Court, Bowling Hill, Chipping Sodbury, South Gloucestershire, BS37 6JX",RA006,1CAHD,RA006/5673/SP201,2016/17 Contract,SP495788,14987.58,CAHA
46,Revenue,CAHD,Supporting People Programme,Grants to Voluntary Bodies,Merlin Housing Society,2519.33, 01-Nov-2016,,,,,,,,,,,,,,,,,,,,,,,,,,,,,,,,,,,,,0908652,"Building 2 Riverside Court, Bowling Hill, Chipping Sodbury, South Gloucestershire, BS37 6JX",RA006,1CAHD,RA006/5673/SP031,2016/17 Contract,SP495789,2519.33,CAHA
47,Revenue,CAHD,Supporting People Programme,Grants to Voluntary Bodies,Merlin Housing Society,20687.41, 01-Nov-2016,,,,,,,,,,,,,,,,,,,,,,,,,,,,,,,,,,,,,0908652,"Building 2 Riverside Court, Bowling Hill, Chipping Sodbury, South Gloucestershire, BS37 6JX",RA006,1CAHD,RA006/5673/SP073,2016/17 Contract,SP495790,20687.41,CAHA
48,Revenue,CAHD,Supporting People Programme,Grants to Voluntary Bodies,Merlin Housing Society,1067.33, 01-Nov-2016,,,,,,,,,,,,,,,,,,,,,,,,,,,,,,,,,,,,,0908652,"Building 2 Riverside Court, Bowling Hill, Chipping Sodbury, South Gloucestershire, BS37 6JX",RA006,1CAHD,RA006/5673/SP071,2016/17 Contract,SP495804,1067.33,CAHA
49,Revenue,CAHD,Home Care - Elderly - South,Supported Living,Moving On,1005.60, 01-Nov-2016,,,,,,,,,,,,,,,,,,,,,,,,,,,,,,,,,,,,,1139758,"514 Horizon, Broad Weir, Bristol, , BS1 3DJ",IF364,1CAHD,if364/6707,3036,A0302301,1005.60,CAHA
50,Revenue,CAHD,Home Care - Elderly - South,Day Care / Social Activities,Moving On,1240.24, 01-Nov-2016,,,,,,,,,,,,,,,,,,,,,,,,,,,,,,,,,,,,,1139758,"514 Horizon, Broad Weir, Bristol, , BS1 3DJ",IF364,1CAHD,IF364/6704,5023,A0302302,1240.24,CAHA
51,Revenue,CAHD,Supporting People Programme,Grants to Voluntary Bodies,Mr & Mrs Watts,1023.33, 01-Nov-2016,,,,,,,,,,,,,,,,,,,,,,,,,,,,,,,,,,,,,1028452,"Aspergers Support, The Chestnuts, High Street, Cold Ashton, SN14 8JT",RA006,1CAHD,RA006/5673/SP131,2016/17 Contract,SP495802,1023.33,CAHA
52,Revenue,CAHD,Social Lettings Agency,Fees - General,Individual,10.53, 01-Nov-2016,,,,,,,,,,,,,,,,,,,,,,,,,,,,,,,,,,,,,1236137,"Flat 2 Bluebell House, 43 Riverdale Road, Sheffield, , S10 3FZ",RC003,1CAHD,RC003/5700/SG0026,3000504,PP009391,595.11,CAHA
53,Revenue,CAHD,Social Lettings Agency,Other Supplies & Services,Individual,595.11, 01-Nov-2016,,,,,,,,,,,,,,,,,,,,,,,,,,,,,,,,,,,,,1236137,"Flat 2 Bluebell House, 43 Riverdale Road, Sheffield, , S10 3FZ",RC003,1CAHD,RC003/5990/SG0026,3000504,PP009391,595.11,CAHA
54,Revenue,CAHD,Social Lettings Agency,Fees - General,Individual,10.53, 01-Nov-2016,,,,,,,,,,,,,,,,,,,,,,,,,,,,,,,,,,,,,1236137,"Flat 2 Bluebell House, 43 Riverdale Road, Sheffield, , S10 3FZ",RC003,1CAHD,RC003/5700/SG0044,3000505,PP009392,595.11,CAHA
55,Revenue,CAHD,Social Lettings Agency,Other Supplies & Services,Individual,595.11, 01-Nov-2016,,,,,,,,,,,,,,,,,,,,,,,,,,,,,,,,,,,,,1236137,"Flat 2 Bluebell House, 43 Riverdale Road, Sheffield, , S10 3FZ",RC003,1CAHD,RC003/5990/SG0044,3000505,PP009392,595.11,CAHA
56,Revenue,CAHD,Social Lettings Agency,Fees - General,Individual,10.53, 01-Nov-2016,,,,,,,,,,,,,,,,,,,,,,,,,,,,,,,,,,,,,1236137,"Flat 2 Bluebell House, 43 Riverdale Road, Sheffield, , S10 3FZ",RC003,1CAHD,RC003/5700/SG0023,3000506,PP009393,595.11,CAHA
57,Revenue,CAHD,Social Lettings Agency,Other Supplies & Services,Individual,595.11, 01-Nov-2016,,,,,,,,,,,,,,,,,,,,,,,,,,,,,,,,,,,,,1236137,"Flat 2 Bluebell House, 43 Riverdale Road, Sheffield, , S10 3FZ",RC003,1CAHD,RC003/5990/SG0023,3000506,PP009393,595.11,CAHA
58,Revenue,CAHD,Social Lettings Agency,Fees - General,Individual,10.53, 01-Nov-2016,,,,,,,,,,,,,,,,,,,,,,,,,,,,,,,,,,,,,1236137,"Flat 2 Bluebell House, 43 Riverdale Road, Sheffield, , S10 3FZ",RC003,1CAHD,RC003/5700/SG0041,3000507,PP009394,595.11,CAHA
59,Revenue,CAHD,Social Lettings Agency,Other Supplies & Services,Individual,595.11, 01-Nov-2016,,,,,,,,,,,,,,,,,,,,,,,,,,,,,,,,,,,,,1236137,"Flat 2 Bluebell House, 43 Riverdale Road, Sheffield, , S10 3FZ",RC003,1CAHD,RC003/5990/SG0041,3000507,PP009394,595.11,CAHA
60,Revenue,CAHD,Supporting People Programme,Grants to Voluntary Bodies,Places for People,729.16, 01-Nov-2016,,,,,,,,,,,,,,,,,,,,,,,,,,,,,,,,,,,,,1073147,"PO Box 508, Preston, , , PR2 2XJ",RA006,1CAHD,RA006/5673/SP073,2016/17 Contract,SP495823,729.16,CAHA
61,Revenue,CAHD,Home Care - Elderly - North,Day Care / Social Activities,Premier Homecare Limited,42.12, 01-Nov-2016,,,,,,,,,,,,,,,,,,,,,,,,,,,,,,,,,,,,,0865261,"24 Canford Lane, Westbury-on-Trym, Bristol, , BS9 3DH",IF365,1CAHD,IF365/6704,0865261P201628,SP495925,11054.16,CAHA
62,Revenue,CAHD,Home Care - Elderly - North,Other Small Contracts,Premier Homecare Limited,11012.04, 01-Nov-2016,,,,,,,,,,,,,,,,,,,,,,,,,,,,,,,,,,,,,0865261,"24 Canford Lane, Westbury-on-Trym, Bristol, , BS9 3DH",IF365,1CAHD,IF365/6705,0865261P201628,SP495925,11054.16,CAHA
63,Revenue,CAHD,Home Care - Elderly - South,Other Small Contracts,Prestige Nursing,27.00, 01-Nov-2016,,,,,,,,,,,,,,,,,,,,,,,,,,,,,,,,,,,,,0766454,"44 & 47 Montpelier Court, Station Road, Montpelier, Bristol, BS6 5EA",IF364,1CAHD,IF364/6705,0766454P201625,SP495923,3440.46,CAHA
64,Revenue,CAHD,Home Care - Elderly - North,Other Small Contracts,Prestige Nursing,3242.46, 01-Nov-2016,,,,,,,,,,,,,,,,,,,,,,,,,,,,,,,,,,,,,0766454,"44 & 47 Montpelier Court, Station Road, Montpelier, Bristol, BS6 5EA",IF365,1CAHD,IF365/6705,0766454P201625,SP495923,3440.46,CAHA
65,Revenue,CAHD,Day Care - South,Day Care / Social Activities,Prestige Nursing,171.00, 01-Nov-2016,,,,,,,,,,,,,,,,,,,,,,,,,,,,,,,,,,,,,0766454,"44 & 47 Montpelier Court, Station Road, Montpelier, Bristol, BS6 5EA",IF900,1CAHD,IF900/6704,0766454P201625,SP495923,3440.46,CAHA
66,Revenue,CAHD,Learning Difficulties PSL,Rent,Individual,1650.00, 01-Nov-2016,,,,,,,,,,,,,,,,,,,,,,,,,,,,,,,,,,,,,1078018,"Kendleshire Court, Coalsack Lane, Winterbourne, South Gloucestershire, BS36 1AX",RC010,1CAHD,RC010/3400/LD0001,3000318,PP009399,1650.00,CAHA
67,Revenue,CAHD,Supporting People Programme,Grants to Voluntary Bodies,Second Step Housing Association,13784.00, 01-Nov-2016,,,,,,,,,,,,,,,,,,,,,,,,,,,,,,,,,,,,,0671808,"9 Brunswick Square, Bristol, , , BS2 8PE",RA006,1CAHD,RA006/5673/SP131,2016/17 Contract,SP495825,13784.00,CAHA
68,Revenue,CAHD,Supporting People Programme,Grants to Voluntary Bodies,Second Step Housing Association,12167.00, 01-Nov-2016,,,,,,,,,,,,,,,,,,,,,,,,,,,,,,,,,,,,,0671808,"9 Brunswick Square, Bristol, , , BS2 8PE",RA006,1CAHD,RA006/5673/SP131,2016/17 Contract,SP495826,12167.00,CAHA
69,Revenue,CAHD,Supporting People Programme,Grants to Voluntary Bodies,Supported Independence Ltd,3105.58, 01-Nov-2016,,,,,,,,,,,,,,,,,,,,,,,,,,,,,,,,,,,,,0760201,"27 - 29 Ashley Road, Bristol, , , BS6 5NJ",RA006,1CAHD,RA006/5673/SP122,2016/17 Contract,SP495797,3105.58,CAHA
70,Revenue,CAHD,Supporting People Programme,Grants to Voluntary Bodies,Supported Independent Living Schemes,4822.25, 01-Nov-2016,,,,,,,,,,,,,,,,,,,,,,,,,,,,,,,,,,,,,0813909,"Suite 2, Corona Buildings , Service, Unit 3 Solsbro Road, Wood Road, Kingswood, , Bristol, BS15 8DT",RA006,1CAHD,RA006/5673/SP122,2016/17 Contract,SP495795,4822.25,CAHA
71,Revenue,CAHD,Supporting People Programme,Grants to Voluntary Bodies,Supported Independent Living Schemes,6247.41, 01-Nov-2016,,,,,,,,,,,,,,,,,,,,,,,,,,,,,,,,,,,,,0813909,"Suite 2, Corona Buildings , Service, Unit 3 Solsbro Road, Wood Road, Kingswood, , Bristol, BS15 8DT",RA006,1CAHD,RA006/5673/SP122,2016/17 Contract,SP495796,6247.41,CAHA
72,Revenue,CAHD,Supporting People Programme,Grants to Voluntary Bodies,The Riverside Group Limited,783.33, 01-Nov-2016,,,,,,,,,,,,,,,,,,,,,,,,,,,,,,,,,,,,,1195547,"2 Estuary Boulevard, Estuary Commerce Park, Liverpool, , L24 8RF",RA006,1CAHD,RA006/5673/SP073,2016/17 Contract,SP495824,783.33,CAHA
73,Revenue,CAHD,Bed Purchasing - Southmead Hospital,Permanent Residential,Wayside Residential Home,3625.23, 01-Nov-2016,,,,,,,,,,,,,,,,,,,,,,,,,,,,,,,,,,,,,1032355,"8 Whittucks Road, Hanham, Bristol, , BS15 3PD",IE345,1CAHD,IE345/6700/S300098860,ORP20854,RP028857,3625.23,CAHA
74,Revenue,CAHD,Supporting People Programme,Grants to Voluntary Bodies,Willowbank Care Limited,1541.25, 02-Nov-2016,,,,,,,,,,,,,,,,,,,,,,,,,,,,,,,,,,,,,0703572,"88 Filton Road, Horfield, Bristol, , BS7 0PD",RA006,1CAHD,RA006/5673,2016/17 Contract,SP495798,1541.25,CAHA
75,Revenue,CAHD,Home Care - Elderly - North,Day Care / Social Activities,About Me Care and Support Limited,519.36, 02-Nov-2016,,,,,,,,,,,,,,,,,,,,,,,,,,,,,,,,,,,,,1187728,"National Centre for , Deafblindness, John and Lucill, Van Geest Place, Cygnet Road,, Peterborough, Hampton, PE7 8FD",IF365,1CAHD,if365/6704,10911,A0302510,519.36,CAHA
76,Revenue,CAHD,Home Care - Elderly - South,Other Small Contracts,Care 1st Homecare,4654.19, 02-Nov-2016,,,,,,,,,,,,,,,,,,,,,,,,,,,,,,,,,,,,,1164745,"164 Gloucester Road, Bishopston, Bristol, , BS7 8NT",IF364,1CAHD,IF364/6705,1164745P201626,SP495934,8702.33,CAHA
77,Revenue,CAHD,Home Care - Elderly - North,Other Small Contracts,Care 1st Homecare,4048.14, 02-Nov-2016,,,,,,,,,,,,,,,,,,,,,,,,,,,,,,,,,,,,,1164745,"164 Gloucester Road, Bishopston, Bristol, , BS7 8NT",IF365,1CAHD,IF365/6705,1164745P201626,SP495934,8702.33,CAHA
78,Revenue,CAHD,Home Care - Elderly - South,Other Small Contracts,Carers R Us (Bristol) Limited,651.90, 02-Nov-2016,,,,,,,,,,,,,,,,,,,,,,,,,,,,,,,,,,,,,1064834,"36 Westbourne Road, Downend, Bristol, , BS16 6RX",IF364,1CAHD,IF364/6705,1064834P201627,SP495932,2692.36,CAHA
79,Revenue,CAHD,Home Care - Elderly - North,Other Small Contracts,Carers R Us (Bristol) Limited,2040.46, 02-Nov-2016,,,,,,,,,,,,,,,,,,,,,,,,,,,,,,,,,,,,,1064834,"36 Westbourne Road, Downend, Bristol, , BS16 6RX",IF365,1CAHD,IF365/6705,1064834P201627,SP495932,2692.36,CAHA
80,Revenue,CAHD,Home Care - Elderly - South,Other Small Contracts,Carers R Us (Bristol) Limited,434.60, 02-Nov-2016,,,,,,,,,,,,,,,,,,,,,,,,,,,,,,,,,,,,,1064834,"36 Westbourne Road, Downend, Bristol, , BS16 6RX",IF364,1CAHD,IF364/6705,1064834P201628,SP495933,2475.06,CAHA
81,Revenue,CAHD,Home Care - Elderly - North,Other Small Contracts,Carers R Us (Bristol) Limited,2040.46, 02-Nov-2016,,,,,,,,,,,,,,,,,,,,,,,,,,,,,,,,,,,,,1064834,"36 Westbourne Road, Downend, Bristol, , BS16 6RX",IF365,1CAHD,IF365/6705,1064834P201628,SP495933,2475.06,CAHA
82,Revenue,CAHD,Bed and Breakfast,Bed & Breakfast,Connolly & Callaghan Limited,581.00, 02-Nov-2016,,,,,,,,,,,,,,,,,,,,,,,,,,,,,,,,,,,,,0797326,"Hamilton House, 80 Stokes Croft, Bristol, , BS1 3QY",RC001,1CAHD,rc001/5605,66386,A0302167,697.20,CAHA
83,Revenue,CAHD,Bed and Breakfast,Bed & Breakfast,Connolly & Callaghan Limited,476.00, 02-Nov-2016,,,,,,,,,,,,,,,,,,,,,,,,,,,,,,,,,,,,,0797326,"Hamilton House, 80 Stokes Croft, Bristol, , BS1 3QY",RC001,1CAHD,rc001/5605,66407,A0302172,571.20,CAHA
84,Revenue,CAHD,Home Care - Elderly - South,Day Care / Social Activities,Elite Home Care Ltd,183.68, 02-Nov-2016,,,,,,,,,,,,,,,,,,,,,,,,,,,,,,,,,,,,,1176502,"7 The Square, Broad Street, Staple Hill, Bristol, BS16 5LR",IF364,1CAHD,IF364/6704,1176502P201628,SP495935,7439.82,CAHA
85,Revenue,CAHD,Home Care - Elderly - South,Other Small Contracts,Elite Home Care Ltd,7148.62, 02-Nov-2016,,,,,,,,,,,,,,,,,,,,,,,,,,,,,,,,,,,,,1176502,"7 The Square, Broad Street, Staple Hill, Bristol, BS16 5LR",IF364,1CAHD,IF364/6705,1176502P201628,SP495935,7439.82,CAHA
86,Revenue,CAHD,Home Care - Elderly - North,Other Small Contracts,Elite Home Care Ltd,107.52, 02-Nov-2016,,,,,,,,,,,,,,,,,,,,,,,,,,,,,,,,,,,,,1176502,"7 The Square, Broad Street, Staple Hill, Bristol, BS16 5LR",IF365,1CAHD,IF365/6705,1176502P201628,SP495935,7439.82,CAHA
87,Revenue,CAHD,Training - Adult Services,Training Expenses,Focal Point UK,469.55, 02-Nov-2016,,,,,,,,,,,,,,,,,,,,,,,,,,,,,,,,,,,,,0916369,"45 Brockworth Crescent, Stapleton, Bristol, , BS16 1HQ",KW203,1CAHD,KW203/2831,2065,A0301049,563.46,CAHA
88,Revenue,CAHD,Home Care - Elderly - North,Private & Voluntary Home Care,Housing & Care 21,9553.00, 02-Nov-2016,,,,,,,,,,,,,,,,,,,,,,,,,,,,,,,,,,,,,1221941,"10th Floor Tricorn House, 51 - 53 Hagley Road, Birmingham , , B16 8TP",IF365,1CAHD,IF365/6703,INV294458,A0302391,9553.00,CAHA
89,Revenue,CAHD,CAHA - Complaints and FOI,Complaints External Expenses,Keith Smith,1954.12, 02-Nov-2016,,,,,,,,,,,,,,,,,,,,,,,,,,,,,,,,,,,,,1228983,"1 Ezel Court, Heol Glan Rheidol, Cardiff, , CF10 5NS",KS044,1CAHD,KS044/5741,1008,A0302181,1954.12,CAHA
90,Revenue,CAHD,Social Lettings Agency,Fees - General,Individual,12.22, 02-Nov-2016,,,,,,,,,,,,,,,,,,,,,,,,,,,,,,,,,,,,,1224843,"4 Oxbarton, Stoke Gifford, South Gloucestershire, , BS34 8RP",RC003,1CAHD,RC003/5700/SG0037,3000460a,PP009405,690.32,CAHA
91,Revenue,CAHD,Social Lettings Agency,Other Supplies & Services,Individual,690.32, 02-Nov-2016,,,,,,,,,,,,,,,,,,,,,,,,,,,,,,,,,,,,,1224843,"4 Oxbarton, Stoke Gifford, South Gloucestershire, , BS34 8RP",RC003,1CAHD,RC003/5990/SG0037,3000460a,PP009405,690.32,CAHA
92,Revenue,CAHD,Home Care - Elderly - North,Other Small Contracts,Newcross Healthcare Solutions Limited,1666.00, 02-Nov-2016,,,,,,,,,,,,,,,,,,,,,,,,,,,,,,,,,,,,,1224415,"Waterside, Berry Pomeroy, Totnes, Devon, TQ9 6LH",IF365,1CAHD,if365/6705,INV091947,A0302518,1666.00,CAHA
93,Revenue,CAHD,Home Care - Elderly - South,Day Care / Social Activities,Silva Care Limited,1693.12, 02-Nov-2016,,,,,,,,,,,,,,,,,,,,,,,,,,,,,,,,,,,,,1139951,"19b Osprey Court, Whitchurch Lane, Bristol, , BS14 0BB",IF364,1CAHD,if364/6704,lNV-9328,A0299805,1693.12,CAHA
94,Revenue,CAHD,Minor Adaptations Service,Premises Maintenance by Contractor,TVM Cheltenham Limited,693.63, 02-Nov-2016,,,,,,,,,,,,,,,,,,,,,,,,,,,,,,,,,,,,,0791005,"The Merecoombs, Granna Lane, Gotherington, Cheltenham, GL52 9QZ",XK401,1CAHD,XK401/3016,5213,A0296783,832.35,CAHA
95,Revenue,CAHD,Minor Adaptations Service,Premises Maintenance by Contractor,TVM Cheltenham Limited,544.41, 02-Nov-2016,,,,,,,,,,,,,,,,,,,,,,,,,,,,,,,,,,,,,0791005,"The Merecoombs, Granna Lane, Gotherington, Cheltenham, GL52 9QZ",XK401,1CAHD,XK401/3016,5248,A0296785,653.29,CAHA
96,Revenue,CAHD,Minor Adaptations Service,Premises Maintenance by Contractor,TVM Cheltenham Limited,675.00, 02-Nov-2016,,,,,,,,,,,,,,,,,,,,,,,,,,,,,,,,,,,,,0791005,"The Merecoombs, Granna Lane, Gotherington, Cheltenham, GL52 9QZ",XK401,1CAHD,XK401/3016,5281,A0297643,810.00,CAHA
97,Revenue,CAHD,Minor Adaptations Service,Premises Maintenance by Contractor,TVM Cheltenham Limited,971.94, 02-Nov-2016,,,,,,,,,,,,,,,,,,,,,,,,,,,,,,,,,,,,,0791005,"The Merecoombs, Granna Lane, Gotherington, Cheltenham, GL52 9QZ",XK401,1CAHD,XK401/3016,5311,A0299437,1166.34,CAHA
98,Revenue,CAHD,Home Care - Elderly - South,Day Care / Social Activities,About Me Care and Support Limited,1341.68, 03-Nov-2016,,,,,,,,,,,,,,,,,,,,,,,,,,,,,,,,,,,,,1187728,"National Centre for , Deafblindness, John and Lucill, Van Geest Place, Cygnet Road,, Peterborough, Hampton, PE7 8FD",IF364,1CAHD,IF364/6704,10908,A0302610,1341.68,CAHA
99,Revenue,CAHD,Home Care - Elderly - South,Other Small Contracts,AliMo Care Ltd,1496.72, 03-Nov-2016,,,,,,,,,,,,,,,,,,,,,,,,,,,,,,,,,,,,,1203939,"Kingswood House, South Road, Kingswood, Bristol, BS15 8JF",IF364,1CAHD,IF364/6705,1203939P201625,SP494635,1496.72,CAHA
100,Revenue,CAHD,Younger Adult Mental Health,Health Services (Third Party Payments),Avon & Wiltshire Mental Health,1667.00, 03-Nov-2016,,,,,,,,,,,,,,,,,,,,,,,,,,,,,,,,,,,,,0610966,"Partnership NHS Trust, Finance Bath NHS House, Newbridge Hill, Bath, BA1 3QE",KV335,1CAHD,KV335/6300,3009406,A0300255,1667.00,CAHA
101,Revenue,CAHD,Social Lettings Agency,Fees - General,Individual,11.41, 03-Nov-2016,,,,,,,,,,,,,,,,,,,,,,,,,,,,,,,,,,,,,1046193,"The Granary, Scotland House Farm, Stockwood Road, Bristol, BS34 5LU",RC003,1CAHD,RC003/5700/SG0057,3000508,PP009407,746.54,CAHA
102,Revenue,CAHD,Social Lettings Agency,Other Supplies & Services,Individual,746.54, 03-Nov-2016,,,,,,,,,,,,,,,,,,,,,,,,,,,,,,,,,,,,,1046193,"The Granary, Scotland House Farm, Stockwood Road, Bristol, BS34 5LU",RC003,1CAHD,RC003/5990/SG0057,3000508,PP009407,746.54,CAHA
103,Revenue,CAHD,Home Care - Elderly - South,Other Small Contracts,Brunelcare,2275.17, 03-Nov-2016,,,,,,,,,,,,,,,,,,,,,,,,,,,,,,,,,,,,,1041197,"Community Services, 21 Regent Street, Kingswood, Bristol, BS15 8JX",IF364,1CAHD,IF364/6705,1041197P201627,SP495950,3624.35,CAHA
104,Revenue,CAHD,Home Care - Elderly - North,Other Small Contracts,Brunelcare,1349.18, 03-Nov-2016,,,,,,,,,,,,,,,,,,,,,,,,,,,,,,,,,,,,,1041197,"Community Services, 21 Regent Street, Kingswood, Bristol, BS15 8JX",IF365,1CAHD,IF365/6705,1041197P201627,SP495950,3624.35,CAHA
105,Revenue,CAHD,Home Care - Elderly - South,Other Small Contracts,Brunelcare,2153.66, 03-Nov-2016,,,,,,,,,,,,,,,,,,,,,,,,,,,,,,,,,,,,,1041197,"Community Services, 21 Regent Street, Kingswood, Bristol, BS15 8JX",IF364,1CAHD,IF364/6705,1041197P201628,SP495951,3490.27,CAHA
106,Revenue,CAHD,Home Care - Elderly - North,Other Small Contracts,Brunelcare,1336.61, 03-Nov-2016,,,,,,,,,,,,,,,,,,,,,,,,,,,,,,,,,,,,,1041197,"Community Services, 21 Regent Street, Kingswood, Bristol, BS15 8JX",IF365,1CAHD,IF365/6705,1041197P201628,SP495951,3490.27,CAHA
107,Revenue,CAHD,Home Care - Elderly - North,Day Care / Social Activities,Camphill Communities Thornbury Limited,952.00, 03-Nov-2016,,,,,,,,,,,,,,,,,,,,,,,,,,,,,,,,,,,,,0773191,"The Hatch Office, Kington Lane, Thornbury, , BS35 1NA",IF365,1CAHD,IF365/6704,0773191P201625,SP494394,1948.00,CAHA
108,Revenue,CAHD,Home Care - Elderly - North,Other Small Contracts,Camphill Communities Thornbury Limited,144.00, 03-Nov-2016,,,,,,,,,,,,,,,,,,,,,,,,,,,,,,,,,,,,,0773191,"The Hatch Office, Kington Lane, Thornbury, , BS35 1NA",IF365,1CAHD,IF365/6705,0773191P201625,SP494394,1948.00,CAHA
109,Revenue,CAHD,Home Care - Elderly - North,Supported Living,Camphill Communities Thornbury Limited,852.00, 03-Nov-2016,,,,,,,,,,,,,,,,,,,,,,,,,,,,,,,,,,,,,0773191,"The Hatch Office, Kington Lane, Thornbury, , BS35 1NA",IF365,1CAHD,IF365/6707,0773191P201625,SP494394,1948.00,CAHA
110,Revenue,CAHD,CAH Assistant Directors,Agency Staff (Admin/Support Staff) Pay,Capita Resourcing Limited,13420.00, 03-Nov-2016,,,,,,,,,,,,,,,,,,,,,,,,,,,,,,,,,,,,,1188595,"PO Box 212 , Faverdale Industrial Estate, Darlington, , DL1 9HN",KA002,1CAHD,KA002/2641,WN4026889,A0299975,16104.00,CAHA
111,Revenue,CAHD,Woodleaze,Furniture & Fittings Loose,Care Shop,1231.08, 03-Nov-2016,,,,,,,,,,,,,,,,,,,,,,,,,,,,,,,,,,,,,0483724,"Bunzl Health Care, Warren Bruce Road, Trafford Park, Manchester, M17 1LB",KE218,1CAHD,KE218/5060,OP/I278128,A0301734,1477.30,CAHA
112,Revenue,CAHD,Home Care - Elderly - South,Other Small Contracts,Cherish Able Care Limited,5927.80, 03-Nov-2016,,,,,,,,,,,,,,,,,,,,,,,,,,,,,,,,,,,,,1169234,"106 Soundwell Road, Staple Hill, Bristol, , BS16 4RE",IF364,1CAHD,IF364/6705,1169234P201625,SP494466,6107.56,CAHA
113,Revenue,CAHD,Home Care - Elderly - North,Other Small Contracts,Cherish Able Care Limited,179.76, 03-Nov-2016,,,,,,,,,,,,,,,,,,,,,,,,,,,,,,,,,,,,,1169234,"106 Soundwell Road, Staple Hill, Bristol, , BS16 4RE",IF365,1CAHD,IF365/6705,1169234P201625,SP494466,6107.56,CAHA
114,Revenue,CAHD,Bed and Breakfast,Bed & Breakfast,E J Bartlett,434.00, 03-Nov-2016,,,,,,,,,,,,,,,,,,,,,,,,,,,,,,,,,,,,,0625605,"Pool Farm, Wotton Road, Rangeworthy, S Gloucestershire, BS37 7NA",RC001,1CAHD,rc001/5605,4637,A0302218,520.80,CAHA
115,Revenue,CAHD,Home Care - Elderly - South,Day Care / Social Activities,Headway Bristol,703.56, 03-Nov-2016,,,,,,,,,,,,,,,,,,,,,,,,,,,,,,,,,,,,,0093334,"Frenchay Beckspool Building, Frenchay Park Road, Bristol, , BS16 1LE",IF364,1CAHD,IF364/6704,0093334P201625,SP495765,1849.51,CAHA
116,Revenue,CAHD,Home Care - Elderly - South,Other Small Contracts,Headway Bristol,426.40, 03-Nov-2016,,,,,,,,,,,,,,,,,,,,,,,,,,,,,,,,,,,,,0093334,"Frenchay Beckspool Building, Frenchay Park Road, Bristol, , BS16 1LE",IF364,1CAHD,IF364/6705,0093334P201625,SP495765,1849.51,CAHA
117,Revenue,CAHD,Home Care - Elderly - North,Day Care / Social Activities,Headway Bristol,719.55, 03-Nov-2016,,,,,,,,,,,,,,,,,,,,,,,,,,,,,,,,,,,,,0093334,"Frenchay Beckspool Building, Frenchay Park Road, Bristol, , BS16 1LE",IF365,1CAHD,IF365/6704,0093334P201625,SP495765,1849.51,CAHA
118,Revenue,CAHD,Bed Purchasing - Southmead Hospital,Permanent Nursing,Horfield Care Limited,1493.76, 03-Nov-2016,,,,,,,,,,,,,,,,,,,,,,,,,,,,,,,,,,,,,0662464,"Administration Manager, Field House Care Home, Blakeney Road, Horfield, Bristol, BS7 0DL",IE345,1CAHD,IE345/6710/S300016967,Oct - Field House,SP495943,1493.76,CAHA
119,Revenue,CAHD,Bed Purchasing - Southmead Hospital,Permanent Nursing,Horfield Care Limited,1877.05, 03-Nov-2016,,,,,,,,,,,,,,,,,,,,,,,,,,,,,,,,,,,,,0662464,"Administration Manager, Field House Care Home, Blakeney Road, Horfield, Bristol, BS7 0DL",IE345,1CAHD,IE345/6710/S300028146,Oct - Field House,SP495944,1877.05,CAHA
120,Revenue,CAHD,Bed Purchasing - Southmead Hospital,Permanent Nursing,Horfield Care Limited,1381.58, 03-Nov-2016,,,,,,,,,,,,,,,,,,,,,,,,,,,,,,,,,,,,,0662464,"Administration Manager, Field House Care Home, Blakeney Road, Horfield, Bristol, BS7 0DL",IE345,1CAHD,IE345/6710/S97898,Oct - Field House,SP495945,1381.58,CAHA
121,Revenue,CAHD,Bed Purchasing - South,Permanent Nursing,Horfield Care Limited,1379.37, 03-Nov-2016,,,,,,,,,,,,,,,,,,,,,,,,,,,,,,,,,,,,,0662464,"Administration Manager, Field House Care Home, Blakeney Road, Horfield, Bristol, BS7 0DL",IE101,1CAHD,IE101/6710/S100643,Oct - Field House,SP495946,1379.37,CAHA
122,Revenue,CAHD,Bed Purchasing - South,Respite Emergency - Nursing,Horfield Care Limited,1401.02, 03-Nov-2016,,,,,,,,,,,,,,,,,,,,,,,,,,,,,,,,,,,,,0662464,"Administration Manager, Field House Care Home, Blakeney Road, Horfield, Bristol, BS7 0DL",IE101,1CAHD,IE101/6711/S144975,Oct - Field House,SP495947,1401.02,CAHA
123,Revenue,CAHD,ICES / NRS Contract,Daily Living Equipment,Medequip Assistive Technology Limited,156836.18, 03-Nov-2016,,,,,,,,,,,,,,,,,,,,,,,,,,,,,,,,,,,,,1107358,"Unit 2, Summit Centre, Skyport Drive, Harmondsworth Lane, West Drayton, Middlesex, UB7 0LJ",XK402,1CAHD,XK402/5881,38820,A0300503,188203.42,CAHA
124,Revenue,CAHD,Tenancy Start Up Scheme,Other Supplies & Services,Melt Management Limited,1350.00, 03-Nov-2016,,,,,,,,,,,,,,,,,,,,,,,,,,,,,,,,,,,,,9054696,"B22 Kestrel Court, Waterwells Drive, Quedgeley, Gloucestershire, GL12 2AT",RC014,1CAHD,RC014/5990,ORP20864,RP028872,1350.00,CAHA
125,Revenue,CAHD,Home Care - Elderly - South,Day Care / Social Activities,Milestones Supported Living Services,7617.19, 03-Nov-2016,,,,,,,,,,,,,,,,,,,,,,,,,,,,,,,,,,,,,1210217,"Milestones Trust, Unit 10, Eclipse Office Park, High Street, Staple Hill, Bristol, BS16 5EL",IF364,1CAHD,IF364/6704,1210217P201601,SP495952,14921.97,CAHA
126,Revenue,CAHD,Home Care - Elderly - South,Other Small Contracts,Milestones Supported Living Services,3568.48, 03-Nov-2016,,,,,,,,,,,,,,,,,,,,,,,,,,,,,,,,,,,,,1210217,"Milestones Trust, Unit 10, Eclipse Office Park, High Street, Staple Hill, Bristol, BS16 5EL",IF364,1CAHD,IF364/6705,1210217P201601,SP495952,14921.97,CAHA
127,Revenue,CAHD,Home Care - Elderly - North,Day Care / Social Activities,Milestones Supported Living Services,794.06, 03-Nov-2016,,,,,,,,,,,,,,,,,,,,,,,,,,,,,,,,,,,,,1210217,"Milestones Trust, Unit 10, Eclipse Office Park, High Street, Staple Hill, Bristol, BS16 5EL",IF365,1CAHD,IF365/6704,1210217P201601,SP495952,14921.97,CAHA
128,Revenue,CAHD,Home Care - Elderly - North,Other Small Contracts,Milestones Supported Living Services,2522.00, 03-Nov-2016,,,,,,,,,,,,,,,,,,,,,,,,,,,,,,,,,,,,,1210217,"Milestones Trust, Unit 10, Eclipse Office Park, High Street, Staple Hill, Bristol, BS16 5EL",IF365,1CAHD,IF365/6705,1210217P201601,SP495952,14921.97,CAHA
129,Revenue,CAHD,Home Care - Elderly - North,Supported Living,Milestones Supported Living Services,164.80, 03-Nov-2016,,,,,,,,,,,,,,,,,,,,,,,,,,,,,,,,,,,,,1210217,"Milestones Trust, Unit 10, Eclipse Office Park, High Street, Staple Hill, Bristol, BS16 5EL",IF365,1CAHD,IF365/6707,1210217P201601,SP495952,14921.97,CAHA
130,Revenue,CAHD,Day Care - North,Day Care / Social Activities,Milestones Supported Living Services,119.48, 03-Nov-2016,,,,,,,,,,,,,,,,,,,,,,,,,,,,,,,,,,,,,1210217,"Milestones Trust, Unit 10, Eclipse Office Park, High Street, Staple Hill, Bristol, BS16 5EL",IF901,1CAHD,IF901/6704,1210217P201601,SP495952,14921.97,CAHA
131,Revenue,CAHD,Home care - Elderly MH - North,Other Small Contracts,Milestones Supported Living Services,135.96, 03-Nov-2016,,,,,,,,,,,,,,,,,,,,,,,,,,,,,,,,,,,,,1210217,"Milestones Trust, Unit 10, Eclipse Office Park, High Street, Staple Hill, Bristol, BS16 5EL",IP336,1CAHD,IP336/6705,1210217P201601,SP495952,14921.97,CAHA
132,Revenue,CAHD,Supporting People Programme,Grants to Voluntary Bodies,Individual,585.09, 03-Nov-2016,,,,,,,,,,,,,,,,,,,,,,,,,,,,,,,,,,,,,1042492,"Flat 19 Britania Court, Christchurch Lane, Downend, South Glos, BS16 5TR",RA006,1CAHD,RA006/5673/SP020,ORP20867,RP028875,585.09,CAHA
133,Revenue,CAHD,Home Care - Elderly - North,Other Small Contracts,Newcross Healthcare Solutions Limited,1497.02, 03-Nov-2016,,,,,,,,,,,,,,,,,,,,,,,,,,,,,,,,,,,,,1224415,"Waterside, Berry Pomeroy, Totnes, Devon, TQ9 6LH",IF365,1CAHD,if365/6705,INV101116,A0302508,1497.02,CAHA
134,Revenue,CAHD,Home Care - Elderly - North,Other Small Contracts,Newcross Healthcare Solutions Limited,1666.00, 03-Nov-2016,,,,,,,,,,,,,,,,,,,,,,,,,,,,,,,,,,,,,1224415,"Waterside, Berry Pomeroy, Totnes, Devon, TQ9 6LH",IF365,1CAHD,if365/6705,INV107991,A0302517,1666.00,CAHA
135,Revenue,CAHD,Woodleaze,Furniture & Fittings Loose,Office Watercoolers South West Ltd,835.00, 03-Nov-2016,,,,,,,,,,,,,,,,,,,,,,,,,,,,,,,,,,,,,0806343,"Unit 5 Rivermead, Dean Road, Yate, South Gloucestershire, BS37 5NH",KE218,1CAHD,KE218/5060,INV0465221,A0301735,1002.00,CAHA
136,Revenue,CAHD,Community Promoting Independence Team,Care Management/Assessment Staff Pay,Sugarman Group Ltd,1009.17, 03-Nov-2016,,,,,,,,,,,,,,,,,,,,,,,,,,,,,,,,,,,,,1221581,"3rd Floor, 21 Bennetts Hill, Birmingham, , B2 5QP",KV345,1CAHD,KV345/1261,TM385678,A0301432,1211.00,CAHA
137,Revenue,CAHD,Home Care - Elderly - North,Other Small Contracts,Bibby Factors Bristol Limited,7803.64, 04-Nov-2016,,,,,,,,,,,,,,,,,,,,,,,,,,,,,,,,,,,,,0586016,"Central Client Service Centre, 2nd Floor, The Woodlands, Frances Way, Grove Park, Leicester, Leicestershire, LE19 1SH",IF365,1CAHD,IF365/6705,1224178P201625,SP494795,7803.64,CAHA
138,Revenue,CAHD,Pathway 2 - (Interim Beds),Permanent Nursing,Brunelcare,51086.88, 04-Nov-2016,,,,,,,,,,,,,,,,,,,,,,,,,,,,,,,,,,,,,0332192,"Saffron Gardens, Prospect Place, Whitehall, Bristol, BS5 9FF",IE901,1CAHD,IE901/6710,ORP20882,RP028895,51086.88,CAHA
139,Revenue,CAHD,Bed and Breakfast,Bed & Breakfast,Connolly & Callaghan Limited,441.00, 04-Nov-2016,,,,,,,,,,,,,,,,,,,,,,,,,,,,,,,,,,,,,0797326,"Hamilton House, 80 Stokes Croft, Bristol, , BS1 3QY",RC001,1CAHD,RC001/5605,66650,A0302695,529.20,CAHA
140,Revenue,CAHD,Home Care - Elderly - South,Other Small Contracts,Helping Hands Homecare,1093.44, 04-Nov-2016,,,,,,,,,,,,,,,,,,,,,,,,,,,,,,,,,,,,,1202141,"Arrow House, 8 & 9 Church Street, Alcester, Warwickshire, B49 5AJ",IF364,1CAHD,IF364/6705,1202141P201625,SP494468,3716.30,CAHA
141,Revenue,CAHD,Home Care - Elderly - North,Other Small Contracts,Helping Hands Homecare,2622.86, 04-Nov-2016,,,,,,,,,,,,,,,,,,,,,,,,,,,,,,,,,,,,,1202141,"Arrow House, 8 & 9 Church Street, Alcester, Warwickshire, B49 5AJ",IF365,1CAHD,IF365/6705,1202141P201625,SP494468,3716.30,CAHA
142,Revenue,CAHD,Training - Adult Services,Training Expenses,Jo Williams,1254.00, 04-Nov-2016,,,,,,,,,,,,,,,,,,,,,,,,,,,,,,,,,,,,,1166804,"16 Salisbury Avenue, Kingswood, Bristol, , BS15 8AL",KW203,1CAHD,KW203/2831,84-23/10/16,A0301966,1254.00,CAHA
143,Revenue,CAHD,Social Lettings Agency,Fees - General,Individual,13.60, 04-Nov-2016,,,,,,,,,,,,,,,,,,,,,,,,,,,,,,,,,,,,,1233538,"68 Hamble Close, Thornbury, South Gloucestershire, , BS35 2DE",RC003,1CAHD,RC003/5700/SG0055,3000499,PP009410,768.40,CAHA
144,Revenue,CAHD,Social Lettings Agency,Other Supplies & Services,Individual,768.40, 04-Nov-2016,,,,,,,,,,,,,,,,,,,,,,,,,,,,,,,,,,,,,1233538,"68 Hamble Close, Thornbury, South Gloucestershire, , BS35 2DE",RC003,1CAHD,RC003/5990/SG0055,3000499,PP009410,768.40,CAHA
145,Revenue,CAHD,Woodleaze,Equipment Maintenance,Medaco,862.00, 04-Nov-2016,,,,,,,,,,,,,,,,,,,,,,,,,,,,,,,,,,,,,1152235,"Unit 109 Emerald Park East, Emersons Green, Bristol , , BS16 7FG",KE218,1CAHD,KE218/5090,42683,A0300642,1034.40,CAHA
146,Revenue,CAHD,Home Care - Elderly - South,Other Small Contracts,Milestones Homecare & Dementia Service,931.25, 04-Nov-2016,,,,,,,,,,,,,,,,,,,,,,,,,,,,,,,,,,,,,1210206,"Milestones Trust, Unit 10, Eclipse Office Park, High Street, Staple Hill, BS16 5EL",IF364,1CAHD,IF364/6705,1210206P201624,SP495207,3550.00,CAHA
147,Revenue,CAHD,Home Care - Elderly - North,Other Small Contracts,Milestones Homecare & Dementia Service,2618.75, 04-Nov-2016,,,,,,,,,,,,,,,,,,,,,,,,,,,,,,,,,,,,,1210206,"Milestones Trust, Unit 10, Eclipse Office Park, High Street, Staple Hill, BS16 5EL",IF365,1CAHD,IF365/6705,1210206P201624,SP495207,3550.00,CAHA
148,Revenue,CAHD,Home Care - Elderly - South,Other Small Contracts,Milestones Homecare & Dementia Service,637.50, 04-Nov-2016,,,,,,,,,,,,,,,,,,,,,,,,,,,,,,,,,,,,,1210206,"Milestones Trust, Unit 10, Eclipse Office Park, High Street, Staple Hill, BS16 5EL",IF364,1CAHD,IF364/6705,1210206P201625,SP495208,2668.75,CAHA
149,Revenue,CAHD,Home Care - Elderly - North,Other Small Contracts,Milestones Homecare & Dementia Service,2031.25, 04-Nov-2016,,,,,,,,,,,,,,,,,,,,,,,,,,,,,,,,,,,,,1210206,"Milestones Trust, Unit 10, Eclipse Office Park, High Street, Staple Hill, BS16 5EL",IF365,1CAHD,IF365/6705,1210206P201625,SP495208,2668.75,CAHA
150,Revenue,CAHD,Home Care - Elderly - South,Day Care / Social Activities,Milestones Supported Living Services,6336.93, 04-Nov-2016,,,,,,,,,,,,,,,,,,,,,,,,,,,,,,,,,,,,,1210217,"Milestones Trust, Unit 10, Eclipse Office Park, High Street, Staple Hill, Bristol, BS16 5EL",IF364,1CAHD,IF364/6704,1210217P201625,SP494499,19920.56,CAHA
151,Revenue,CAHD,Home Care - Elderly - South,Other Small Contracts,Milestones Supported Living Services,6830.37, 04-Nov-2016,,,,,,,,,,,,,,,,,,,,,,,,,,,,,,,,,,,,,1210217,"Milestones Trust, Unit 10, Eclipse Office Park, High Street, Staple Hill, Bristol, BS16 5EL",IF364,1CAHD,IF364/6705,1210217P201625,SP494499,19920.56,CAHA
152,Revenue,CAHD,Home Care - Elderly - South,Supported Living,Milestones Supported Living Services,647.40, 04-Nov-2016,,,,,,,,,,,,,,,,,,,,,,,,,,,,,,,,,,,,,1210217,"Milestones Trust, Unit 10, Eclipse Office Park, High Street, Staple Hill, Bristol, BS16 5EL",IF364,1CAHD,IF364/6707,1210217P201625,SP494499,19920.56,CAHA
153,Revenue,CAHD,Home Care - Elderly - North,Day Care / Social Activities,Milestones Supported Living Services,831.14, 04-Nov-2016,,,,,,,,,,,,,,,,,,,,,,,,,,,,,,,,,,,,,1210217,"Milestones Trust, Unit 10, Eclipse Office Park, High Street, Staple Hill, Bristol, BS16 5EL",IF365,1CAHD,IF365/6704,1210217P201625,SP494499,19920.56,CAHA
154,Revenue,CAHD,Home Care - Elderly - North,Other Small Contracts,Milestones Supported Living Services,4994.56, 04-Nov-2016,,,,,,,,,,,,,,,,,,,,,,,,,,,,,,,,,,,,,1210217,"Milestones Trust, Unit 10, Eclipse Office Park, High Street, Staple Hill, Bristol, BS16 5EL",IF365,1CAHD,IF365/6705,1210217P201625,SP494499,19920.56,CAHA
155,Revenue,CAHD,Home Care - Elderly - North,Supported Living,Milestones Supported Living Services,123.60, 04-Nov-2016,,,,,,,,,,,,,,,,,,,,,,,,,,,,,,,,,,,,,1210217,"Milestones Trust, Unit 10, Eclipse Office Park, High Street, Staple Hill, Bristol, BS16 5EL",IF365,1CAHD,IF365/6707,1210217P201625,SP494499,19920.56,CAHA
156,Revenue,CAHD,Day Care - North,Day Care / Social Activities,Milestones Supported Living Services,131.84, 04-Nov-2016,,,,,,,,,,,,,,,,,,,,,,,,,,,,,,,,,,,,,1210217,"Milestones Trust, Unit 10, Eclipse Office Park, High Street, Staple Hill, Bristol, BS16 5EL",IF901,1CAHD,IF901/6704,1210217P201625,SP494499,19920.56,CAHA
157,Revenue,CAHD,Younger MH non-res purchasing,Day Care / Social Activities,Milestones Supported Living Services,24.72, 04-Nov-2016,,,,,,,,,,,,,,,,,,,,,,,,,,,,,,,,,,,,,1210217,"Milestones Trust, Unit 10, Eclipse Office Park, High Street, Staple Hill, Bristol, BS16 5EL",IP335,1CAHD,IP335/6704,1210217P201625,SP494499,19920.56,CAHA
158,Revenue,CAHD,Home Care - Elderly - South,Supported Living,Moving On,737.44, 04-Nov-2016,,,,,,,,,,,,,,,,,,,,,,,,,,,,,,,,,,,,,1139758,"514 Horizon, Broad Weir, Bristol, , BS1 3DJ",IF364,1CAHD,IF364/6707,7014,A0302303,737.44,CAHA
159,Revenue,CAHD,Homeless - Private Sector Leasing,Other Supplies & Services,Individual,570.00, 04-Nov-2016,,,,,,,,,,,,,,,,,,,,,,,,,,,,,,,,,,,,,0917258,"45 Canterbury Close, Yate, South Gloucestershire, , BS37 5TY",RC011,1CAHD,RC011/5990/PSL40,3000287,PP009411,570.00,CAHA
160,Revenue,CAHD,Social Lettings Agency,Fees - General,Individual,10.00, 04-Nov-2016,,,,,,,,,,,,,,,,,,,,,,,,,,,,,,,,,,,,,1189359,"5 Millbrook Gardens, Castle Cary, , , BA7 7EE",RC003,1CAHD,RC003/5700/SG0017,3000407,PP009409,565.00,CAHA
161,Revenue,CAHD,Social Lettings Agency,Other Supplies & Services,Individual,565.00, 04-Nov-2016,,,,,,,,,,,,,,,,,,,,,,,,,,,,,,,,,,,,,1189359,"5 Millbrook Gardens, Castle Cary, , , BA7 7EE",RC003,1CAHD,RC003/5990/SG0017,3000407,PP009409,565.00,CAHA
162,Revenue,CAHD,SLA Grants - Support Serv,Other Supplies & Services,NHS South Gloucestershire CCG,30788.00, 04-Nov-2016,,,,,,,,,,,,,,,,,,,,,,,,,,,,,,,,,,,,,1204029,"12A Receivables L389, Shared Business Services, Phoenix House, Topcliffe Lane, WF3 1WE",IR010,1CAHD,ir010/5990,7029600466,A0300662,36945.60,CAHA
163,Revenue,CAHD,Minor Adaptations Service,Premises Maintenance by Contractor,Premier Service & Installation,631.13, 04-Nov-2016,,,,,,,,,,,,,,,,,,,,,,,,,,,,,,,,,,,,,1112635,"Unit P, Little Moor Lane, Loughborough, Leicestershire, LE11 1SF",XK401,1CAHD,XK401/3016,21162,A0301111,757.36,CAHA
164,Revenue,CAHD,Research & Conferences,Conference Expenses,The Midland Hotel,1341.00, 04-Nov-2016,,,,,,,,,,,,,,,,,,,,,,,,,,,,,,,,,,,,,1240187,"Peter Street, Manchester, , , M60 2DS",KS002,1CAHD,KS002/5601,16054998,A0300228,1341.00,CAHA
165,Revenue,CAHD,Pathway 3 - (Complex Beds),Permanent Nursing,Beaufort Care Ltd,5271.00, 07-Nov-2016,,,,,,,,,,,,,,,,,,,,,,,,,,,,,,,,,,,,,1140388,"High Street, Hawkesbury Upton, South Glos, , GL9 1AU",IE903,1CAHD,IE903/6710,ORP20888,RP028903,5271.00,CAHA
166,Revenue,CAHD,Pathway 3 - (Complex Beds),Permanent Nursing,Beaufort Care Ltd,5271.00, 07-Nov-2016,,,,,,,,,,,,,,,,,,,,,,,,,,,,,,,,,,,,,1140388,"High Street, Hawkesbury Upton, South Glos, , GL9 1AU",IE903,1CAHD,IE903/6710,ORP20889,RP028904,5271.00,CAHA
167,Revenue,CAHD,Purchase of RAC places,Other L.A.'s - General,Bristol City Council,8425.80, 07-Nov-2016,,,,,,,,,,,,,,,,,,,,,,,,,,,,,,,,,,,,,0602385,"STS Finance & Procurement, City Hall, College Green, Bristol, BS1 5TR",XM100,1CAHD,XM100/6150,8003599793,A0297993,8425.80,CAHA
168,Revenue,CAHD,Home Care - Elderly - North,Private & Voluntary Home Care,Brunelcare,23822.65, 07-Nov-2016,,,,,,,,,,,,,,,,,,,,,,,,,,,,,,,,,,,,,0332192,"Saffron Gardens, Prospect Place, Whitehall, Bristol, BS5 9FF",IF365,1CAHD,IF365/6703,3000378,PP009412,23822.65,CAHA
169,Revenue,CAHD,Bed and Breakfast,Bed & Breakfast,Connolly & Callaghan Limited,546.00, 07-Nov-2016,,,,,,,,,,,,,,,,,,,,,,,,,,,,,,,,,,,,,0797326,"Hamilton House, 80 Stokes Croft, Bristol, , BS1 3QY",RC001,1CAHD,rc001/5605,66634,A0302674,655.20,CAHA
170,Revenue,CAHD,Bed and Breakfast,Bed & Breakfast,E J Bartlett,490.00, 07-Nov-2016,,,,,,,,,,,,,,,,,,,,,,,,,,,,,,,,,,,,,0625605,"Pool Farm, Wotton Road, Rangeworthy, S Gloucestershire, BS37 7NA",RC001,1CAHD,RC001/5605,4643,A0302885,588.00,CAHA
171,Revenue,CAHD,Bed and Breakfast,Bed & Breakfast,E J Bartlett,434.00, 07-Nov-2016,,,,,,,,,,,,,,,,,,,,,,,,,,,,,,,,,,,,,0625605,"Pool Farm, Wotton Road, Rangeworthy, S Gloucestershire, BS37 7NA",RC001,1CAHD,RC001/5605,4644,A0302886,520.80,CAHA
172,Revenue,CAHD,Bed and Breakfast,Bed & Breakfast,E J Bartlett,420.00, 07-Nov-2016,,,,,,,,,,,,,,,,,,,,,,,,,,,,,,,,,,,,,0625605,"Pool Farm, Wotton Road, Rangeworthy, S Gloucestershire, BS37 7NA",RC001,1CAHD,RC001/5605,4650,A0302892,504.00,CAHA
173,Revenue,CAHD,Home Care - Elderly - North,Day Care / Social Activities,Housing & Care 21,1173.90, 07-Nov-2016,,,,,,,,,,,,,,,,,,,,,,,,,,,,,,,,,,,,,1221941,"10th Floor Tricorn House, 51 - 53 Hagley Road, Birmingham , , B16 8TP",IF365,1CAHD,IF365/6704,INV296357,A0303002,1173.90,CAHA
174,Revenue,CAHD,Social Lettings Agency,Fees - General,Individual,16.85, 07-Nov-2016,,,,,,,,,,,,,,,,,,,,,,,,,,,,,,,,,,,,,1234269,"School House, Marissal House, Henbury, Bristol, BS10 7NH",RC003,1CAHD,RC003/5700/SG0056,3000500,PP009414,951.89,CAHA
175,Revenue,CAHD,Social Lettings Agency,Other Supplies & Services,Individual,951.89, 07-Nov-2016,,,,,,,,,,,,,,,,,,,,,,,,,,,,,,,,,,,,,1234269,"School House, Marissal House, Henbury, Bristol, BS10 7NH",RC003,1CAHD,RC003/5990/SG0056,3000500,PP009414,951.89,CAHA
176,Revenue,CAHD,Bed Purchasing - South,Permanent Nursing,Mrs Jackie Clench,3468.23, 07-Nov-2016,,,,,,,,,,,,,,,,,,,,,,,,,,,,,,,,,,,,,1240841,"2 Gays Road, Hanham, South Glos, , BS15 3JS",IE101,1CAHD,IE101/6710/S149307,ORP20893,RP028912,3468.23,CAHA
177,Revenue,CAHD,User Involvement,Other Supplies & Services,Penderels Trust,897.00, 07-Nov-2016,,,,,,,,,,,,,,,,,,,,,,,,,,,,,,,,,,,,,1240604,"Seven Stars Estate, Wheler Road, Whitley, Coventry, CV3 4LB",KS030,1CAHD,KS030/5990,0000136439,A0302835,897.00,CAHA
178,Revenue,CAHD,Home Care - Elderly - North,Other Small Contracts,SeeAbility,1180.48, 07-Nov-2016,,,,,,,,,,,,,,,,,,,,,,,,,,,,,,,,,,,,,0880589,"Newplan House, 41 East Street, Epsom, Surrey, KT17 1BL",IF365,1CAHD,if365/6705,40767,A0302335,1180.48,CAHA
179,Revenue,CAHD,Home Care - Elderly - North,Other Small Contracts,SeeAbility,1076.32, 07-Nov-2016,,,,,,,,,,,,,,,,,,,,,,,,,,,,,,,,,,,,,0880589,"Newplan House, 41 East Street, Epsom, Surrey, KT17 1BL",IF365,1CAHD,if365/6705,40785,A0302353,1076.32,CAHA
180,Revenue,CAHD,Home Care - Elderly - North,Other Small Contracts,SeeAbility,1293.32, 07-Nov-2016,,,,,,,,,,,,,,,,,,,,,,,,,,,,,,,,,,,,,0880589,"Newplan House, 41 East Street, Epsom, Surrey, KT17 1BL",IF365,1CAHD,if365/6705,40786,A0302355,1293.32,CAHA
181,Revenue,CAHD,Home Care - Elderly - North,Other Small Contracts,SeeAbility,1006.88, 07-Nov-2016,,,,,,,,,,,,,,,,,,,,,,,,,,,,,,,,,,,,,0880589,"Newplan House, 41 East Street, Epsom, Surrey, KT17 1BL",IF365,1CAHD,if365/6705,40789,A0302354,1006.88,CAHA
182,Revenue,CAHD,Home Care - Elderly - South,Day Care / Social Activities,Smile Independent Living Support Limited,218.04, 07-Nov-2016,,,,,,,,,,,,,,,,,,,,,,,,,,,,,,,,,,,,,1112714,"7a High Street, Chipping Sodbury, South Gloucestershire, , BS37 6BA",IF364,1CAHD,IF364/6704,1112714P201628,SP495778,1260.84,CAHA
183,Revenue,CAHD,Home Care - Elderly - South,Other Small Contracts,Smile Independent Living Support Limited,161.16, 07-Nov-2016,,,,,,,,,,,,,,,,,,,,,,,,,,,,,,,,,,,,,1112714,"7a High Street, Chipping Sodbury, South Gloucestershire, , BS37 6BA",IF364,1CAHD,IF364/6705,1112714P201628,SP495778,1260.84,CAHA
184,Revenue,CAHD,Home Care - Elderly - North,Day Care / Social Activities,Smile Independent Living Support Limited,673.08, 07-Nov-2016,,,,,,,,,,,,,,,,,,,,,,,,,,,,,,,,,,,,,1112714,"7a High Street, Chipping Sodbury, South Gloucestershire, , BS37 6BA",IF365,1CAHD,IF365/6704,1112714P201628,SP495778,1260.84,CAHA
185,Revenue,CAHD,Home Care - Elderly - North,Supported Living,Smile Independent Living Support Limited,208.56, 07-Nov-2016,,,,,,,,,,,,,,,,,,,,,,,,,,,,,,,,,,,,,1112714,"7a High Street, Chipping Sodbury, South Gloucestershire, , BS37 6BA",IF365,1CAHD,IF365/6707,1112714P201628,SP495778,1260.84,CAHA
186,Revenue,CAHD,Management & Support costs,Radio Pager/Mobile Phones,Telefonica UK Limited,25650.00, 07-Nov-2016,,,,,,,,,,,,,,,,,,,,,,,,,,,,,,,,,,,,,1073114,"Payment Processing Centre, Milton Keynes, , , MK77 1UB",KS153,1CAHD,KS153/5513,90333820,A0301166,30780.00,CAHA
187,Revenue,CAHD,18-25 Year Olds,Respite Planned - Residential,The Sheiling School Thornbury General Account,8604.29, 07-Nov-2016,,,,,,,,,,,,,,,,,,,,,,,,,,,,,,,,,,,,,0734392,"Thornbury Park, Thornbuy , South Gloucestershire, , BS35 1HP",IE025,1CAHD,IE025/6702/S140914,1177,A0302339,8604.29,CAHA
188,Revenue,CAHD,18-25 Year Olds,Respite Planned - Residential,The Sheiling School Thornbury General Account,15130.54, 07-Nov-2016,,,,,,,,,,,,,,,,,,,,,,,,,,,,,,,,,,,,,0734392,"Thornbury Park, Thornbuy , South Gloucestershire, , BS35 1HP",IE025,1CAHD,IE025/6702/S140914,1178,A0301812,15130.54,CAHA
189,Revenue,CAHD,South Glos Users in South Glos Homes,Permanent Nursing,Brunelcare,51086.88, 08-Nov-2016,,,,,,,,,,,,,,,,,,,,,,,,,,,,,,,,,,,,,0332192,"Saffron Gardens, Prospect Place, Whitehall, Bristol, BS5 9FF",IE900,1CAHD,IE900/6710,ORP20898,RP028917,51086.88,CAHA
190,Revenue,CAHD,Woodleaze,Prop.Serv. General Repairs,George Grimes,3000.00, 08-Nov-2016,,,,,,,,,,,,,,,,,,,,,,,,,,,,,,,,,,,,,1198282,"81 Westons Hill Drive, Emersons Green, Bristol, , BS16 7DN",KE218,1CAHD,KE218/3010,GG/004/2016,A0302780,3000.00,CAHA
191,Revenue,CAHD,Woodleaze,Prop.Serv. General Repairs,George Grimes,2990.00, 08-Nov-2016,,,,,,,,,,,,,,,,,,,,,,,,,,,,,,,,,,,,,1198282,"81 Westons Hill Drive, Emersons Green, Bristol, , BS16 7DN",KE218,1CAHD,KE218/3010,GG/006/2016,A0301879,2990.00,CAHA
192,Revenue,CAHD,Alexandra Way,Premises Maintenance by Contractor,George Grimes,525.00, 08-Nov-2016,,,,,,,,,,,,,,,,,,,,,,,,,,,,,,,,,,,,,1198282,"81 Westons Hill Drive, Emersons Green, Bristol, , BS16 7DN",KE112,1CAHD,KE112/3016,GG/007/2016,A0302405,525.00,CAHA
193,Revenue,CAHD,18-25 Year Olds,Supported Living,Lloyds TSB Commercial Finance Limited,2878.40, 08-Nov-2016,,,,,,,,,,,,,,,,,,,,,,,,,,,,,,,,,,,,,0743150,"P O Box 10484, Harlow, , , CM20 9GY",IE025,1CAHD,IE025/6707,1108203P201627,SP496072,34561.23,CAHA
194,Revenue,CAHD,Home Care - Elderly - South,Day Care / Social Activities,Lloyds TSB Commercial Finance Limited,4939.48, 08-Nov-2016,,,,,,,,,,,,,,,,,,,,,,,,,,,,,,,,,,,,,0743150,"P O Box 10484, Harlow, , , CM20 9GY",IF364,1CAHD,IF364/6704,1108203P201627,SP496072,34561.23,CAHA
195,Revenue,CAHD,Home Care - Elderly - South,Other Small Contracts,Lloyds TSB Commercial Finance Limited,5911.87, 08-Nov-2016,,,,,,,,,,,,,,,,,,,,,,,,,,,,,,,,,,,,,0743150,"P O Box 10484, Harlow, , , CM20 9GY",IF364,1CAHD,IF364/6705,1108203P201627,SP496072,34561.23,CAHA
196,Revenue,CAHD,Home Care - Elderly - South,Supported Living,Lloyds TSB Commercial Finance Limited,8385.87, 08-Nov-2016,,,,,,,,,,,,,,,,,,,,,,,,,,,,,,,,,,,,,0743150,"P O Box 10484, Harlow, , , CM20 9GY",IF364,1CAHD,IF364/6707,1108203P201627,SP496072,34561.23,CAHA
197,Revenue,CAHD,Home Care - Elderly - North,Day Care / Social Activities,Lloyds TSB Commercial Finance Limited,198.24, 08-Nov-2016,,,,,,,,,,,,,,,,,,,,,,,,,,,,,,,,,,,,,0743150,"P O Box 10484, Harlow, , , CM20 9GY",IF365,1CAHD,IF365/6704,1108203P201627,SP496072,34561.23,CAHA
198,Revenue,CAHD,Home Care - Elderly - North,Supported Living,Lloyds TSB Commercial Finance Limited,1470.28, 08-Nov-2016,,,,,,,,,,,,,,,,,,,,,,,,,,,,,,,,,,,,,0743150,"P O Box 10484, Harlow, , , CM20 9GY",IF365,1CAHD,IF365/6707,1108203P201627,SP496072,34561.23,CAHA
199,Revenue,CAHD,Younger MH non-res purchasing,Other Small Contracts,Lloyds TSB Commercial Finance Limited,10777.09, 08-Nov-2016,,,,,,,,,,,,,,,,,,,,,,,,,,,,,,,,,,,,,0743150,"P O Box 10484, Harlow, , , CM20 9GY",IP335,1CAHD,IP335/6705,1108203P201627,SP496072,34561.23,CAHA
200,Revenue,CAHD,18-25 Year Olds,Supported Living,Lloyds TSB Commercial Finance Limited,2878.40, 08-Nov-2016,,,,,,,,,,,,,,,,,,,,,,,,,,,,,,,,,,,,,0743150,"P O Box 10484, Harlow, , , CM20 9GY",IE025,1CAHD,IE025/6707,1108203P201628,SP496073,34869.63,CAHA
201,Revenue,CAHD,Home Care - Elderly - South,Day Care / Social Activities,Lloyds TSB Commercial Finance Limited,5017.95, 08-Nov-2016,,,,,,,,,,,,,,,,,,,,,,,,,,,,,,,,,,,,,0743150,"P O Box 10484, Harlow, , , CM20 9GY",IF364,1CAHD,IF364/6704,1108203P201628,SP496073,34869.63,CAHA
202,Revenue,CAHD,Home Care - Elderly - South,Other Small Contracts,Lloyds TSB Commercial Finance Limited,5907.30, 08-Nov-2016,,,,,,,,,,,,,,,,,,,,,,,,,,,,,,,,,,,,,0743150,"P O Box 10484, Harlow, , , CM20 9GY",IF364,1CAHD,IF364/6705,1108203P201628,SP496073,34869.63,CAHA
203,Revenue,CAHD,Home Care - Elderly - South,Supported Living,Lloyds TSB Commercial Finance Limited,8203.02, 08-Nov-2016,,,,,,,,,,,,,,,,,,,,,,,,,,,,,,,,,,,,,0743150,"P O Box 10484, Harlow, , , CM20 9GY",IF364,1CAHD,IF364/6707,1108203P201628,SP496073,34869.63,CAHA
204,Revenue,CAHD,Home Care - Elderly - North,Day Care / Social Activities,Lloyds TSB Commercial Finance Limited,198.24, 08-Nov-2016,,,,,,,,,,,,,,,,,,,,,,,,,,,,,,,,,,,,,0743150,"P O Box 10484, Harlow, , , CM20 9GY",IF365,1CAHD,IF365/6704,1108203P201628,SP496073,34869.63,CAHA
205,Revenue,CAHD,Home Care - Elderly - North,Supported Living,Lloyds TSB Commercial Finance Limited,1850.24, 08-Nov-2016,,,,,,,,,,,,,,,,,,,,,,,,,,,,,,,,,,,,,0743150,"P O Box 10484, Harlow, , , CM20 9GY",IF365,1CAHD,IF365/6707,1108203P201628,SP496073,34869.63,CAHA
206,Revenue,CAHD,Younger MH non-res purchasing,Other Small Contracts,Lloyds TSB Commercial Finance Limited,10814.48, 08-Nov-2016,,,,,,,,,,,,,,,,,,,,,,,,,,,,,,,,,,,,,0743150,"P O Box 10484, Harlow, , , CM20 9GY",IP335,1CAHD,IP335/6705,1108203P201628,SP496073,34869.63,CAHA
207,Revenue,CAHD,Home Care - Elderly - South,Day Care / Social Activities,Milestones Supported Living Services,7538.23, 08-Nov-2016,,,,,,,,,,,,,,,,,,,,,,,,,,,,,,,,,,,,,1210217,"Milestones Trust, Unit 10, Eclipse Office Park, High Street, Staple Hill, Bristol, BS16 5EL",IF364,1CAHD,IF364/6704,1210217P201602,SP496076,17769.14,CAHA
208,Revenue,CAHD,Home Care - Elderly - South,Other Small Contracts,Milestones Supported Living Services,4013.10, 08-Nov-2016,,,,,,,,,,,,,,,,,,,,,,,,,,,,,,,,,,,,,1210217,"Milestones Trust, Unit 10, Eclipse Office Park, High Street, Staple Hill, Bristol, BS16 5EL",IF364,1CAHD,IF364/6705,1210217P201602,SP496076,17769.14,CAHA
209,Revenue,CAHD,Home Care - Elderly - South,Supported Living,Milestones Supported Living Services,2134.72, 08-Nov-2016,,,,,,,,,,,,,,,,,,,,,,,,,,,,,,,,,,,,,1210217,"Milestones Trust, Unit 10, Eclipse Office Park, High Street, Staple Hill, Bristol, BS16 5EL",IF364,1CAHD,IF364/6707,1210217P201602,SP496076,17769.14,CAHA
210,Revenue,CAHD,Home Care - Elderly - North,Day Care / Social Activities,Milestones Supported Living Services,984.29, 08-Nov-2016,,,,,,,,,,,,,,,,,,,,,,,,,,,,,,,,,,,,,1210217,"Milestones Trust, Unit 10, Eclipse Office Park, High Street, Staple Hill, Bristol, BS16 5EL",IF365,1CAHD,IF365/6704,1210217P201602,SP496076,17769.14,CAHA
211,Revenue,CAHD,Home Care - Elderly - North,Other Small Contracts,Milestones Supported Living Services,2662.08, 08-Nov-2016,,,,,,,,,,,,,,,,,,,,,,,,,,,,,,,,,,,,,1210217,"Milestones Trust, Unit 10, Eclipse Office Park, High Street, Staple Hill, Bristol, BS16 5EL",IF365,1CAHD,IF365/6705,1210217P201602,SP496076,17769.14,CAHA
212,Revenue,CAHD,Home Care - Elderly - North,Supported Living,Milestones Supported Living Services,140.08, 08-Nov-2016,,,,,,,,,,,,,,,,,,,,,,,,,,,,,,,,,,,,,1210217,"Milestones Trust, Unit 10, Eclipse Office Park, High Street, Staple Hill, Bristol, BS16 5EL",IF365,1CAHD,IF365/6707,1210217P201602,SP496076,17769.14,CAHA
213,Revenue,CAHD,Day Care - North,Day Care / Social Activities,Milestones Supported Living Services,131.84, 08-Nov-2016,,,,,,,,,,,,,,,,,,,,,,,,,,,,,,,,,,,,,1210217,"Milestones Trust, Unit 10, Eclipse Office Park, High Street, Staple Hill, Bristol, BS16 5EL",IF901,1CAHD,IF901/6704,1210217P201602,SP496076,17769.14,CAHA
214,Revenue,CAHD,Younger MH non-res purchasing,Day Care / Social Activities,Milestones Supported Living Services,32.96, 08-Nov-2016,,,,,,,,,,,,,,,,,,,,,,,,,,,,,,,,,,,,,1210217,"Milestones Trust, Unit 10, Eclipse Office Park, High Street, Staple Hill, Bristol, BS16 5EL",IP335,1CAHD,IP335/6704,1210217P201602,SP496076,17769.14,CAHA
215,Revenue,CAHD,Home care - Elderly MH - North,Other Small Contracts,Milestones Supported Living Services,131.84, 08-Nov-2016,,,,,,,,,,,,,,,,,,,,,,,,,,,,,,,,,,,,,1210217,"Milestones Trust, Unit 10, Eclipse Office Park, High Street, Staple Hill, Bristol, BS16 5EL",IP336,1CAHD,IP336/6705,1210217P201602,SP496076,17769.14,CAHA
216,Revenue,CAHD,Social Lettings Agency,Fees - General,Individual,10.53, 08-Nov-2016,,,,,,,,,,,,,,,,,,,,,,,,,,,,,,,,,,,,,1172417,"58 Claverham Road, Fishponds, Bristol, , BS16 2HS",RC003,1CAHD,RC003/5700/SG0002,3000399,PP009419,595.11,CAHA
217,Revenue,CAHD,Social Lettings Agency,Other Supplies & Services,Individual,595.11, 08-Nov-2016,,,,,,,,,,,,,,,,,,,,,,,,,,,,,,,,,,,,,1172417,"58 Claverham Road, Fishponds, Bristol, , BS16 2HS",RC003,1CAHD,RC003/5990/SG0002,3000399,PP009419,595.11,CAHA
218,Revenue,CAHD,Social Lettings Agency,Fees - General,Individual,10.53, 08-Nov-2016,,,,,,,,,,,,,,,,,,,,,,,,,,,,,,,,,,,,,1206742,"12 Walshe Avenue, Chipping Sodbury, South Gloucestershire, , BS37 6NR",RC003,1CAHD,RC003/5700/SG0034,3000443,PP009418,595.11,CAHA
219,Revenue,CAHD,Social Lettings Agency,Other Supplies & Services,Individual,595.11, 08-Nov-2016,,,,,,,,,,,,,,,,,,,,,,,,,,,,,,,,,,,,,1206742,"12 Walshe Avenue, Chipping Sodbury, South Gloucestershire, , BS37 6NR",RC003,1CAHD,RC003/5990/SG0034,3000443,PP009418,595.11,CAHA
220,Revenue,CAHD,Mental Capacity Act / DOLS,Grants to Voluntary Bodies,R S Harty,1135.75, 08-Nov-2016,,,,,,,,,,,,,,,,,,,,,,,,,,,,,,,,,,,,,1233009,"Langurra, Langurroc Road, Crantock, Newquay, TR8 5RB",IP100,1CAHD,ip100/5673,012,A0303073,1135.75,CAHA
221,Revenue,CAHD,Home Care - Elderly - South,Day Care / Social Activities,Selborne Care Ltd,525.82, 08-Nov-2016,,,,,,,,,,,,,,,,,,,,,,,,,,,,,,,,,,,,,1103242,"97 Friar Street, Droitwich, Worcestershire, , WR9 8EG",IF364,1CAHD,IF364/6704,1103242P201627,SP496070,2439.46,CAHA
222,Revenue,CAHD,Home Care - Elderly - South,Supported Living,Selborne Care Ltd,1275.76, 08-Nov-2016,,,,,,,,,,,,,,,,,,,,,,,,,,,,,,,,,,,,,1103242,"97 Friar Street, Droitwich, Worcestershire, , WR9 8EG",IF364,1CAHD,IF364/6707,1103242P201627,SP496070,2439.46,CAHA
223,Revenue,CAHD,Home Care - Elderly - North,Day Care / Social Activities,Selborne Care Ltd,534.44, 08-Nov-2016,,,,,,,,,,,,,,,,,,,,,,,,,,,,,,,,,,,,,1103242,"97 Friar Street, Droitwich, Worcestershire, , WR9 8EG",IF365,1CAHD,IF365/6704,1103242P201627,SP496070,2439.46,CAHA
224,Revenue,CAHD,Home Care - Elderly - North,Supported Living,Selborne Care Ltd,103.44, 08-Nov-2016,,,,,,,,,,,,,,,,,,,,,,,,,,,,,,,,,,,,,1103242,"97 Friar Street, Droitwich, Worcestershire, , WR9 8EG",IF365,1CAHD,IF365/6707,1103242P201627,SP496070,2439.46,CAHA
225,Revenue,CAHD,Home Care - Elderly - South,Day Care / Social Activities,The Brandon Trust,3339.10, 08-Nov-2016,,,,,,,,,,,,,,,,,,,,,,,,,,,,,,,,,,,,,0434333,"Olympus House, Brittania Road, Patchway, South Gloucestershire, BS34 5TA",IF364,1CAHD,IF364/6704,0434333P201627,SP496066,6266.27,CAHA
226,Revenue,CAHD,Home Care - Elderly - South,Other Small Contracts,The Brandon Trust,320.40, 08-Nov-2016,,,,,,,,,,,,,,,,,,,,,,,,,,,,,,,,,,,,,0434333,"Olympus House, Brittania Road, Patchway, South Gloucestershire, BS34 5TA",IF364,1CAHD,IF364/6705,0434333P201627,SP496066,6266.27,CAHA
227,Revenue,CAHD,Home Care - Elderly - North,Day Care / Social Activities,The Brandon Trust,698.65, 08-Nov-2016,,,,,,,,,,,,,,,,,,,,,,,,,,,,,,,,,,,,,0434333,"Olympus House, Brittania Road, Patchway, South Gloucestershire, BS34 5TA",IF365,1CAHD,IF365/6704,0434333P201627,SP496066,6266.27,CAHA
228,Revenue,CAHD,Home Care - Elderly - North,Other Small Contracts,The Brandon Trust,53.40, 08-Nov-2016,,,,,,,,,,,,,,,,,,,,,,,,,,,,,,,,,,,,,0434333,"Olympus House, Brittania Road, Patchway, South Gloucestershire, BS34 5TA",IF365,1CAHD,IF365/6705,0434333P201627,SP496066,6266.27,CAHA
229,Revenue,CAHD,Home Care - Elderly - North,Supported Living,The Brandon Trust,1854.72, 08-Nov-2016,,,,,,,,,,,,,,,,,,,,,,,,,,,,,,,,,,,,,0434333,"Olympus House, Brittania Road, Patchway, South Gloucestershire, BS34 5TA",IF365,1CAHD,IF365/6707,0434333P201627,SP496066,6266.27,CAHA
230,Revenue,CAHD,Community Support - North,Preventative Assistance,The Brandon Trust,1684.32, 08-Nov-2016,,,,,,,,,,,,,,,,,,,,,,,,,,,,,,,,,,,,,0434333,"Olympus House, Brittania Road, Patchway, South Gloucestershire, BS34 5TA",KR365,1CAHD,kr365/5880,SINV/00056781,A0303070,1684.32,CAHA
231,Revenue,CAHD,Home Care - Elderly - South,Other Small Contracts,AliMo Care Ltd,1577.28, 09-Nov-2016,,,,,,,,,,,,,,,,,,,,,,,,,,,,,,,,,,,,,1203939,"Kingswood House, South Road, Kingswood, Bristol, BS15 8JF",IF364,1CAHD,IF364/6705,1203939P201626,SP494633,1577.28,CAHA
232,Revenue,CAHD,Information Systems - Software,Software Support & Maintenance,Capita Business Services Ltd,20219.26, 09-Nov-2016,,,,,,,,,,,,,,,,,,,,,,,,,,,,,,,,,,,,,0342768,"PO Box 212, Faverdale Industrial Estate, Darlington, , DL1 9HN",KS042,1CAHD,KS042/5552,6003415078,A0300980,24263.10,CAHA
233,Revenue,CAHD,Bed and Breakfast,Bed & Breakfast,Connolly & Callaghan Limited,511.00, 09-Nov-2016,,,,,,,,,,,,,,,,,,,,,,,,,,,,,,,,,,,,,0797326,"Hamilton House, 80 Stokes Croft, Bristol, , BS1 3QY",RC001,1CAHD,rc001/5605,66604,A0302690,613.20,CAHA
234,Revenue,CAHD,Bed and Breakfast,Bed & Breakfast,Connolly & Callaghan Limited,476.00, 09-Nov-2016,,,,,,,,,,,,,,,,,,,,,,,,,,,,,,,,,,,,,0797326,"Hamilton House, 80 Stokes Croft, Bristol, , BS1 3QY",RC001,1CAHD,rc001/5605,66605,A0302649,571.20,CAHA
235,Revenue,CAHD,Bed and Breakfast,Bed & Breakfast,Connolly & Callaghan Limited,441.00, 09-Nov-2016,,,,,,,,,,,,,,,,,,,,,,,,,,,,,,,,,,,,,0797326,"Hamilton House, 80 Stokes Croft, Bristol, , BS1 3QY",RC001,1CAHD,RC001/5605,66606,A0302650,529.20,CAHA
236,Revenue,CAHD,Bed and Breakfast,Bed & Breakfast,Connolly & Callaghan Limited,546.00, 09-Nov-2016,,,,,,,,,,,,,,,,,,,,,,,,,,,,,,,,,,,,,0797326,"Hamilton House, 80 Stokes Croft, Bristol, , BS1 3QY",RC001,1CAHD,rc001/5605,66608,A0302651,655.20,CAHA
237,Revenue,CAHD,Bed and Breakfast,Bed & Breakfast,Connolly & Callaghan Limited,581.00, 09-Nov-2016,,,,,,,,,,,,,,,,,,,,,,,,,,,,,,,,,,,,,0797326,"Hamilton House, 80 Stokes Croft, Bristol, , BS1 3QY",RC001,1CAHD,rc001/5605,66610,A0302652,697.20,CAHA
238,Revenue,CAHD,Bed and Breakfast,Bed & Breakfast,Connolly & Callaghan Limited,546.00, 09-Nov-2016,,,,,,,,,,,,,,,,,,,,,,,,,,,,,,,,,,,,,0797326,"Hamilton House, 80 Stokes Croft, Bristol, , BS1 3QY",RC001,1CAHD,RC001/5605,66611,A0302653,655.20,CAHA
239,Revenue,CAHD,Bed and Breakfast,Bed & Breakfast,Connolly & Callaghan Limited,546.00, 09-Nov-2016,,,,,,,,,,,,,,,,,,,,,,,,,,,,,,,,,,,,,0797326,"Hamilton House, 80 Stokes Croft, Bristol, , BS1 3QY",RC001,1CAHD,RC001/5605,66613,A0302655,655.20,CAHA
240,Revenue,CAHD,Bed and Breakfast,Bed & Breakfast,Connolly & Callaghan Limited,476.00, 09-Nov-2016,,,,,,,,,,,,,,,,,,,,,,,,,,,,,,,,,,,,,0797326,"Hamilton House, 80 Stokes Croft, Bristol, , BS1 3QY",RC001,1CAHD,RC001/5605,66625,A0303324,571.20,CAHA
241,Revenue,CAHD,Bed and Breakfast,Bed & Breakfast,Connolly & Callaghan Limited,476.00, 09-Nov-2016,,,,,,,,,,,,,,,,,,,,,,,,,,,,,,,,,,,,,0797326,"Hamilton House, 80 Stokes Croft, Bristol, , BS1 3QY",RC001,1CAHD,rc001/5605,66628,A0302668,571.20,CAHA
242,Revenue,CAHD,Bed and Breakfast,Bed & Breakfast,Connolly & Callaghan Limited,546.00, 09-Nov-2016,,,,,,,,,,,,,,,,,,,,,,,,,,,,,,,,,,,,,0797326,"Hamilton House, 80 Stokes Croft, Bristol, , BS1 3QY",RC001,1CAHD,RC001/5605,66631,A0302671,655.20,CAHA
243,Revenue,CAHD,Bed and Breakfast,Bed & Breakfast,Connolly & Callaghan Limited,616.00, 09-Nov-2016,,,,,,,,,,,,,,,,,,,,,,,,,,,,,,,,,,,,,0797326,"Hamilton House, 80 Stokes Croft, Bristol, , BS1 3QY",RC001,1CAHD,rc001/5605,66636,A0302676,739.20,CAHA
244,Revenue,CAHD,Bed and Breakfast,Bed & Breakfast,Connolly & Callaghan Limited,511.00, 09-Nov-2016,,,,,,,,,,,,,,,,,,,,,,,,,,,,,,,,,,,,,0797326,"Hamilton House, 80 Stokes Croft, Bristol, , BS1 3QY",RC001,1CAHD,RC001/5605,66638,A0302678,613.20,CAHA
245,Revenue,CAHD,Bed and Breakfast,Bed & Breakfast,Connolly & Callaghan Limited,476.00, 09-Nov-2016,,,,,,,,,,,,,,,,,,,,,,,,,,,,,,,,,,,,,0797326,"Hamilton House, 80 Stokes Croft, Bristol, , BS1 3QY",RC001,1CAHD,rc001/5605,66640,A0302680,571.20,CAHA
246,Revenue,CAHD,Bed and Breakfast,Bed & Breakfast,Connolly & Callaghan Limited,476.00, 09-Nov-2016,,,,,,,,,,,,,,,,,,,,,,,,,,,,,,,,,,,,,0797326,"Hamilton House, 80 Stokes Croft, Bristol, , BS1 3QY",RC001,1CAHD,rc001/5605,66643,A0302682,571.20,CAHA
247,Revenue,CAHD,Bed and Breakfast,Bed & Breakfast,Connolly & Callaghan Limited,511.00, 09-Nov-2016,,,,,,,,,,,,,,,,,,,,,,,,,,,,,,,,,,,,,0797326,"Hamilton House, 80 Stokes Croft, Bristol, , BS1 3QY",RC001,1CAHD,RC001/5605,66644,A0302683,613.20,CAHA
248,Revenue,CAHD,Bed and Breakfast,Bed & Breakfast,Connolly & Callaghan Limited,546.00, 09-Nov-2016,,,,,,,,,,,,,,,,,,,,,,,,,,,,,,,,,,,,,0797326,"Hamilton House, 80 Stokes Croft, Bristol, , BS1 3QY",RC001,1CAHD,RC001/5605,66645,A0302684,655.20,CAHA
249,Revenue,CAHD,Bed and Breakfast,Bed & Breakfast,Connolly & Callaghan Limited,511.00, 09-Nov-2016,,,,,,,,,,,,,,,,,,,,,,,,,,,,,,,,,,,,,0797326,"Hamilton House, 80 Stokes Croft, Bristol, , BS1 3QY",RC001,1CAHD,RC001/5605,66646,A0302685,613.20,CAHA
250,Revenue,CAHD,Bed and Breakfast,Bed & Breakfast,Connolly & Callaghan Limited,791.00, 09-Nov-2016,,,,,,,,,,,,,,,,,,,,,,,,,,,,,,,,,,,,,0797326,"Hamilton House, 80 Stokes Croft, Bristol, , BS1 3QY",RC001,1CAHD,RC001/5605,66651,A0302689,949.20,CAHA
251,Revenue,CAHD,Home Care - Elderly - South,Other Small Contracts,Everycare (Bristol) Ltd,3174.08, 09-Nov-2016,,,,,,,,,,,,,,,,,,,,,,,,,,,,,,,,,,,,,1174803,"The Vassall Centre, Gill Avenue, Fishponds, Bristol, BS16 2QQ",IF364,1CAHD,IF364/6705,1174803P201626,SP496079,5481.70,CAHA
252,Revenue,CAHD,Home Care - Elderly - North,Other Small Contracts,Everycare (Bristol) Ltd,2307.62, 09-Nov-2016,,,,,,,,,,,,,,,,,,,,,,,,,,,,,,,,,,,,,1174803,"The Vassall Centre, Gill Avenue, Fishponds, Bristol, BS16 2QQ",IF365,1CAHD,IF365/6705,1174803P201626,SP496079,5481.70,CAHA
253,Revenue,CAHD,Home Care - Elderly - South,Other Small Contracts,Firstpoint Homecare Ltd,1027.00, 09-Nov-2016,,,,,,,,,,,,,,,,,,,,,,,,,,,,,,,,,,,,,1181924,"41 Whitcomb Street, London, , , WC2H 7DT",IF364,1CAHD,IF364/6705,1181924P201626,SP496080,1493.10,CAHA
254,Revenue,CAHD,Home Care - Elderly - North,Day Care / Social Activities,Firstpoint Homecare Ltd,118.50, 09-Nov-2016,,,,,,,,,,,,,,,,,,,,,,,,,,,,,,,,,,,,,1181924,"41 Whitcomb Street, London, , , WC2H 7DT",IF365,1CAHD,IF365/6704,1181924P201626,SP496080,1493.10,CAHA
255,Revenue,CAHD,Home Care - Elderly - North,Other Small Contracts,Firstpoint Homecare Ltd,347.60, 09-Nov-2016,,,,,,,,,,,,,,,,,,,,,,,,,,,,,,,,,,,,,1181924,"41 Whitcomb Street, London, , , WC2H 7DT",IF365,1CAHD,IF365/6705,1181924P201626,SP496080,1493.10,CAHA
256,Revenue,CAHD,Home Care - Elderly - South,Other Small Contracts,Homecare 4U,337.81, 09-Nov-2016,,,,,,,,,,,,,,,,,,,,,,,,,,,,,,,,,,,,,1220051,"Tameway Tower, Bridge Street, Walsall, , WS1 1JZ",IF364,1CAHD,IF364/6705,1220051P201629,SP496082,1257.63,CAHA
257,Revenue,CAHD,Home Care - Elderly - North,Other Small Contracts,Homecare 4U,919.82, 09-Nov-2016,,,,,,,,,,,,,,,,,,,,,,,,,,,,,,,,,,,,,1220051,"Tameway Tower, Bridge Street, Walsall, , WS1 1JZ",IF365,1CAHD,IF365/6705,1220051P201629,SP496082,1257.63,CAHA
258,Revenue,CAHD,Home Care - Elderly - South,Other Small Contracts,Kensington Community Care,3161.57, 09-Nov-2016,,,,,,,,,,,,,,,,,,,,,,,,,,,,,,,,,,,,,1191014,"Unit A3 Spinnaker House, Spinnaker Road, Hempstead, Gloucester, GL2 5FD",IF364,1CAHD,IF364/6705,1191014P201628,SP496081,8544.01,CAHA
259,Revenue,CAHD,Home Care - Elderly - North,Other Small Contracts,Kensington Community Care,5382.44, 09-Nov-2016,,,,,,,,,,,,,,,,,,,,,,,,,,,,,,,,,,,,,1191014,"Unit A3 Spinnaker House, Spinnaker Road, Hempstead, Gloucester, GL2 5FD",IF365,1CAHD,IF365/6705,1191014P201628,SP496081,8544.01,CAHA
260,Revenue,CAHD,Home Care - Elderly - North,Other Small Contracts,Make it Mentoring CIC Ltd,3044.32, 09-Nov-2016,,,,,,,,,,,,,,,,,,,,,,,,,,,,,,,,,,,,,1227892,"6 St Aldams Drive, Pucklechurch, South Gloucestershire, , BS16 9QQ",IF365,1CAHD,IF365/6705,198,A0291302,3044.32,CAHA
261,Revenue,CAHD,Younger MH non-res purchasing,Supported Living,Maples Community Care Limited,1214.40, 09-Nov-2016,,,,,,,,,,,,,,,,,,,,,,,,,,,,,,,,,,,,,0892962,"The Laurels, 24 High Street, Staple Hill, South Gloucestershire, BS16 5HW",IP335,1CAHD,IP335/6707,11741,A0301321,1214.40,CAHA
262,Revenue,CAHD,Home Care - Elderly - South,Supported Living,Maples Community Care Limited,541.42, 09-Nov-2016,,,,,,,,,,,,,,,,,,,,,,,,,,,,,,,,,,,,,0892962,"The Laurels, 24 High Street, Staple Hill, South Gloucestershire, BS16 5HW",IF364,1CAHD,IF364/6707,11744,A0301300,541.42,CAHA
263,Revenue,CAHD,Younger MH non-res purchasing,Supported Living,Maples Community Care Limited,1168.86, 09-Nov-2016,,,,,,,,,,,,,,,,,,,,,,,,,,,,,,,,,,,,,0892962,"The Laurels, 24 High Street, Staple Hill, South Gloucestershire, BS16 5HW",IP335,1CAHD,IP335/6707,11745,A0301626,1168.86,CAHA
264,Revenue,CAHD,Home Care - Elderly - South,Other Small Contracts,Medacs Home Care,14.36, 09-Nov-2016,,,,,,,,,,,,,,,,,,,,,,,,,,,,,,,,,,,,,1089448,"3rd Floor 1 Belle Vue Square, Broughton Road, Skipton, North Yorkshire, BD23 1FJ",IF364,1CAHD,IF364/6705,1089448P201624,SP496078,560.04,CAHA
265,Revenue,CAHD,Home Care - Elderly - North,Other Small Contracts,Medacs Home Care,244.12, 09-Nov-2016,,,,,,,,,,,,,,,,,,,,,,,,,,,,,,,,,,,,,1089448,"3rd Floor 1 Belle Vue Square, Broughton Road, Skipton, North Yorkshire, BD23 1FJ",IF365,1CAHD,IF365/6705,1089448P201624,SP496078,560.04,CAHA
266,Revenue,CAHD,Home Care - Elderly - North,Supported Living,Medacs Home Care,301.56, 09-Nov-2016,,,,,,,,,,,,,,,,,,,,,,,,,,,,,,,,,,,,,1089448,"3rd Floor 1 Belle Vue Square, Broughton Road, Skipton, North Yorkshire, BD23 1FJ",IF365,1CAHD,IF365/6707,1089448P201624,SP496078,560.04,CAHA
267,Revenue,CAHD,Home Care - Elderly - South,Day Care / Social Activities,NAS Services Limited,572.13, 09-Nov-2016,,,,,,,,,,,,,,,,,,,,,,,,,,,,,,,,,,,,,0531689,"Church House, Church Road, Filton, South Gloucestershire, BS34 7BD",IF364,1CAHD,IF364/6704,0531689P201625,SP494763,2371.65,CAHA
268,Revenue,CAHD,Home Care - Elderly - South,Supported Living,NAS Services Limited,29.34, 09-Nov-2016,,,,,,,,,,,,,,,,,,,,,,,,,,,,,,,,,,,,,0531689,"Church House, Church Road, Filton, South Gloucestershire, BS34 7BD",IF364,1CAHD,IF364/6707,0531689P201625,SP494763,2371.65,CAHA
269,Revenue,CAHD,Home Care - Elderly - North,Day Care / Social Activities,NAS Services Limited,1173.60, 09-Nov-2016,,,,,,,,,,,,,,,,,,,,,,,,,,,,,,,,,,,,,0531689,"Church House, Church Road, Filton, South Gloucestershire, BS34 7BD",IF365,1CAHD,IF365/6704,0531689P201625,SP494763,2371.65,CAHA
270,Revenue,CAHD,Home Care - Elderly - North,Supported Living,NAS Services Limited,361.86, 09-Nov-2016,,,,,,,,,,,,,,,,,,,,,,,,,,,,,,,,,,,,,0531689,"Church House, Church Road, Filton, South Gloucestershire, BS34 7BD",IF365,1CAHD,IF365/6707,0531689P201625,SP494763,2371.65,CAHA
271,Revenue,CAHD,Younger MH non-res purchasing,Day Care / Social Activities,NAS Services Limited,234.72, 09-Nov-2016,,,,,,,,,,,,,,,,,,,,,,,,,,,,,,,,,,,,,0531689,"Church House, Church Road, Filton, South Gloucestershire, BS34 7BD",IP335,1CAHD,IP335/6704,0531689P201625,SP494763,2371.65,CAHA
272,Revenue,CAHD,Community Promoting Independence Team,"Holidays, Outings & Visits",Neville Williams,619.00, 09-Nov-2016,,,,,,,,,,,,,,,,,,,,,,,,,,,,,,,,,,,,,1187357,"Neville Taxi, 25 Burnham Road, Bath, , BA2 3RY",KV345,1CAHD,KV345/5740,048,A0301373,619.00,CAHA
273,Revenue,CAHD,Planning and Partnerships Procurement,Other Supplies & Services,Tynetec Limited,2310.40, 09-Nov-2016,,,,,,,,,,,,,,,,,,,,,,,,,,,,,,,,,,,,,1181564,"Cowley Road, Blyth Riverside Business Park, Blyth, Northumberland, NE24 5TF",IS703,1CAHD,IS703/5990,10000147507,A0303178,2772.48,CAHA
274,Revenue,CAHD,Home Care - Elderly - North,Supported Living,Willowbank Care Limited,2839.20, 10-Nov-2016,,,,,,,,,,,,,,,,,,,,,,,,,,,,,,,,,,,,,0703572,"88 Filton Road, Horfield, Bristol, , BS7 0PD",IF365,1CAHD,IF365/6707,WBL060 WIL/PB 1.,A0303263,2839.20,CAHA
275,Revenue,CAHD,Home Care - Elderly - North,Supported Living,Willowbank Care Limited,1315.72, 09-Nov-2016,,,,,,,,,,,,,,,,,,,,,,,,,,,,,,,,,,,,,0703572,"88 Filton Road, Horfield, Bristol, , BS7 0PD",IF365,1CAHD,IF365/6707,WIL0085 WIL/CHay 1.,A0303205,1315.72,CAHA
276,Revenue,CAHD,Home Care - Elderly - North,Supported Living,Willowbank Care Limited,2492.52, 09-Nov-2016,,,,,,,,,,,,,,,,,,,,,,,,,,,,,,,,,,,,,0703572,"88 Filton Road, Horfield, Bristol, , BS7 0PD",IF365,1CAHD,IF365/6707,WIL0122 WIL/VS1.,A0303222,2492.52,CAHA
277,Revenue,CAHD,Home Care - Elderly - North,Supported Living,Willowbank Care Limited,4847.44, 09-Nov-2016,,,,,,,,,,,,,,,,,,,,,,,,,,,,,,,,,,,,,0703572,"88 Filton Road, Horfield, Bristol, , BS7 0PD",IF365,1CAHD,IF365/6707,WIL0294 WIL/CL 1.,A0303206,4847.44,CAHA
278,Revenue,CAHD,Home Care - Elderly - North,Day Care / Social Activities,Willowbank Care Limited,1454.24, 09-Nov-2016,,,,,,,,,,,,,,,,,,,,,,,,,,,,,,,,,,,,,0703572,"88 Filton Road, Horfield, Bristol, , BS7 0PD",IF365,1CAHD,IF365/6704,WIL078 WIL/JBa001.,A0303217,1454.24,CAHA
279,Revenue,CAHD,Home Care - Elderly - North,Supported Living,Willowbank Care Limited,3877.96, 09-Nov-2016,,,,,,,,,,,,,,,,,,,,,,,,,,,,,,,,,,,,,0703572,"88 Filton Road, Horfield, Bristol, , BS7 0PD",IF365,1CAHD,IF365/6707,WIL193 WIL/AV.,A0303202,3877.96,CAHA
280,Revenue,CAHD,Home Care - Elderly - North,Supported Living,Willowbank Care Limited,4847.44, 09-Nov-2016,,,,,,,,,,,,,,,,,,,,,,,,,,,,,,,,,,,,,0703572,"88 Filton Road, Horfield, Bristol, , BS7 0PD",IF365,1CAHD,IF365/6707,WIL209 WIL/JG.,A0303260,4847.44,CAHA
281,Revenue,CAHD,Bed and Breakfast,Bed & Breakfast,Bristol Housing & Support Limited,490.00, 10-Nov-2016,,,,,,,,,,,,,,,,,,,,,,,,,,,,,,,,,,,,,1076308,"3 The Hill, The Red House, Almondsbury, South Glos, BS32 4AE",RC001,1CAHD,RC001/5605,00387F,A0303290,588.00,CAHA
282,Revenue,CAHD,Home Care Monitoring (CM2000),Other Supplies & Services,Care Monitoring 2000 Limited,9382.68, 10-Nov-2016,,,,,,,,,,,,,,,,,,,,,,,,,,,,,,,,,,,,,1124774,"Four Oaks House, 160 Lichfield Road, Sutton Coldfield, West Midlands, B74 2TZ",IF366,1CAHD,if366/5990,3443616,A0303358,11259.21,CAHA
283,Revenue,CAHD,Home Care - Elderly - South,Other Small Contracts,Cherish Able Care Limited,5936.36, 10-Nov-2016,,,,,,,,,,,,,,,,,,,,,,,,,,,,,,,,,,,,,1169234,"106 Soundwell Road, Staple Hill, Bristol, , BS16 4RE",IF364,1CAHD,IF364/6705,1169234P201626,SP494789,6116.12,CAHA
284,Revenue,CAHD,Home Care - Elderly - North,Other Small Contracts,Cherish Able Care Limited,179.76, 10-Nov-2016,,,,,,,,,,,,,,,,,,,,,,,,,,,,,,,,,,,,,1169234,"106 Soundwell Road, Staple Hill, Bristol, , BS16 4RE",IF365,1CAHD,IF365/6705,1169234P201626,SP494789,6116.12,CAHA
285,Revenue,CAHD,Training - Adult Services,Training Expenses,Do The Write Thing,850.00, 10-Nov-2016,,,,,,,,,,,,,,,,,,,,,,,,,,,,,,,,,,,,,1223919,"73 Church Street, Denby Village, Derbyshire, , DE5 8PH",KW203,1CAHD,KW203/2831,219,A0300971,1020.00,CAHA
286,Revenue,CAHD,Freeways,Permanent Residential,Freeways Trust Limited,3705.32, 10-Nov-2016,,,,,,,,,,,,,,,,,,,,,,,,,,,,,,,,,,,,,0515621,"Leigh Court Day Centre, Pill Road, Abbots Leigh, Bristol, BS8 3RA",XL113,1CAHD,XL113/6700/S300024072,Oct - Susan Hamp,SP496104,3705.32,CAHA
287,Revenue,CAHD,Freeways,Permanent Residential,Freeways Trust Limited,2331.13, 10-Nov-2016,,,,,,,,,,,,,,,,,,,,,,,,,,,,,,,,,,,,,0515621,"Leigh Court Day Centre, Pill Road, Abbots Leigh, Bristol, BS8 3RA",XL113,1CAHD,XL113/6700/S300042252,Oct - Susan Hamp,SP496105,2331.13,CAHA
288,Revenue,CAHD,Freeways,Permanent Residential,Freeways Trust Limited,2409.93, 10-Nov-2016,,,,,,,,,,,,,,,,,,,,,,,,,,,,,,,,,,,,,0515621,"Leigh Court Day Centre, Pill Road, Abbots Leigh, Bristol, BS8 3RA",XL113,1CAHD,XL113/6700/S400013028,Oct - Susan Hamp,SP496106,2409.93,CAHA
289,Revenue,CAHD,Freeways,Permanent Residential,Freeways Trust Limited,3393.81, 10-Nov-2016,,,,,,,,,,,,,,,,,,,,,,,,,,,,,,,,,,,,,0515621,"Leigh Court Day Centre, Pill Road, Abbots Leigh, Bristol, BS8 3RA",XL113,1CAHD,XL113/6700/S300005569,Oct - Susan Hamp,SP496107,3393.81,CAHA
290,Revenue,CAHD,Freeways,Permanent Residential,Freeways Trust Limited,2331.13, 10-Nov-2016,,,,,,,,,,,,,,,,,,,,,,,,,,,,,,,,,,,,,0515621,"Leigh Court Day Centre, Pill Road, Abbots Leigh, Bristol, BS8 3RA",XL113,1CAHD,XL113/6700/S300021946,Oct - Susan Hamp,SP496108,2331.13,CAHA
291,Revenue,CAHD,Freeways,Permanent Residential,Freeways Trust Limited,3454.92, 10-Nov-2016,,,,,,,,,,,,,,,,,,,,,,,,,,,,,,,,,,,,,0515621,"Leigh Court Day Centre, Pill Road, Abbots Leigh, Bristol, BS8 3RA",XL113,1CAHD,XL113/6700/S300000168,Oct - Susan Hamp,SP496109,3454.92,CAHA
292,Revenue,CAHD,Freeways,Permanent Residential,Freeways Trust Limited,2997.80, 10-Nov-2016,,,,,,,,,,,,,,,,,,,,,,,,,,,,,,,,,,,,,0515621,"Leigh Court Day Centre, Pill Road, Abbots Leigh, Bristol, BS8 3RA",XL113,1CAHD,XL113/6700/S300024075,Oct - Susan Hamp,SP496110,2997.80,CAHA
293,Revenue,CAHD,Freeways,Permanent Residential,Freeways Trust Limited,3614.51, 10-Nov-2016,,,,,,,,,,,,,,,,,,,,,,,,,,,,,,,,,,,,,0515621,"Leigh Court Day Centre, Pill Road, Abbots Leigh, Bristol, BS8 3RA",XL113,1CAHD,XL113/6700/S300044264,Oct - Susan Hamp,SP496111,3614.51,CAHA
294,Revenue,CAHD,Freeways,Permanent Residential,Freeways Trust Limited,2208.93, 10-Nov-2016,,,,,,,,,,,,,,,,,,,,,,,,,,,,,,,,,,,,,0515621,"Leigh Court Day Centre, Pill Road, Abbots Leigh, Bristol, BS8 3RA",XL113,1CAHD,XL113/6700/S154044,Oct - Susan Hamp,SP496112,2208.93,CAHA
295,Revenue,CAHD,Freeways,Permanent Residential,Freeways Trust Limited,2749.17, 10-Nov-2016,,,,,,,,,,,,,,,,,,,,,,,,,,,,,,,,,,,,,0515621,"Leigh Court Day Centre, Pill Road, Abbots Leigh, Bristol, BS8 3RA",XL113,1CAHD,XL113/6700/S300000797,Oct - Susan Hamp,SP496113,2749.17,CAHA
296,Revenue,CAHD,Freeways,Permanent Residential,Freeways Trust Limited,3508.85, 10-Nov-2016,,,,,,,,,,,,,,,,,,,,,,,,,,,,,,,,,,,,,0515621,"Leigh Court Day Centre, Pill Road, Abbots Leigh, Bristol, BS8 3RA",XL113,1CAHD,XL113/6700/S300070212,Oct - Susan Hamp,SP496114,3508.85,CAHA
297,Revenue,CAHD,Freeways,Permanent Residential,Freeways Trust Limited,3158.33, 10-Nov-2016,,,,,,,,,,,,,,,,,,,,,,,,,,,,,,,,,,,,,0515621,"Leigh Court Day Centre, Pill Road, Abbots Leigh, Bristol, BS8 3RA",XL113,1CAHD,XL113/6700/S97119,Oct - Susan Hamp,SP496115,3158.33,CAHA
298,Revenue,CAHD,Freeways,Permanent Residential,Freeways Trust Limited,2731.73, 10-Nov-2016,,,,,,,,,,,,,,,,,,,,,,,,,,,,,,,,,,,,,0515621,"Leigh Court Day Centre, Pill Road, Abbots Leigh, Bristol, BS8 3RA",XL113,1CAHD,XL113/6700,Oct - Susan Hamp,SP496116,2731.73,CAHA
299,Revenue,CAHD,Freeways,Permanent Residential,Freeways Trust Limited,7455.30, 10-Nov-2016,,,,,,,,,,,,,,,,,,,,,,,,,,,,,,,,,,,,,0515621,"Leigh Court Day Centre, Pill Road, Abbots Leigh, Bristol, BS8 3RA",XL113,1CAHD,XL113/6700,Oct - Susan Hamp,SP496117,7455.30,CAHA
300,Revenue,CAHD,Pathway 3 - (Complex Beds),Permanent Nursing,Frenchay House,3162.00, 10-Nov-2016,,,,,,,,,,,,,,,,,,,,,,,,,,,,,,,,,,,,,1231918,"Beckspool Road, South Glos, , , BS16 1NE",IE903,1CAHD,IE903/6710,ORP20923,RP028956,3162.00,CAHA
301,Revenue,CAHD,Home Care - Elderly - North,Private & Voluntary Home Care,Housing 21,40371.16, 10-Nov-2016,,,,,,,,,,,,,,,,,,,,,,,,,,,,,,,,,,,,,1035696,"40 Vicarage Road, Edgbaston, Birmingham, , B15 3EZ",IF365,1CAHD,IF365/6703,3000369,PP009424,40371.16,CAHA
302,Revenue,CAHD,Social Lettings Agency,Fees - General,Individual,12.22, 10-Nov-2016,,,,,,,,,,,,,,,,,,,,,,,,,,,,,,,,,,,,,1224123,"11 Laxton Close, Olveston, Bristol, , BS35 4EB",RC003,1CAHD,RC003/5700/SG0015,3000476,PP009423,690.32,CAHA
303,Revenue,CAHD,Social Lettings Agency,Other Supplies & Services,Individual,690.32, 10-Nov-2016,,,,,,,,,,,,,,,,,,,,,,,,,,,,,,,,,,,,,1224123,"11 Laxton Close, Olveston, Bristol, , BS35 4EB",RC003,1CAHD,RC003/5990/SG0015,3000476,PP009423,690.32,CAHA
304,Revenue,CAHD,18-25 Year Olds,Day Care / Social Activities,Redefine Mentoring Ltd,500.00, 10-Nov-2016,,,,,,,,,,,,,,,,,,,,,,,,,,,,,,,,,,,,,1208564,"Henleaze House, 13 Harbury Road, Henleaze, Bristol, BS9 4PN",IE025,1CAHD,IE025/6704/S133628,00057,A0303598,500.00,CAHA
305,Revenue,CAHD,Home Care - Elderly - North,Other Small Contracts,SeeAbility,6249.60, 10-Nov-2016,,,,,,,,,,,,,,,,,,,,,,,,,,,,,,,,,,,,,0880589,"Newplan House, 41 East Street, Epsom, Surrey, KT17 1BL",IF365,1CAHD,IF365/6705,40758,A0302336,6249.60,CAHA
306,Revenue,CAHD,Home Care - Elderly - North,Day Care / Social Activities,Camphill Communities Thornbury Limited,1124.00, 11-Nov-2016,,,,,,,,,,,,,,,,,,,,,,,,,,,,,,,,,,,,,0773191,"The Hatch Office, Kington Lane, Thornbury, , BS35 1NA",IF365,1CAHD,IF365/6704,0773191P201626,SP495185,2252.00,CAHA
307,Revenue,CAHD,Home Care - Elderly - North,Other Small Contracts,Camphill Communities Thornbury Limited,144.00, 11-Nov-2016,,,,,,,,,,,,,,,,,,,,,,,,,,,,,,,,,,,,,0773191,"The Hatch Office, Kington Lane, Thornbury, , BS35 1NA",IF365,1CAHD,IF365/6705,0773191P201626,SP495185,2252.00,CAHA
308,Revenue,CAHD,Home Care - Elderly - North,Supported Living,Camphill Communities Thornbury Limited,984.00, 11-Nov-2016,,,,,,,,,,,,,,,,,,,,,,,,,,,,,,,,,,,,,0773191,"The Hatch Office, Kington Lane, Thornbury, , BS35 1NA",IF365,1CAHD,IF365/6707,0773191P201626,SP495185,2252.00,CAHA
309,Revenue,CAHD,Home Care - Elderly - South,Other Small Contracts,Helping Hands Homecare,1093.44, 11-Nov-2016,,,,,,,,,,,,,,,,,,,,,,,,,,,,,,,,,,,,,1202141,"Arrow House, 8 & 9 Church Street, Alcester, Warwickshire, B49 5AJ",IF364,1CAHD,IF364/6705,1202141P201626,SP494871,3875.16,CAHA
310,Revenue,CAHD,Home Care - Elderly - North,Day Care / Social Activities,Helping Hands Homecare,152.76, 11-Nov-2016,,,,,,,,,,,,,,,,,,,,,,,,,,,,,,,,,,,,,1202141,"Arrow House, 8 & 9 Church Street, Alcester, Warwickshire, B49 5AJ",IF365,1CAHD,IF365/6704,1202141P201626,SP494871,3875.16,CAHA
311,Revenue,CAHD,Home Care - Elderly - North,Other Small Contracts,Helping Hands Homecare,2628.96, 11-Nov-2016,,,,,,,,,,,,,,,,,,,,,,,,,,,,,,,,,,,,,1202141,"Arrow House, 8 & 9 Church Street, Alcester, Warwickshire, B49 5AJ",IF365,1CAHD,IF365/6705,1202141P201626,SP494871,3875.16,CAHA
312,Revenue,CAHD,Social Lettings Agency,Fees - General,Individual,12.22, 11-Nov-2016,,,,,,,,,,,,,,,,,,,,,,,,,,,,,,,,,,,,,1193747,"123 Yeolands Drive, Clevedon, North Somerset, , BS21 7XL",RC003,1CAHD,RC003/5700/SG0027,3000419,PP009428,690.32,CAHA
313,Revenue,CAHD,Social Lettings Agency,Other Supplies & Services,Individual,690.32, 11-Nov-2016,,,,,,,,,,,,,,,,,,,,,,,,,,,,,,,,,,,,,1193747,"123 Yeolands Drive, Clevedon, North Somerset, , BS21 7XL",RC003,1CAHD,RC003/5990/SG0027,3000419,PP009428,690.32,CAHA
314,Revenue,CAHD,Community Support - North,Preventative Assistance,KCC Cleaning Services Limited,688.50, 11-Nov-2016,,,,,,,,,,,,,,,,,,,,,,,,,,,,,,,,,,,,,9012429,"22 West Street, St Philips, Bristol, , BS2 0BH",KR365,1CAHD,KR365/5880,KCC80546,A0300760,826.20,CAHA
315,Revenue,CAHD,18-25 Year Olds,Day Care / Social Activities,Make it Mentoring CIC Ltd,1456.00, 11-Nov-2016,,,,,,,,,,,,,,,,,,,,,,,,,,,,,,,,,,,,,1227892,"6 St Aldams Drive, Pucklechurch, South Gloucestershire, , BS16 9QQ",IE025,1CAHD,IE025/6704/S135252,145,A0303648,1456.00,CAHA
316,Revenue,CAHD,Home Care - Elderly - South,Supported Living,Maples Community Care Limited,971.52, 11-Nov-2016,,,,,,,,,,,,,,,,,,,,,,,,,,,,,,,,,,,,,0892962,"The Laurels, 24 High Street, Staple Hill, South Gloucestershire, BS16 5HW",IF364,1CAHD,IF364/6707,11718,A0301624,971.52,CAHA
317,Revenue,CAHD,Home Care - Elderly - South,Supported Living,Maples Community Care Limited,971.52, 11-Nov-2016,,,,,,,,,,,,,,,,,,,,,,,,,,,,,,,,,,,,,0892962,"The Laurels, 24 High Street, Staple Hill, South Gloucestershire, BS16 5HW",IF364,1CAHD,IF364/6707,11746,A0301301,971.52,CAHA
318,Revenue,CAHD,Turnberries,Equipment Maintenance,Medaco,453.00, 11-Nov-2016,,,,,,,,,,,,,,,,,,,,,,,,,,,,,,,,,,,,,1152235,"Unit 109 Emerald Park East, Emersons Green, Bristol , , BS16 7FG",XM322,1CAHD,xm322/5090,42734,A0302504,543.60,CAHA
319,Revenue,CAHD,Social Lettings Agency,Fees - General,Individual,10.53, 11-Nov-2016,,,,,,,,,,,,,,,,,,,,,,,,,,,,,,,,,,,,,1033209,"2 Hunters Way, Filton, Bristol, , BS34 7EW",RC003,1CAHD,RC003/5700/SG0005,3000400,PP009431,523.71,CAHA
320,Revenue,CAHD,Social Lettings Agency,Other Supplies & Services,Individual,523.71, 11-Nov-2016,,,,,,,,,,,,,,,,,,,,,,,,,,,,,,,,,,,,,1033209,"2 Hunters Way, Filton, Bristol, , BS34 7EW",RC003,1CAHD,RC003/5990/SG0005,3000400,PP009431,523.71,CAHA
321,Revenue,CAHD,Social Lettings Agency,Fees - General,Individual,16.85, 11-Nov-2016,,,,,,,,,,,,,,,,,,,,,,,,,,,,,,,,,,,,,1182093,"17 Oakdale Court, Downend, Bristol, , BS16 6DZ",RC003,1CAHD,RC003/5700/SG0012,3000392,PP009426,1000.00,CAHA
322,Revenue,CAHD,Social Lettings Agency,Other Supplies & Services,Individual,1000.00, 11-Nov-2016,,,,,,,,,,,,,,,,,,,,,,,,,,,,,,,,,,,,,1182093,"17 Oakdale Court, Downend, Bristol, , BS16 6DZ",RC003,1CAHD,RC003/5990/SG0012,3000392,PP009426,1000.00,CAHA
323,Revenue,CAHD,Home Care - Elderly - South,Day Care / Social Activities,NAS Services Limited,567.24, 11-Nov-2016,,,,,,,,,,,,,,,,,,,,,,,,,,,,,,,,,,,,,0531689,"Church House, Church Road, Filton, South Gloucestershire, BS34 7BD",IF364,1CAHD,IF364/6704,0531689P201626,SP494762,2234.73,CAHA
324,Revenue,CAHD,Home Care - Elderly - South,Supported Living,NAS Services Limited,19.56, 11-Nov-2016,,,,,,,,,,,,,,,,,,,,,,,,,,,,,,,,,,,,,0531689,"Church House, Church Road, Filton, South Gloucestershire, BS34 7BD",IF364,1CAHD,IF364/6707,0531689P201626,SP494762,2234.73,CAHA
325,Revenue,CAHD,Home Care - Elderly - North,Day Care / Social Activities,NAS Services Limited,1149.15, 11-Nov-2016,,,,,,,,,,,,,,,,,,,,,,,,,,,,,,,,,,,,,0531689,"Church House, Church Road, Filton, South Gloucestershire, BS34 7BD",IF365,1CAHD,IF365/6704,0531689P201626,SP494762,2234.73,CAHA
326,Revenue,CAHD,Home Care - Elderly - North,Supported Living,NAS Services Limited,342.30, 11-Nov-2016,,,,,,,,,,,,,,,,,,,,,,,,,,,,,,,,,,,,,0531689,"Church House, Church Road, Filton, South Gloucestershire, BS34 7BD",IF365,1CAHD,IF365/6707,0531689P201626,SP494762,2234.73,CAHA
327,Revenue,CAHD,Younger MH non-res purchasing,Day Care / Social Activities,NAS Services Limited,156.48, 11-Nov-2016,,,,,,,,,,,,,,,,,,,,,,,,,,,,,,,,,,,,,0531689,"Church House, Church Road, Filton, South Gloucestershire, BS34 7BD",IP335,1CAHD,IP335/6704,0531689P201626,SP494762,2234.73,CAHA
328,Revenue,CAHD,Social Lettings Agency,Fees - General,Individual,19.09, 11-Nov-2016,,,,,,,,,,,,,,,,,,,,,,,,,,,,,,,,,,,,,1218025,"Shadow Cottage, Alvington, South Gloucestershire, , .",RC003,1CAHD,RC003/5700/SG0040,3000463,PP009427,649.09,CAHA
329,Revenue,CAHD,Social Lettings Agency,Other Supplies & Services,Individual,649.09, 11-Nov-2016,,,,,,,,,,,,,,,,,,,,,,,,,,,,,,,,,,,,,1218025,"Shadow Cottage, Alvington, South Gloucestershire, , .",RC003,1CAHD,RC003/5990/SG0040,3000463,PP009427,649.09,CAHA
330,Revenue,CAHD,18-25 Year Olds,Day Care / Social Activities,The Brandon Trust,364.90, 11-Nov-2016,,,,,,,,,,,,,,,,,,,,,,,,,,,,,,,,,,,,,0434333,"Olympus House, Brittania Road, Patchway, South Gloucestershire, BS34 5TA",IE025,1CAHD,IE025/6704,0434333P201628,SP496067,6681.77,CAHA
331,Revenue,CAHD,Home Care - Elderly - South,Day Care / Social Activities,The Brandon Trust,3380.80, 11-Nov-2016,,,,,,,,,,,,,,,,,,,,,,,,,,,,,,,,,,,,,0434333,"Olympus House, Brittania Road, Patchway, South Gloucestershire, BS34 5TA",IF364,1CAHD,IF364/6704,0434333P201628,SP496067,6681.77,CAHA
332,Revenue,CAHD,Home Care - Elderly - South,Other Small Contracts,The Brandon Trust,320.40, 11-Nov-2016,,,,,,,,,,,,,,,,,,,,,,,,,,,,,,,,,,,,,0434333,"Olympus House, Brittania Road, Patchway, South Gloucestershire, BS34 5TA",IF364,1CAHD,IF364/6705,0434333P201628,SP496067,6681.77,CAHA
333,Revenue,CAHD,Home Care - Elderly - North,Day Care / Social Activities,The Brandon Trust,707.55, 11-Nov-2016,,,,,,,,,,,,,,,,,,,,,,,,,,,,,,,,,,,,,0434333,"Olympus House, Brittania Road, Patchway, South Gloucestershire, BS34 5TA",IF365,1CAHD,IF365/6704,0434333P201628,SP496067,6681.77,CAHA
334,Revenue,CAHD,Home Care - Elderly - North,Other Small Contracts,The Brandon Trust,53.40, 11-Nov-2016,,,,,,,,,,,,,,,,,,,,,,,,,,,,,,,,,,,,,0434333,"Olympus House, Brittania Road, Patchway, South Gloucestershire, BS34 5TA",IF365,1CAHD,IF365/6705,0434333P201628,SP496067,6681.77,CAHA
335,Revenue,CAHD,Home Care - Elderly - North,Supported Living,The Brandon Trust,1854.72, 11-Nov-2016,,,,,,,,,,,,,,,,,,,,,,,,,,,,,,,,,,,,,0434333,"Olympus House, Brittania Road, Patchway, South Gloucestershire, BS34 5TA",IF365,1CAHD,IF365/6707,0434333P201628,SP496067,6681.77,CAHA
336,Revenue,CAHD,Social Lettings Agency,Fees - General,The Restore Trust,11.71, 11-Nov-2016,,,,,,,,,,,,,,,,,,,,,,,,,,,,,,,,,,,,,1223739,"4-6 Longmead Avenue, Horfield, Bristol, , BS7 8QB",RC003,1CAHD,RC003/5700/SG0045,3000478,PP009429,661.96,CAHA
337,Revenue,CAHD,Social Lettings Agency,Other Supplies & Services,The Restore Trust,661.96, 11-Nov-2016,,,,,,,,,,,,,,,,,,,,,,,,,,,,,,,,,,,,,1223739,"4-6 Longmead Avenue, Horfield, Bristol, , BS7 8QB",RC003,1CAHD,RC003/5990/SG0045,3000478,PP009429,661.96,CAHA
338,Revenue,CAHD,Home Care - Elderly - South,Other Small Contracts,United Response,5457.60, 11-Nov-2016,,,,,,,,,,,,,,,,,,,,,,,,,,,,,,,,,,,,,1027372,"Vantage House, 1 Weir Road, Wimbledon Park, London, SW19 8UX",IF364,1CAHD,IF364/6705,1027372P201625,SP494768,9809.60,CAHA
339,Revenue,CAHD,Home Care - Elderly - North,Day Care / Social Activities,United Response,765.00, 11-Nov-2016,,,,,,,,,,,,,,,,,,,,,,,,,,,,,,,,,,,,,1027372,"Vantage House, 1 Weir Road, Wimbledon Park, London, SW19 8UX",IF365,1CAHD,IF365/6704,1027372P201625,SP494768,9809.60,CAHA
340,Revenue,CAHD,Home Care - Elderly - North,Other Small Contracts,United Response,1797.75, 11-Nov-2016,,,,,,,,,,,,,,,,,,,,,,,,,,,,,,,,,,,,,1027372,"Vantage House, 1 Weir Road, Wimbledon Park, London, SW19 8UX",IF365,1CAHD,IF365/6705,1027372P201625,SP494768,9809.60,CAHA
341,Revenue,CAHD,Home Care - Elderly - North,Supported Living,United Response,1789.25, 11-Nov-2016,,,,,,,,,,,,,,,,,,,,,,,,,,,,,,,,,,,,,1027372,"Vantage House, 1 Weir Road, Wimbledon Park, London, SW19 8UX",IF365,1CAHD,IF365/6707,1027372P201625,SP494768,9809.60,CAHA
342,Revenue,CAHD,Home Care - Elderly - South,Other Small Contracts,United Response,6855.60, 11-Nov-2016,,,,,,,,,,,,,,,,,,,,,,,,,,,,,,,,,,,,,1027372,"Vantage House, 1 Weir Road, Wimbledon Park, London, SW19 8UX",IF364,1CAHD,IF364/6705,1027372P201626,SP495772,12236.10,CAHA
343,Revenue,CAHD,Home Care - Elderly - North,Day Care / Social Activities,United Response,1797.75, 11-Nov-2016,,,,,,,,,,,,,,,,,,,,,,,,,,,,,,,,,,,,,1027372,"Vantage House, 1 Weir Road, Wimbledon Park, London, SW19 8UX",IF365,1CAHD,IF365/6704,1027372P201626,SP495772,12236.10,CAHA
344,Revenue,CAHD,Home Care - Elderly - North,Other Small Contracts,United Response,1785.00, 11-Nov-2016,,,,,,,,,,,,,,,,,,,,,,,,,,,,,,,,,,,,,1027372,"Vantage House, 1 Weir Road, Wimbledon Park, London, SW19 8UX",IF365,1CAHD,IF365/6705,1027372P201626,SP495772,12236.10,CAHA
345,Revenue,CAHD,Home Care - Elderly - North,Supported Living,United Response,1797.75, 11-Nov-2016,,,,,,,,,,,,,,,,,,,,,,,,,,,,,,,,,,,,,1027372,"Vantage House, 1 Weir Road, Wimbledon Park, London, SW19 8UX",IF365,1CAHD,IF365/6707,1027372P201626,SP495772,12236.10,CAHA
346,Revenue,CAHD,TSG Practice Placements,Training Expenses,University Of Bristol,815.00, 11-Nov-2016,,,,,,,,,,,,,,,,,,,,,,,,,,,,,,,,,,,,,0024701,"The Finance Officer, Senate House, Bristol, , BS8 1TH",KW623,1CAHD,KW623/2831,516991456457/1,A0302094,815.00,CAHA
347,Revenue,CAHD,Training - Adult Services,Training Expenses,Bob Dawson,1250.00, 14-Nov-2016,,,,,,,,,,,,,,,,,,,,,,,,,,,,,,,,,,,,,0765785,"Training Consultancy Services, 9 Clevedon Road, Weston Super Mare, , BS23 1DA",KW203,1CAHD,KW203/2831,015,A0302864,1250.00,CAHA
348,Revenue,CAHD,Home Care - Elderly - North,Private & Voluntary Home Care,Brunelcare,23822.65, 14-Nov-2016,,,,,,,,,,,,,,,,,,,,,,,,,,,,,,,,,,,,,0332192,"Saffron Gardens, Prospect Place, Whitehall, Bristol, BS5 9FF",IF365,1CAHD,IF365/6703,3000378,PP009432,23822.65,CAHA
349,Revenue,CAHD,South Glos Users in South Glos Homes,Permanent Nursing,Brunelcare,691.96, 14-Nov-2016,,,,,,,,,,,,,,,,,,,,,,,,,,,,,,,,,,,,,0332192,"Saffron Gardens, Prospect Place, Whitehall, Bristol, BS5 9FF",IE900,1CAHD,IE900/6710/S300097239,Oct - Deerhurst,SP496312,691.96,CAHA
350,Revenue,CAHD,Bed Purchasing - South,Permanent Nursing,Brunelcare,1958.76, 14-Nov-2016,,,,,,,,,,,,,,,,,,,,,,,,,,,,,,,,,,,,,0332192,"Saffron Gardens, Prospect Place, Whitehall, Bristol, BS5 9FF",IE101,1CAHD,IE101/6710/S300097239,Oct - Deerhurst,SP496313,1958.76,CAHA
351,Revenue,CAHD,South Glos Users in South Glos Homes,Permanent Nursing,Brunelcare,691.96, 14-Nov-2016,,,,,,,,,,,,,,,,,,,,,,,,,,,,,,,,,,,,,0332192,"Saffron Gardens, Prospect Place, Whitehall, Bristol, BS5 9FF",IE900,1CAHD,IE900/6710/S139060,Oct - Deerhurst,SP496314,691.96,CAHA
352,Revenue,CAHD,Bed Purchasing - Elderly S117- North,Permanent Nursing,Brunelcare,3179.71, 14-Nov-2016,,,,,,,,,,,,,,,,,,,,,,,,,,,,,,,,,,,,,0332192,"Saffron Gardens, Prospect Place, Whitehall, Bristol, BS5 9FF",IN337,1CAHD,IN337/6710/S139060,Oct - Deerhurst,SP496315,3179.71,CAHA
353,Revenue,CAHD,South Glos Users in South Glos Homes,Permanent Nursing,Brunelcare,691.96, 14-Nov-2016,,,,,,,,,,,,,,,,,,,,,,,,,,,,,,,,,,,,,0332192,"Saffron Gardens, Prospect Place, Whitehall, Bristol, BS5 9FF",IE900,1CAHD,IE900/6710/S100762,Oct - Deerhurst,SP496316,691.96,CAHA
354,Revenue,CAHD,Bed Purchasing - South,Permanent Nursing,Brunelcare,2353.56, 14-Nov-2016,,,,,,,,,,,,,,,,,,,,,,,,,,,,,,,,,,,,,0332192,"Saffron Gardens, Prospect Place, Whitehall, Bristol, BS5 9FF",IE101,1CAHD,IE101/6710/S100762,Oct - Deerhurst,SP496317,2353.56,CAHA
355,Revenue,CAHD,Bed Purchasing - Southmead Hospital,Permanent Nursing,Brunelcare,3179.71, 14-Nov-2016,,,,,,,,,,,,,,,,,,,,,,,,,,,,,,,,,,,,,0332192,"Saffron Gardens, Prospect Place, Whitehall, Bristol, BS5 9FF",IE345,1CAHD,IE345/6710/S138428,Oct - Deerhurst,SP496318,3179.71,CAHA
356,Revenue,CAHD,South Glos Users in South Glos Homes,Permanent Nursing,Brunelcare,691.96, 14-Nov-2016,,,,,,,,,,,,,,,,,,,,,,,,,,,,,,,,,,,,,0332192,"Saffron Gardens, Prospect Place, Whitehall, Bristol, BS5 9FF",IE900,1CAHD,IE900/6710/S80382,Oct - Deerhurst,SP496319,691.96,CAHA
357,Revenue,CAHD,Bed Purchasing - Southmead Hospital,Permanent Nursing,Brunelcare,1444.07, 14-Nov-2016,,,,,,,,,,,,,,,,,,,,,,,,,,,,,,,,,,,,,0332192,"Saffron Gardens, Prospect Place, Whitehall, Bristol, BS5 9FF",IE345,1CAHD,IE345/6710/S80382,Oct - Deerhurst,SP496320,1444.07,CAHA
358,Revenue,CAHD,Bed Purchasing - South,Permanent Nursing,Brunelcare,1845.80, 14-Nov-2016,,,,,,,,,,,,,,,,,,,,,,,,,,,,,,,,,,,,,0332192,"Saffron Gardens, Prospect Place, Whitehall, Bristol, BS5 9FF",IE101,1CAHD,IE101/6710/S68281,Oct - Deerhurst,SP496322,1845.80,CAHA
359,Revenue,CAHD,Bed Purchasing - South,Permanent Nursing,Brunelcare,923.14, 14-Nov-2016,,,,,,,,,,,,,,,,,,,,,,,,,,,,,,,,,,,,,0332192,"Saffron Gardens, Prospect Place, Whitehall, Bristol, BS5 9FF",IE101,1CAHD,IE101/6710,Oct - Deerhurst,SP496323,923.14,CAHA
360,Revenue,CAHD,South Glos Users in South Glos Homes,Permanent Nursing,Brunelcare,691.96, 14-Nov-2016,,,,,,,,,,,,,,,,,,,,,,,,,,,,,,,,,,,,,0332192,"Saffron Gardens, Prospect Place, Whitehall, Bristol, BS5 9FF",IE900,1CAHD,IE900/6710/S300033060,Oct - Deerhurst,SP496324,691.96,CAHA
361,Revenue,CAHD,Bed Purchasing - South,Permanent Nursing,Brunelcare,2409.41, 14-Nov-2016,,,,,,,,,,,,,,,,,,,,,,,,,,,,,,,,,,,,,0332192,"Saffron Gardens, Prospect Place, Whitehall, Bristol, BS5 9FF",IE101,1CAHD,IE101/6710/S300033060,Oct - Deerhurst,SP496325,2409.41,CAHA
362,Revenue,CAHD,South Glos Users in South Glos Homes,Permanent Nursing,Brunelcare,691.96, 14-Nov-2016,,,,,,,,,,,,,,,,,,,,,,,,,,,,,,,,,,,,,0332192,"Saffron Gardens, Prospect Place, Whitehall, Bristol, BS5 9FF",IE900,1CAHD,IE900/6710/S300090781,Oct - Deerhurst,SP496326,691.96,CAHA
363,Revenue,CAHD,Bed purchasing - Elderly S117 - South,Permanent Nursing,Brunelcare,3179.71, 14-Nov-2016,,,,,,,,,,,,,,,,,,,,,,,,,,,,,,,,,,,,,0332192,"Saffron Gardens, Prospect Place, Whitehall, Bristol, BS5 9FF",IN332,1CAHD,IN332/6710/S300090781,Oct - Deerhurst,SP496327,3179.71,CAHA
364,Revenue,CAHD,South Glos Users in South Glos Homes,Permanent Nursing,Brunelcare,691.96, 14-Nov-2016,,,,,,,,,,,,,,,,,,,,,,,,,,,,,,,,,,,,,0332192,"Saffron Gardens, Prospect Place, Whitehall, Bristol, BS5 9FF",IE900,1CAHD,IE900/6710/S124133,Oct - Deerhurst,SP496328,691.96,CAHA
365,Revenue,CAHD,Bed Purchasing - North,Permanent Nursing,Brunelcare,2529.78, 14-Nov-2016,,,,,,,,,,,,,,,,,,,,,,,,,,,,,,,,,,,,,0332192,"Saffron Gardens, Prospect Place, Whitehall, Bristol, BS5 9FF",IE107,1CAHD,IE107/6710/S124133,Oct - Deerhurst,SP496329,2529.78,CAHA
366,Revenue,CAHD,South Glos Users in South Glos Homes,Permanent Nursing,Brunelcare,691.96, 14-Nov-2016,,,,,,,,,,,,,,,,,,,,,,,,,,,,,,,,,,,,,0332192,"Saffron Gardens, Prospect Place, Whitehall, Bristol, BS5 9FF",IE900,1CAHD,IE900/6710/S300086279,Oct - Deerhurst,SP496330,691.96,CAHA
367,Revenue,CAHD,Bed Purchasing - Southmead Hospital,Permanent Nursing,Brunelcare,2430.09, 14-Nov-2016,,,,,,,,,,,,,,,,,,,,,,,,,,,,,,,,,,,,,0332192,"Saffron Gardens, Prospect Place, Whitehall, Bristol, BS5 9FF",IE345,1CAHD,IE345/6710/S300086279,Oct - Deerhurst,SP496331,2430.09,CAHA
368,Revenue,CAHD,South Glos Users in South Glos Homes,Permanent Nursing,Brunelcare,691.96, 14-Nov-2016,,,,,,,,,,,,,,,,,,,,,,,,,,,,,,,,,,,,,0332192,"Saffron Gardens, Prospect Place, Whitehall, Bristol, BS5 9FF",IE900,1CAHD,IE900/6710/S122338,Oct - Deerhurst,SP496332,691.96,CAHA
369,Revenue,CAHD,Bed Purchasing - North,Permanent Nursing,Brunelcare,2552.72, 14-Nov-2016,,,,,,,,,,,,,,,,,,,,,,,,,,,,,,,,,,,,,0332192,"Saffron Gardens, Prospect Place, Whitehall, Bristol, BS5 9FF",IE107,1CAHD,IE107/6710/S122338,Oct - Deerhurst,SP496333,2552.72,CAHA
370,Revenue,CAHD,South Glos Users in South Glos Homes,Permanent Nursing,Brunelcare,691.96, 14-Nov-2016,,,,,,,,,,,,,,,,,,,,,,,,,,,,,,,,,,,,,0332192,"Saffron Gardens, Prospect Place, Whitehall, Bristol, BS5 9FF",IE900,1CAHD,IE900/6710/S109830,Oct - Deerhurst,SP496334,691.96,CAHA
371,Revenue,CAHD,Bed Purchasing - North,Permanent Nursing,Brunelcare,2600.90, 14-Nov-2016,,,,,,,,,,,,,,,,,,,,,,,,,,,,,,,,,,,,,0332192,"Saffron Gardens, Prospect Place, Whitehall, Bristol, BS5 9FF",IE107,1CAHD,IE107/6710/S109830,Oct - Deerhurst,SP496335,2600.90,CAHA
372,Revenue,CAHD,South Glos Users in South Glos Homes,Permanent Nursing,Brunelcare,691.96, 14-Nov-2016,,,,,,,,,,,,,,,,,,,,,,,,,,,,,,,,,,,,,0332192,"Saffron Gardens, Prospect Place, Whitehall, Bristol, BS5 9FF",IE900,1CAHD,IE900/6710/S300090796,Oct - Deerhurst,SP496336,691.96,CAHA
373,Revenue,CAHD,Bed Purchasing - Southmead Hospital,Permanent Nursing,Brunelcare,2600.90, 14-Nov-2016,,,,,,,,,,,,,,,,,,,,,,,,,,,,,,,,,,,,,0332192,"Saffron Gardens, Prospect Place, Whitehall, Bristol, BS5 9FF",IE345,1CAHD,IE345/6710/S300090796,Oct - Deerhurst,SP496337,2600.90,CAHA
374,Revenue,CAHD,South Glos Users in South Glos Homes,Permanent Nursing,Brunelcare,691.96, 14-Nov-2016,,,,,,,,,,,,,,,,,,,,,,,,,,,,,,,,,,,,,0332192,"Saffron Gardens, Prospect Place, Whitehall, Bristol, BS5 9FF",IE900,1CAHD,IE900/6710/S300091991,Oct - Deerhurst,SP496338,691.96,CAHA
375,Revenue,CAHD,Bed Purchasing - Southmead Hospital,Permanent Nursing,Brunelcare,2511.35, 14-Nov-2016,,,,,,,,,,,,,,,,,,,,,,,,,,,,,,,,,,,,,0332192,"Saffron Gardens, Prospect Place, Whitehall, Bristol, BS5 9FF",IE345,1CAHD,IE345/6710/S300091991,Oct - Deerhurst,SP496339,2511.35,CAHA
376,Revenue,CAHD,South Glos Users in South Glos Homes,Permanent Nursing,Brunelcare,691.96, 14-Nov-2016,,,,,,,,,,,,,,,,,,,,,,,,,,,,,,,,,,,,,0332192,"Saffron Gardens, Prospect Place, Whitehall, Bristol, BS5 9FF",IE900,1CAHD,IE900/6710/S82172,Oct - Deerhurst,SP496340,691.96,CAHA
377,Revenue,CAHD,Bed Purchasing - Elderly S117- North,Permanent Nursing,Brunelcare,3179.71, 14-Nov-2016,,,,,,,,,,,,,,,,,,,,,,,,,,,,,,,,,,,,,0332192,"Saffron Gardens, Prospect Place, Whitehall, Bristol, BS5 9FF",IN337,1CAHD,IN337/6710/S82172,Oct - Deerhurst,SP496341,3179.71,CAHA
378,Revenue,CAHD,Bed Purchasing - North,Respite Planned - Nursing,Brunelcare,820.57, 14-Nov-2016,,,,,,,,,,,,,,,,,,,,,,,,,,,,,,,,,,,,,0332192,"Saffron Gardens, Prospect Place, Whitehall, Bristol, BS5 9FF",IE107,1CAHD,IE107/6712/S138706,Oct - Deerhurst,SP496346,820.57,CAHA
379,Revenue,CAHD,Bed Purchasing - North,Respite Planned - Nursing,Brunelcare,1846.29, 14-Nov-2016,,,,,,,,,,,,,,,,,,,,,,,,,,,,,,,,,,,,,0332192,"Saffron Gardens, Prospect Place, Whitehall, Bristol, BS5 9FF",IE107,1CAHD,IE107/6712,Oct - Deerhurst,SP496348,1846.29,CAHA
380,Revenue,CAHD,South Glos Users in South Glos Homes,Permanent Nursing,Brunelcare,669.64, 14-Nov-2016,,,,,,,,,,,,,,,,,,,,,,,,,,,,,,,,,,,,,0332192,"Saffron Gardens, Prospect Place, Whitehall, Bristol, BS5 9FF",IE900,1CAHD,IE900/6710/S300097239,Oct - Deerhurst,SP496349,669.64,CAHA
381,Revenue,CAHD,Bed Purchasing - North,Respite Planned - Nursing,Brunelcare,923.14, 14-Nov-2016,,,,,,,,,,,,,,,,,,,,,,,,,,,,,,,,,,,,,0332192,"Saffron Gardens, Prospect Place, Whitehall, Bristol, BS5 9FF",IE107,1CAHD,IE107/6712/S138706,Oct - Deerhurst,SP496352,923.14,CAHA
382,Revenue,CAHD,Pathway 2 - (Interim Beds),Permanent Nursing,Brunelcare,51086.88, 14-Nov-2016,,,,,,,,,,,,,,,,,,,,,,,,,,,,,,,,,,,,,0332192,"Saffron Gardens, Prospect Place, Whitehall, Bristol, BS5 9FF",IE901,1CAHD,IE901/6710,ORP20952,RP028991,51086.88,CAHA
383,Revenue,CAHD,Home Care - Elderly - South,Day Care / Social Activities,Headway Bristol,511.68, 14-Nov-2016,,,,,,,,,,,,,,,,,,,,,,,,,,,,,,,,,,,,,0093334,"Frenchay Beckspool Building, Frenchay Park Road, Bristol, , BS16 1LE",IF364,1CAHD,IF364/6704,0093334P201626,SP495762,1833.52,CAHA
384,Revenue,CAHD,Home Care - Elderly - South,Other Small Contracts,Headway Bristol,426.40, 14-Nov-2016,,,,,,,,,,,,,,,,,,,,,,,,,,,,,,,,,,,,,0093334,"Frenchay Beckspool Building, Frenchay Park Road, Bristol, , BS16 1LE",IF364,1CAHD,IF364/6705,0093334P201626,SP495762,1833.52,CAHA
385,Revenue,CAHD,Home Care - Elderly - North,Day Care / Social Activities,Headway Bristol,703.56, 14-Nov-2016,,,,,,,,,,,,,,,,,,,,,,,,,,,,,,,,,,,,,0093334,"Frenchay Beckspool Building, Frenchay Park Road, Bristol, , BS16 1LE",IF365,1CAHD,IF365/6704,0093334P201626,SP495762,1833.52,CAHA
386,Revenue,CAHD,Home Care - Elderly - North,Other Small Contracts,Headway Bristol,191.88, 14-Nov-2016,,,,,,,,,,,,,,,,,,,,,,,,,,,,,,,,,,,,,0093334,"Frenchay Beckspool Building, Frenchay Park Road, Bristol, , BS16 1LE",IF365,1CAHD,IF365/6705,0093334P201626,SP495762,1833.52,CAHA
387,Revenue,CAHD,Home Care - Elderly - South,Day Care / Social Activities,Headway Bristol,671.58, 14-Nov-2016,,,,,,,,,,,,,,,,,,,,,,,,,,,,,,,,,,,,,0093334,"Frenchay Beckspool Building, Frenchay Park Road, Bristol, , BS16 1LE",IF364,1CAHD,IF364/6704,0093334P201627,SP495763,1929.46,CAHA
388,Revenue,CAHD,Home Care - Elderly - South,Other Small Contracts,Headway Bristol,341.12, 14-Nov-2016,,,,,,,,,,,,,,,,,,,,,,,,,,,,,,,,,,,,,0093334,"Frenchay Beckspool Building, Frenchay Park Road, Bristol, , BS16 1LE",IF364,1CAHD,IF364/6705,0093334P201627,SP495763,1929.46,CAHA
389,Revenue,CAHD,Home Care - Elderly - North,Day Care / Social Activities,Headway Bristol,724.88, 14-Nov-2016,,,,,,,,,,,,,,,,,,,,,,,,,,,,,,,,,,,,,0093334,"Frenchay Beckspool Building, Frenchay Park Road, Bristol, , BS16 1LE",IF365,1CAHD,IF365/6704,0093334P201627,SP495763,1929.46,CAHA
390,Revenue,CAHD,Home Care - Elderly - North,Other Small Contracts,Headway Bristol,191.88, 14-Nov-2016,,,,,,,,,,,,,,,,,,,,,,,,,,,,,,,,,,,,,0093334,"Frenchay Beckspool Building, Frenchay Park Road, Bristol, , BS16 1LE",IF365,1CAHD,IF365/6705,0093334P201627,SP495763,1929.46,CAHA
391,Revenue,CAHD,Younger MH non-res purchasing,Supported Living,Maples Community Care Limited,809.60, 14-Nov-2016,,,,,,,,,,,,,,,,,,,,,,,,,,,,,,,,,,,,,0892962,"The Laurels, 24 High Street, Staple Hill, South Gloucestershire, BS16 5HW",IP335,1CAHD,IP335/6707,11705,A0303654,809.60,CAHA
392,Revenue,CAHD,Younger MH non-res purchasing,Supported Living,Maples Community Care Limited,1108.14, 14-Nov-2016,,,,,,,,,,,,,,,,,,,,,,,,,,,,,,,,,,,,,0892962,"The Laurels, 24 High Street, Staple Hill, South Gloucestershire, BS16 5HW",IP335,1CAHD,IP335/6707,11712,A0301323,1108.14,CAHA
393,Revenue,CAHD,Younger MH non-res purchasing,Supported Living,Maples Community Care Limited,799.48, 14-Nov-2016,,,,,,,,,,,,,,,,,,,,,,,,,,,,,,,,,,,,,0892962,"The Laurels, 24 High Street, Staple Hill, South Gloucestershire, BS16 5HW",IP335,1CAHD,IP335/6707,11719,A0301302,799.48,CAHA
394,Revenue,CAHD,Younger MH non-res purchasing,Supported Living,Maples Community Care Limited,1163.80, 14-Nov-2016,,,,,,,,,,,,,,,,,,,,,,,,,,,,,,,,,,,,,0892962,"The Laurels, 24 High Street, Staple Hill, South Gloucestershire, BS16 5HW",IP335,1CAHD,IP335/6707,11740,A0301622,1163.80,CAHA
395,Revenue,CAHD,Younger MH non-res purchasing,Supported Living,Maples Community Care Limited,809.60, 14-Nov-2016,,,,,,,,,,,,,,,,,,,,,,,,,,,,,,,,,,,,,0892962,"The Laurels, 24 High Street, Staple Hill, South Gloucestershire, BS16 5HW",IP335,1CAHD,IP335/6707,11747,A0301625,809.60,CAHA
396,Revenue,CAHD,Social Lettings Agency,Fees - General,Individual,10.53, 14-Nov-2016,,,,,,,,,,,,,,,,,,,,,,,,,,,,,,,,,,,,,1205526,"Warren House Farm, Church Road, Iver Heath, , SL0 0RD",RC003,1CAHD,RC003/5700/SG0032,3000441,PP009436,595.11,CAHA
397,Revenue,CAHD,Social Lettings Agency,Other Supplies & Services,Individual,595.11, 14-Nov-2016,,,,,,,,,,,,,,,,,,,,,,,,,,,,,,,,,,,,,1205526,"Warren House Farm, Church Road, Iver Heath, , SL0 0RD",RC003,1CAHD,RC003/5990/SG0032,3000441,PP009436,595.11,CAHA
398,Revenue,CAHD,Social Lettings Agency,Fees - General,Individual,10.53, 14-Nov-2016,,,,,,,,,,,,,,,,,,,,,,,,,,,,,,,,,,,,,1221052,"38 Ross Close, Chipping Sodbury, South Gloucestershire, , BS37 6RS",RC003,1CAHD,RC003/5700/SG0046,3000471,PP009435,595.11,CAHA
399,Revenue,CAHD,Social Lettings Agency,Other Supplies & Services,Individual,595.11, 14-Nov-2016,,,,,,,,,,,,,,,,,,,,,,,,,,,,,,,,,,,,,1221052,"38 Ross Close, Chipping Sodbury, South Gloucestershire, , BS37 6RS",RC003,1CAHD,RC003/5990/SG0046,3000471,PP009435,595.11,CAHA
400,Revenue,CAHD,Information Systems - Software,Software Support & Maintenance,SoftBox Limited,1128.00, 14-Nov-2016,,,,,,,,,,,,,,,,,,,,,,,,,,,,,,,,,,,,,0474966,"Atrium House, 574 Manchester Road, Bury, Lancashire, BL9 9SW",KS042,1CAHD,KS042/5552,S3438,A0303228,1353.60,CAHA
401,Revenue,CAHD,Community Promoting Independence Team,Care Management/Assessment Staff Pay,Sugarman Group Ltd,875.45, 14-Nov-2016,,,,,,,,,,,,,,,,,,,,,,,,,,,,,,,,,,,,,1221581,"3rd Floor, 21 Bennetts Hill, Birmingham, , B2 5QP",KV345,1CAHD,kv345/1261,TM386840,A0303695,1050.54,CAHA
402,Revenue,CAHD,Community Support - South,Preventative Assistance,Supported Independent Living Schemes,778.92, 14-Nov-2016,,,,,,,,,,,,,,,,,,,,,,,,,,,,,,,,,,,,,0813909,"Suite 2, Corona Buildings , Service, Unit 3 Solsbro Road, Wood Road, Kingswood, , Bristol, BS15 8DT",KR364,1CAHD,kr364/5880,1157,A0303714,778.92,CAHA
403,Revenue,CAHD,Social Lettings Agency,Fees - General,Individual,19.09, 14-Nov-2016,,,,,,,,,,,,,,,,,,,,,,,,,,,,,,,,,,,,,1229117,"Brigadoon, Corston, Bath, , BA2 9AN",RC003,1CAHD,RC003/5700/SG0052,3000495,PP009434,649.09,CAHA
404,Revenue,CAHD,Social Lettings Agency,Other Supplies & Services,Individual,649.09, 14-Nov-2016,,,,,,,,,,,,,,,,,,,,,,,,,,,,,,,,,,,,,1229117,"Brigadoon, Corston, Bath, , BA2 9AN",RC003,1CAHD,RC003/5990/SG0052,3000495,PP009434,649.09,CAHA
405,Revenue,CAHD,Younger MH non-res purchasing,Supported Living,Voyage Limited,5585.28, 14-Nov-2016,,,,,,,,,,,,,,,,,,,,,,,,,,,,,,,,,,,,,1218791,"Wall Island, Birmingham Road, Lichfield, Staffordshire, WS14 0QP",IP335,1CAHD,IP335/6707,VFIS/1056317,A0282277,5585.28,CAHA
406,Revenue,CAHD,Younger MH non-res purchasing,Supported Living,Voyage Limited,5585.28, 14-Nov-2016,,,,,,,,,,,,,,,,,,,,,,,,,,,,,,,,,,,,,1218791,"Wall Island, Birmingham Road, Lichfield, Staffordshire, WS14 0QP",IP335,1CAHD,IP335/6707,VFIS/1057371,A0285596,5585.28,CAHA
407,Revenue,CAHD,Younger MH non-res purchasing,Supported Living,Voyage Limited,4324.32, 14-Nov-2016,,,,,,,,,,,,,,,,,,,,,,,,,,,,,,,,,,,,,1218791,"Wall Island, Birmingham Road, Lichfield, Staffordshire, WS14 0QP",IP335,1CAHD,IP335/6707,VFIS/1058024,A0288670,4324.32,CAHA
408,Revenue,CAHD,Home Care - Elderly - South,Day Care / Social Activities,3 Trees Community Support Ltd,91.60, 15-Nov-2016,,,,,,,,,,,,,,,,,,,,,,,,,,,,,,,,,,,,,1139679,"56 A Greystoke Avenue, Westbury on Trym, Bristol, , BS10 6AZ",IF364,1CAHD,IF364/6704,1139679P201629,SP496361,10615.38,CAHA
409,Revenue,CAHD,Home Care - Elderly - North,Day Care / Social Activities,3 Trees Community Support Ltd,1346.52, 15-Nov-2016,,,,,,,,,,,,,,,,,,,,,,,,,,,,,,,,,,,,,1139679,"56 A Greystoke Avenue, Westbury on Trym, Bristol, , BS10 6AZ",IF365,1CAHD,IF365/6704,1139679P201629,SP496361,10615.38,CAHA
410,Revenue,CAHD,Home Care - Elderly - North,Other Small Contracts,3 Trees Community Support Ltd,696.16, 15-Nov-2016,,,,,,,,,,,,,,,,,,,,,,,,,,,,,,,,,,,,,1139679,"56 A Greystoke Avenue, Westbury on Trym, Bristol, , BS10 6AZ",IF365,1CAHD,IF365/6705,1139679P201629,SP496361,10615.38,CAHA
411,Revenue,CAHD,Home Care - Elderly - North,Supported Living,3 Trees Community Support Ltd,8481.10, 15-Nov-2016,,,,,,,,,,,,,,,,,,,,,,,,,,,,,,,,,,,,,1139679,"56 A Greystoke Avenue, Westbury on Trym, Bristol, , BS10 6AZ",IF365,1CAHD,IF365/6707,1139679P201629,SP496361,10615.38,CAHA
412,Revenue,CAHD,South Glos Users in South Glos Homes,Permanent Nursing,Blossom Fields,625.00, 15-Nov-2016,,,,,,,,,,,,,,,,,,,,,,,,,,,,,,,,,,,,,1171574,"84 High Street, Winterbourne, Bristol, , BS36 1RB",IE900,1CAHD,IE900/6710/S75905,Oct - Blossom Flds,SP496386,625.00,CAHA
413,Revenue,CAHD,South Glos Users in South Glos Homes,Permanent Nursing,Blossom Fields,625.00, 15-Nov-2016,,,,,,,,,,,,,,,,,,,,,,,,,,,,,,,,,,,,,1171574,"84 High Street, Winterbourne, Bristol, , BS36 1RB",IE900,1CAHD,IE900/6710/S300065531,Oct - Blossom Flds,SP496387,625.00,CAHA
414,Revenue,CAHD,South Glos Users in South Glos Homes,Permanent Nursing,Blossom Fields,625.00, 15-Nov-2016,,,,,,,,,,,,,,,,,,,,,,,,,,,,,,,,,,,,,1171574,"84 High Street, Winterbourne, Bristol, , BS36 1RB",IE900,1CAHD,IE900/6710/S133088,Oct - Blossom Flds,SP496388,625.00,CAHA
415,Revenue,CAHD,Bed Purchasing - North,Permanent Nursing,Blossom Fields,1860.16, 15-Nov-2016,,,,,,,,,,,,,,,,,,,,,,,,,,,,,,,,,,,,,1171574,"84 High Street, Winterbourne, Bristol, , BS36 1RB",IE107,1CAHD,IE107/6710/S75905,Oct - Blossom Flds,SP496389,1860.16,CAHA
416,Revenue,CAHD,Bed Purchasing - Southmead Hospital,Permanent Nursing,Blossom Fields,2129.20, 15-Nov-2016,,,,,,,,,,,,,,,,,,,,,,,,,,,,,,,,,,,,,1171574,"84 High Street, Winterbourne, Bristol, , BS36 1RB",IE345,1CAHD,IE345/6710/S300065531,Oct - Blossom Flds,SP496390,2129.20,CAHA
417,Revenue,CAHD,Bed Purchasing - North,Permanent Nursing,Blossom Fields,2652.00, 15-Nov-2016,,,,,,,,,,,,,,,,,,,,,,,,,,,,,,,,,,,,,1171574,"84 High Street, Winterbourne, Bristol, , BS36 1RB",IE107,1CAHD,IE107/6710/S133088,Oct - Blossom Flds,SP496391,2652.00,CAHA
418,Revenue,CAHD,Home Care - Elderly - South,Other Small Contracts,Care Horizons Limited,346.56, 15-Nov-2016,,,,,,,,,,,,,,,,,,,,,,,,,,,,,,,,,,,,,0804798,"130 Aztec West, Almondsbury, Bristol, , BS32 4UB",IF364,1CAHD,IF364/6705,0804798P201629,SP496446,1194.72,CAHA
419,Revenue,CAHD,Home Care - Elderly - North,Day Care / Social Activities,Care Horizons Limited,542.64, 15-Nov-2016,,,,,,,,,,,,,,,,,,,,,,,,,,,,,,,,,,,,,0804798,"130 Aztec West, Almondsbury, Bristol, , BS32 4UB",IF365,1CAHD,IF365/6704,0804798P201629,SP496446,1194.72,CAHA
420,Revenue,CAHD,Home Care - Elderly - North,Other Small Contracts,Care Horizons Limited,305.52, 15-Nov-2016,,,,,,,,,,,,,,,,,,,,,,,,,,,,,,,,,,,,,0804798,"130 Aztec West, Almondsbury, Bristol, , BS32 4UB",IF365,1CAHD,IF365/6705,0804798P201629,SP496446,1194.72,CAHA
421,Revenue,CAHD,Home Care - Elderly - South,Other Small Contracts,Care Horizons Limited,351.12, 15-Nov-2016,,,,,,,,,,,,,,,,,,,,,,,,,,,,,,,,,,,,,0804798,"130 Aztec West, Almondsbury, Bristol, , BS32 4UB",IF364,1CAHD,IF364/6705,0804798P201630,SP496447,1267.68,CAHA
422,Revenue,CAHD,Home Care - Elderly - North,Day Care / Social Activities,Care Horizons Limited,542.64, 15-Nov-2016,,,,,,,,,,,,,,,,,,,,,,,,,,,,,,,,,,,,,0804798,"130 Aztec West, Almondsbury, Bristol, , BS32 4UB",IF365,1CAHD,IF365/6704,0804798P201630,SP496447,1267.68,CAHA
423,Revenue,CAHD,Home Care - Elderly - North,Other Small Contracts,Care Horizons Limited,373.92, 15-Nov-2016,,,,,,,,,,,,,,,,,,,,,,,,,,,,,,,,,,,,,0804798,"130 Aztec West, Almondsbury, Bristol, , BS32 4UB",IF365,1CAHD,IF365/6705,0804798P201630,SP496447,1267.68,CAHA
424,Revenue,CAHD,Home Care - Elderly - South,Other Small Contracts,Carepride Ltd,787.50, 15-Nov-2016,,,,,,,,,,,,,,,,,,,,,,,,,,,,,,,,,,,,,1236036,"5 Soundwell Road, Bristol, , , BS16 4QG",IF364,1CAHD,IF364/6705,1902,A0303762,787.50,CAHA
425,Revenue,CAHD,Home Care - Elderly - South,Other Small Contracts,Carepride Ltd,882.00, 15-Nov-2016,,,,,,,,,,,,,,,,,,,,,,,,,,,,,,,,,,,,,1236036,"5 Soundwell Road, Bristol, , , BS16 4QG",IF364,1CAHD,IF364/6705,1922,A0303763,882.00,CAHA
426,Revenue,CAHD,Bed and Breakfast,Bed & Breakfast,E J Bartlett,490.00, 15-Nov-2016,,,,,,,,,,,,,,,,,,,,,,,,,,,,,,,,,,,,,0625605,"Pool Farm, Wotton Road, Rangeworthy, S Gloucestershire, BS37 7NA",RC001,1CAHD,RC001/5605,4653,A0303830,588.00,CAHA
427,Revenue,CAHD,Bed and Breakfast,Bed & Breakfast,E J Bartlett,434.00, 15-Nov-2016,,,,,,,,,,,,,,,,,,,,,,,,,,,,,,,,,,,,,0625605,"Pool Farm, Wotton Road, Rangeworthy, S Gloucestershire, BS37 7NA",RC001,1CAHD,RC001/5605,4654,A0303831,520.80,CAHA
428,Revenue,CAHD,Bed and Breakfast,Bed & Breakfast,E J Bartlett,420.00, 15-Nov-2016,,,,,,,,,,,,,,,,,,,,,,,,,,,,,,,,,,,,,0625605,"Pool Farm, Wotton Road, Rangeworthy, S Gloucestershire, BS37 7NA",RC001,1CAHD,RC001/5605,4658,A0303835,504.00,CAHA
429,Revenue,CAHD,Home Care - Elderly - South,Other Small Contracts,Everycare (Bristol) Ltd,3226.40, 15-Nov-2016,,,,,,,,,,,,,,,,,,,,,,,,,,,,,,,,,,,,,1174803,"The Vassall Centre, Gill Avenue, Fishponds, Bristol, BS16 2QQ",IF364,1CAHD,IF364/6705,1174803P201628,SP496454,5580.80,CAHA
430,Revenue,CAHD,Home Care - Elderly - North,Other Small Contracts,Everycare (Bristol) Ltd,2354.40, 15-Nov-2016,,,,,,,,,,,,,,,,,,,,,,,,,,,,,,,,,,,,,1174803,"The Vassall Centre, Gill Avenue, Fishponds, Bristol, BS16 2QQ",IF365,1CAHD,IF365/6705,1174803P201628,SP496454,5580.80,CAHA
431,Revenue,CAHD,Home Care - Elderly - South,Day Care / Social Activities,Fourways Care Limited,409.70, 15-Nov-2016,,,,,,,,,,,,,,,,,,,,,,,,,,,,,,,,,,,,,1226801,"Unit 1, Henfield Business Park, Westerleigh Road Henfield, Bristol, BS36 2UP",IF364,1CAHD,IF364/6704,1226801P201629,SP496364,14860.70,CAHA
432,Revenue,CAHD,Home Care - Elderly - South,Other Small Contracts,Fourways Care Limited,7210.80, 15-Nov-2016,,,,,,,,,,,,,,,,,,,,,,,,,,,,,,,,,,,,,1226801,"Unit 1, Henfield Business Park, Westerleigh Road Henfield, Bristol, BS36 2UP",IF364,1CAHD,IF364/6705,1226801P201629,SP496364,14860.70,CAHA
433,Revenue,CAHD,Home Care - Elderly - North,Day Care / Social Activities,Fourways Care Limited,144.60, 15-Nov-2016,,,,,,,,,,,,,,,,,,,,,,,,,,,,,,,,,,,,,1226801,"Unit 1, Henfield Business Park, Westerleigh Road Henfield, Bristol, BS36 2UP",IF365,1CAHD,IF365/6704,1226801P201629,SP496364,14860.70,CAHA
434,Revenue,CAHD,Home Care - Elderly - North,Other Small Contracts,Fourways Care Limited,7037.76, 15-Nov-2016,,,,,,,,,,,,,,,,,,,,,,,,,,,,,,,,,,,,,1226801,"Unit 1, Henfield Business Park, Westerleigh Road Henfield, Bristol, BS36 2UP",IF365,1CAHD,IF365/6705,1226801P201629,SP496364,14860.70,CAHA
435,Revenue,CAHD,Younger MH non-res purchasing,Other Small Contracts,Fourways Care Limited,57.84, 15-Nov-2016,,,,,,,,,,,,,,,,,,,,,,,,,,,,,,,,,,,,,1226801,"Unit 1, Henfield Business Park, Westerleigh Road Henfield, Bristol, BS36 2UP",IP335,1CAHD,IP335/6705,1226801P201629,SP496364,14860.70,CAHA
436,Revenue,CAHD,Home Care - Elderly - South,Day Care / Social Activities,Fourways Care Limited,453.08, 15-Nov-2016,,,,,,,,,,,,,,,,,,,,,,,,,,,,,,,,,,,,,1226801,"Unit 1, Henfield Business Park, Westerleigh Road Henfield, Bristol, BS36 2UP",IF364,1CAHD,IF364/6704,1226801P201630,SP496458,15869.18,CAHA
437,Revenue,CAHD,Home Care - Elderly - South,Other Small Contracts,Fourways Care Limited,7856.54, 15-Nov-2016,,,,,,,,,,,,,,,,,,,,,,,,,,,,,,,,,,,,,1226801,"Unit 1, Henfield Business Park, Westerleigh Road Henfield, Bristol, BS36 2UP",IF364,1CAHD,IF364/6705,1226801P201630,SP496458,15869.18,CAHA
438,Revenue,CAHD,Home Care - Elderly - North,Day Care / Social Activities,Fourways Care Limited,149.42, 15-Nov-2016,,,,,,,,,,,,,,,,,,,,,,,,,,,,,,,,,,,,,1226801,"Unit 1, Henfield Business Park, Westerleigh Road Henfield, Bristol, BS36 2UP",IF365,1CAHD,IF365/6704,1226801P201630,SP496458,15869.18,CAHA
439,Revenue,CAHD,Home Care - Elderly - North,Other Small Contracts,Fourways Care Limited,7323.38, 15-Nov-2016,,,,,,,,,,,,,,,,,,,,,,,,,,,,,,,,,,,,,1226801,"Unit 1, Henfield Business Park, Westerleigh Road Henfield, Bristol, BS36 2UP",IF365,1CAHD,IF365/6705,1226801P201630,SP496458,15869.18,CAHA
440,Revenue,CAHD,Younger MH non-res purchasing,Other Small Contracts,Fourways Care Limited,86.76, 15-Nov-2016,,,,,,,,,,,,,,,,,,,,,,,,,,,,,,,,,,,,,1226801,"Unit 1, Henfield Business Park, Westerleigh Road Henfield, Bristol, BS36 2UP",IP335,1CAHD,IP335/6705,1226801P201630,SP496458,15869.18,CAHA
441,Revenue,CAHD,Home Care - Elderly - South,Other Small Contracts,Homecare 4U,333.74, 15-Nov-2016,,,,,,,,,,,,,,,,,,,,,,,,,,,,,,,,,,,,,1220051,"Tameway Tower, Bridge Street, Walsall, , WS1 1JZ",IF364,1CAHD,IF364/6705,1220051P201628,SP496457,1123.32,CAHA
442,Revenue,CAHD,Home Care - Elderly - North,Other Small Contracts,Homecare 4U,789.58, 15-Nov-2016,,,,,,,,,,,,,,,,,,,,,,,,,,,,,,,,,,,,,1220051,"Tameway Tower, Bridge Street, Walsall, , WS1 1JZ",IF365,1CAHD,IF365/6705,1220051P201628,SP496457,1123.32,CAHA
443,Revenue,CAHD,Home Care - Elderly - South,Other Small Contracts,Kumari Care Limited,1500.66, 15-Nov-2016,,,,,,,,,,,,,,,,,,,,,,,,,,,,,,,,,,,,,0405456,"74 Circus Mews, Bath, , , BA1 2PW",IF364,1CAHD,IF364/6705,0405456P201628,SP496444,2348.03,CAHA
444,Revenue,CAHD,Home Care - Elderly - North,Other Small Contracts,Kumari Care Limited,847.37, 15-Nov-2016,,,,,,,,,,,,,,,,,,,,,,,,,,,,,,,,,,,,,0405456,"74 Circus Mews, Bath, , , BA1 2PW",IF365,1CAHD,IF365/6705,0405456P201628,SP496444,2348.03,CAHA
445,Revenue,CAHD,TSG Practice Placements,Training Expenses,Individual,545.00, 15-Nov-2016,,,,,,,,,,,,,,,,,,,,,,,,,,,,,,,,,,,,,0255211,"47 Downman Road, Lockleaze, Bristol, , BS7 9TY",KW623,1CAHD,KW623/2831,48,A0302309,545.00,CAHA
446,Revenue,CAHD,Tenancy Start Up Scheme,Other Supplies & Services,Individual,635.00, 15-Nov-2016,,,,,,,,,,,,,,,,,,,,,,,,,,,,,,,,,,,,,1156735,"1 Chequers Close, Oldland Common, South Gloucestershire, , BS30 6RL",RC014,1CAHD,RC014/5990/TSU376,ORP20927,RP029006,635.00,CAHA
447,Revenue,CAHD,Home Care - Elderly - South,Other Small Contracts,Medacs Home Care,14.36, 15-Nov-2016,,,,,,,,,,,,,,,,,,,,,,,,,,,,,,,,,,,,,1089448,"3rd Floor 1 Belle Vue Square, Broughton Road, Skipton, North Yorkshire, BD23 1FJ",IF364,1CAHD,IF364/6705,1089448P201628,SP496449,549.27,CAHA
448,Revenue,CAHD,Home Care - Elderly - North,Other Small Contracts,Medacs Home Care,244.12, 15-Nov-2016,,,,,,,,,,,,,,,,,,,,,,,,,,,,,,,,,,,,,1089448,"3rd Floor 1 Belle Vue Square, Broughton Road, Skipton, North Yorkshire, BD23 1FJ",IF365,1CAHD,IF365/6705,1089448P201628,SP496449,549.27,CAHA
449,Revenue,CAHD,Home Care - Elderly - North,Supported Living,Medacs Home Care,290.79, 15-Nov-2016,,,,,,,,,,,,,,,,,,,,,,,,,,,,,,,,,,,,,1089448,"3rd Floor 1 Belle Vue Square, Broughton Road, Skipton, North Yorkshire, BD23 1FJ",IF365,1CAHD,IF365/6707,1089448P201628,SP496449,549.27,CAHA
450,Revenue,CAHD,Home Care - Elderly - South,Other Small Contracts,Medacs Home Care,14.36, 15-Nov-2016,,,,,,,,,,,,,,,,,,,,,,,,,,,,,,,,,,,,,1089448,"3rd Floor 1 Belle Vue Square, Broughton Road, Skipton, North Yorkshire, BD23 1FJ",IF364,1CAHD,IF364/6705,1089448P201629,SP496357,556.45,CAHA
451,Revenue,CAHD,Home Care - Elderly - North,Other Small Contracts,Medacs Home Care,244.12, 15-Nov-2016,,,,,,,,,,,,,,,,,,,,,,,,,,,,,,,,,,,,,1089448,"3rd Floor 1 Belle Vue Square, Broughton Road, Skipton, North Yorkshire, BD23 1FJ",IF365,1CAHD,IF365/6705,1089448P201629,SP496357,556.45,CAHA
452,Revenue,CAHD,Home Care - Elderly - North,Supported Living,Medacs Home Care,297.97, 15-Nov-2016,,,,,,,,,,,,,,,,,,,,,,,,,,,,,,,,,,,,,1089448,"3rd Floor 1 Belle Vue Square, Broughton Road, Skipton, North Yorkshire, BD23 1FJ",IF365,1CAHD,IF365/6707,1089448P201629,SP496357,556.45,CAHA
453,Revenue,CAHD,Training - Adult Services,Training Expenses,National Autistic Society,1918.28, 15-Nov-2016,,,,,,,,,,,,,,,,,,,,,,,,,,,,,,,,,,,,,1142864,"Church House, Church Road, Filton, Bristol, BS34 7BD",KW203,1CAHD,KW203/2831,TCC1247981,A0303803,2301.93,CAHA
454,Revenue,CAHD,Home Care - Elderly - South,Day Care / Social Activities,Nestor T/A Allied Healthcare,39.00, 15-Nov-2016,,,,,,,,,,,,,,,,,,,,,,,,,,,,,,,,,,,,,1210184,"Cavendish House, Lakhpur Court, Staffordshire Technology Park, Stafford, ST18 0FX",IF364,1CAHD,IF364/6704,1210184P201625,SP496456,8934.90,CAHA
455,Revenue,CAHD,Home Care - Elderly - South,Other Small Contracts,Nestor T/A Allied Healthcare,2722.20, 15-Nov-2016,,,,,,,,,,,,,,,,,,,,,,,,,,,,,,,,,,,,,1210184,"Cavendish House, Lakhpur Court, Staffordshire Technology Park, Stafford, ST18 0FX",IF364,1CAHD,IF364/6705,1210184P201625,SP496456,8934.90,CAHA
456,Revenue,CAHD,Home Care - Elderly - North,Other Small Contracts,Nestor T/A Allied Healthcare,6134.70, 15-Nov-2016,,,,,,,,,,,,,,,,,,,,,,,,,,,,,,,,,,,,,1210184,"Cavendish House, Lakhpur Court, Staffordshire Technology Park, Stafford, ST18 0FX",IF365,1CAHD,IF365/6705,1210184P201625,SP496456,8934.90,CAHA
457,Revenue,CAHD,Day Care - North,Day Care / Social Activities,Nestor T/A Allied Healthcare,39.00, 15-Nov-2016,,,,,,,,,,,,,,,,,,,,,,,,,,,,,,,,,,,,,1210184,"Cavendish House, Lakhpur Court, Staffordshire Technology Park, Stafford, ST18 0FX",IF901,1CAHD,IF901/6704,1210184P201625,SP496456,8934.90,CAHA
458,Revenue,CAHD,Home Care - Elderly - South,Other Small Contracts,Nursing Solutions Limited,1636.13, 15-Nov-2016,,,,,,,,,,,,,,,,,,,,,,,,,,,,,,,,,,,,,1103422,"Sterling Buildings, High Street, Worle, Weston super Mare, North Somerset, BS22 6JD",IF364,1CAHD,IF364/6705,1103422P201627,SP496358,1636.13,CAHA
459,Revenue,CAHD,Home Care - Elderly - South,Other Small Contracts,Nursing Solutions Limited,1681.02, 15-Nov-2016,,,,,,,,,,,,,,,,,,,,,,,,,,,,,,,,,,,,,1103422,"Sterling Buildings, High Street, Worle, Weston super Mare, North Somerset, BS22 6JD",IF364,1CAHD,IF364/6705,1103422P201628,SP496359,1681.02,CAHA
460,Revenue,CAHD,Home Care - Elderly - South,Other Small Contracts,Nursing Solutions Limited,1438.71, 15-Nov-2016,,,,,,,,,,,,,,,,,,,,,,,,,,,,,,,,,,,,,1103422,"Sterling Buildings, High Street, Worle, Weston super Mare, North Somerset, BS22 6JD",IF364,1CAHD,IF364/6705,1103422P201630,SP496451,1438.71,CAHA
461,Revenue,CAHD,Home Care - Elderly - North,Day Care / Social Activities,Premier Homecare Limited,84.24, 15-Nov-2016,,,,,,,,,,,,,,,,,,,,,,,,,,,,,,,,,,,,,0865261,"24 Canford Lane, Westbury-on-Trym, Bristol, , BS9 3DH",IF365,1CAHD,IF365/6704,0865261P201629,SP496356,9696.96,CAHA
462,Revenue,CAHD,Home Care - Elderly - North,Other Small Contracts,Premier Homecare Limited,9612.72, 15-Nov-2016,,,,,,,,,,,,,,,,,,,,,,,,,,,,,,,,,,,,,0865261,"24 Canford Lane, Westbury-on-Trym, Bristol, , BS9 3DH",IF365,1CAHD,IF365/6705,0865261P201629,SP496356,9696.96,CAHA
463,Revenue,CAHD,Home Care - Elderly - North,Day Care / Social Activities,Premier Homecare Limited,84.24, 15-Nov-2016,,,,,,,,,,,,,,,,,,,,,,,,,,,,,,,,,,,,,0865261,"24 Canford Lane, Westbury-on-Trym, Bristol, , BS9 3DH",IF365,1CAHD,IF365/6704,0865261P201630,SP496448,8817.12,CAHA
464,Revenue,CAHD,Home Care - Elderly - North,Other Small Contracts,Premier Homecare Limited,8732.88, 15-Nov-2016,,,,,,,,,,,,,,,,,,,,,,,,,,,,,,,,,,,,,0865261,"24 Canford Lane, Westbury-on-Trym, Bristol, , BS9 3DH",IF365,1CAHD,IF365/6705,0865261P201630,SP496448,8817.12,CAHA
465,Revenue,CAHD,Home Care - Elderly - South,Day Care / Social Activities,Selborne Care Ltd,543.06, 15-Nov-2016,,,,,,,,,,,,,,,,,,,,,,,,,,,,,,,,,,,,,1103242,"97 Friar Street, Droitwich, Worcestershire, , WR9 8EG",IF364,1CAHD,IF364/6704,1103242P201628,SP496071,2542.90,CAHA
466,Revenue,CAHD,Home Care - Elderly - South,Other Small Contracts,Selborne Care Ltd,68.96, 15-Nov-2016,,,,,,,,,,,,,,,,,,,,,,,,,,,,,,,,,,,,,1103242,"97 Friar Street, Droitwich, Worcestershire, , WR9 8EG",IF364,1CAHD,IF364/6705,1103242P201628,SP496071,2542.90,CAHA
467,Revenue,CAHD,Home Care - Elderly - South,Supported Living,Selborne Care Ltd,1344.72, 15-Nov-2016,,,,,,,,,,,,,,,,,,,,,,,,,,,,,,,,,,,,,1103242,"97 Friar Street, Droitwich, Worcestershire, , WR9 8EG",IF364,1CAHD,IF364/6707,1103242P201628,SP496071,2542.90,CAHA
468,Revenue,CAHD,Home Care - Elderly - North,Day Care / Social Activities,Selborne Care Ltd,534.44, 15-Nov-2016,,,,,,,,,,,,,,,,,,,,,,,,,,,,,,,,,,,,,1103242,"97 Friar Street, Droitwich, Worcestershire, , WR9 8EG",IF365,1CAHD,IF365/6704,1103242P201628,SP496071,2542.90,CAHA
469,Revenue,CAHD,Home Care - Elderly - North,Supported Living,Selborne Care Ltd,51.72, 15-Nov-2016,,,,,,,,,,,,,,,,,,,,,,,,,,,,,,,,,,,,,1103242,"97 Friar Street, Droitwich, Worcestershire, , WR9 8EG",IF365,1CAHD,IF365/6707,1103242P201628,SP496071,2542.90,CAHA
470,Revenue,CAHD,Pathway 2 - (Interim Beds),Permanent Nursing,Windmill Care Limited,6720.00, 15-Nov-2016,,,,,,,,,,,,,,,,,,,,,,,,,,,,,,,,,,,,,0839433,"Windmill House, Old Down, Tockington, Bristol, BS32 4PH",IE901,1CAHD,IE901/6710,ORP20959,RP028999,6720.00,CAHA
471,Revenue,CAHD,Pathway 3 - (Complex Beds),Permanent Nursing,Windmill Care Limited,6720.00, 15-Nov-2016,,,,,,,,,,,,,,,,,,,,,,,,,,,,,,,,,,,,,0839433,"Windmill House, Old Down, Tockington, Bristol, BS32 4PH",IE903,1CAHD,IE903/6710,ORP20960,RP029000,6720.00,CAHA
472,Revenue,CAHD,Home Care - Elderly - South,Other Small Contracts,Cherish Able Care Limited,5889.28, 16-Nov-2016,,,,,,,,,,,,,,,,,,,,,,,,,,,,,,,,,,,,,1169234,"106 Soundwell Road, Staple Hill, Bristol, , BS16 4RE",IF364,1CAHD,IF364/6705,1169234P201627,SP495195,6069.04,CAHA
473,Revenue,CAHD,Home Care - Elderly - North,Other Small Contracts,Cherish Able Care Limited,179.76, 16-Nov-2016,,,,,,,,,,,,,,,,,,,,,,,,,,,,,,,,,,,,,1169234,"106 Soundwell Road, Staple Hill, Bristol, , BS16 4RE",IF365,1CAHD,IF365/6705,1169234P201627,SP495195,6069.04,CAHA
474,Revenue,CAHD,Home Care - Elderly - South,Other Small Contracts,Kumari Care Limited,1496.69, 16-Nov-2016,,,,,,,,,,,,,,,,,,,,,,,,,,,,,,,,,,,,,0405456,"74 Circus Mews, Bath, , , BA1 2PW",IF364,1CAHD,IF364/6705,0405456P201629,SP496557,2344.07,CAHA
475,Revenue,CAHD,Home Care - Elderly - North,Other Small Contracts,Kumari Care Limited,847.38, 16-Nov-2016,,,,,,,,,,,,,,,,,,,,,,,,,,,,,,,,,,,,,0405456,"74 Circus Mews, Bath, , , BA1 2PW",IF365,1CAHD,IF365/6705,0405456P201629,SP496557,2344.07,CAHA
476,Revenue,CAHD,Planning and Partnerships Procurement,Other Supplies & Services,L D Awareness,665.00, 16-Nov-2016,,,,,,,,,,,,,,,,,,,,,,,,,,,,,,,,,,,,,1210948,"116 Samuel White Road, Hanham, Bristol, , BS15 3LR",IS703,1CAHD,is703/5990,LDA075,A0289713,665.00,CAHA
477,Revenue,CAHD,Younger MH non-res purchasing,Supported Living,Maples Community Care Limited,809.60, 16-Nov-2016,,,,,,,,,,,,,,,,,,,,,,,,,,,,,,,,,,,,,0892962,"The Laurels, 24 High Street, Staple Hill, South Gloucestershire, BS16 5HW",IP335,1CAHD,IP335/6707,11644,A0303778,809.60,CAHA
478,Revenue,CAHD,Social Lettings Agency,Fees - General,Individual,10.53, 16-Nov-2016,,,,,,,,,,,,,,,,,,,,,,,,,,,,,,,,,,,,,1170077,"4 Greystones Avenue, Bristol, , , BS16 6LE",RC003,1CAHD,RC003/5700/SG0054,3000496,PP009443,595.11,CAHA
479,Revenue,CAHD,Social Lettings Agency,Other Supplies & Services,Individual,595.11, 16-Nov-2016,,,,,,,,,,,,,,,,,,,,,,,,,,,,,,,,,,,,,1170077,"4 Greystones Avenue, Bristol, , , BS16 6LE",RC003,1CAHD,RC003/5990/SG0054,3000496,PP009443,595.11,CAHA
480,Revenue,CAHD,Home Care - Elderly - South,Day Care / Social Activities,Selborne Care Ltd,517.20, 16-Nov-2016,,,,,,,,,,,,,,,,,,,,,,,,,,,,,,,,,,,,,1103242,"97 Friar Street, Droitwich, Worcestershire, , WR9 8EG",IF364,1CAHD,IF364/6704,1103242P201626,SP496558,2344.64,CAHA
481,Revenue,CAHD,Home Care - Elderly - South,Other Small Contracts,Selborne Care Ltd,68.96, 16-Nov-2016,,,,,,,,,,,,,,,,,,,,,,,,,,,,,,,,,,,,,1103242,"97 Friar Street, Droitwich, Worcestershire, , WR9 8EG",IF364,1CAHD,IF364/6705,1103242P201626,SP496558,2344.64,CAHA
482,Revenue,CAHD,Home Care - Elderly - South,Supported Living,Selborne Care Ltd,1241.28, 16-Nov-2016,,,,,,,,,,,,,,,,,,,,,,,,,,,,,,,,,,,,,1103242,"97 Friar Street, Droitwich, Worcestershire, , WR9 8EG",IF364,1CAHD,IF364/6707,1103242P201626,SP496558,2344.64,CAHA
483,Revenue,CAHD,Home Care - Elderly - North,Day Care / Social Activities,Selborne Care Ltd,413.76, 16-Nov-2016,,,,,,,,,,,,,,,,,,,,,,,,,,,,,,,,,,,,,1103242,"97 Friar Street, Droitwich, Worcestershire, , WR9 8EG",IF365,1CAHD,IF365/6704,1103242P201626,SP496558,2344.64,CAHA
484,Revenue,CAHD,Home Care - Elderly - North,Supported Living,Selborne Care Ltd,103.44, 16-Nov-2016,,,,,,,,,,,,,,,,,,,,,,,,,,,,,,,,,,,,,1103242,"97 Friar Street, Droitwich, Worcestershire, , WR9 8EG",IF365,1CAHD,IF365/6707,1103242P201626,SP496558,2344.64,CAHA
485,Revenue,CAHD,Home Care - Elderly - South,Other Small Contracts,Silva Care Limited,9113.76, 16-Nov-2016,,,,,,,,,,,,,,,,,,,,,,,,,,,,,,,,,,,,,1139951,"19b Osprey Court, Whitchurch Lane, Bristol, , BS14 0BB",IF364,1CAHD,IF364/6705,INV-9037,A0296448,9113.76,CAHA
486,Revenue,CAHD,Home Care - Elderly - North,Other Small Contracts,Silva Care Limited,4981.68, 16-Nov-2016,,,,,,,,,,,,,,,,,,,,,,,,,,,,,,,,,,,,,1139951,"19b Osprey Court, Whitchurch Lane, Bristol, , BS14 0BB",IF365,1CAHD,if365/6705,lNV-9582,A0301691,4981.68,CAHA
487,Revenue,CAHD,Home Care - Elderly - South,Day Care / Social Activities,Smile Independent Living Support Limited,218.04, 16-Nov-2016,,,,,,,,,,,,,,,,,,,,,,,,,,,,,,,,,,,,,1112714,"7a High Street, Chipping Sodbury, South Gloucestershire, , BS37 6BA",IF364,1CAHD,IF364/6704,1112714P201629,SP496360,1355.64,CAHA
488,Revenue,CAHD,Home Care - Elderly - South,Other Small Contracts,Smile Independent Living Support Limited,251.22, 16-Nov-2016,,,,,,,,,,,,,,,,,,,,,,,,,,,,,,,,,,,,,1112714,"7a High Street, Chipping Sodbury, South Gloucestershire, , BS37 6BA",IF364,1CAHD,IF364/6705,1112714P201629,SP496360,1355.64,CAHA
489,Revenue,CAHD,Home Care - Elderly - North,Day Care / Social Activities,Smile Independent Living Support Limited,673.08, 16-Nov-2016,,,,,,,,,,,,,,,,,,,,,,,,,,,,,,,,,,,,,1112714,"7a High Street, Chipping Sodbury, South Gloucestershire, , BS37 6BA",IF365,1CAHD,IF365/6704,1112714P201629,SP496360,1355.64,CAHA
490,Revenue,CAHD,Home Care - Elderly - North,Supported Living,Smile Independent Living Support Limited,213.30, 16-Nov-2016,,,,,,,,,,,,,,,,,,,,,,,,,,,,,,,,,,,,,1112714,"7a High Street, Chipping Sodbury, South Gloucestershire, , BS37 6BA",IF365,1CAHD,IF365/6707,1112714P201629,SP496360,1355.64,CAHA
491,Revenue,CAHD,Social Lettings Agency,Fees - General,The Restore Trust,11.60, 16-Nov-2016,,,,,,,,,,,,,,,,,,,,,,,,,,,,,,,,,,,,,1223739,"4-6 Longmead Avenue, Horfield, Bristol, , BS7 8QB",RC003,1CAHD,RC003/5700/SG0047,3000474,PP009445,655.11,CAHA
492,Revenue,CAHD,Social Lettings Agency,Other Supplies & Services,The Restore Trust,655.11, 16-Nov-2016,,,,,,,,,,,,,,,,,,,,,,,,,,,,,,,,,,,,,1223739,"4-6 Longmead Avenue, Horfield, Bristol, , BS7 8QB",RC003,1CAHD,RC003/5990/SG0047,3000474,PP009445,655.11,CAHA
493,Revenue,CAHD,Social Lettings Agency,Fees - General,The Restore Trust,12.22, 16-Nov-2016,,,,,,,,,,,,,,,,,,,,,,,,,,,,,,,,,,,,,1223739,"4-6 Longmead Avenue, Horfield, Bristol, , BS7 8QB",RC003,1CAHD,RC003/5700/SG0051,3000492,PP009446,690.32,CAHA
494,Revenue,CAHD,Social Lettings Agency,Other Supplies & Services,The Restore Trust,690.32, 16-Nov-2016,,,,,,,,,,,,,,,,,,,,,,,,,,,,,,,,,,,,,1223739,"4-6 Longmead Avenue, Horfield, Bristol, , BS7 8QB",RC003,1CAHD,RC003/5990/SG0051,3000492,PP009446,690.32,CAHA
495,Revenue,CAHD,Minor Adaptations Service,Daily Living Equipment,TVM Cheltenham Limited,1470.00, 16-Nov-2016,,,,,,,,,,,,,,,,,,,,,,,,,,,,,,,,,,,,,0791005,"The Merecoombs, Granna Lane, Gotherington, Cheltenham, GL52 9QZ",XK401,1CAHD,XK401/5881,5394,A0303688,1764.00,CAHA
496,Revenue,CAHD,Planning and Partnerships Team,Membership Fees,United Kingdom Home Care Association   (UKHCA),725.00, 16-Nov-2016,,,,,,,,,,,,,,,,,,,,,,,,,,,,,,,,,,,,,1049106,"Group House , 2nd Floor, 52 Sutton Court Road, Surrey, SM1 4SL",KS036,1CAHD,KS036/5701,MV102784,A0303928,725.00,CAHA
497,Revenue,CAHD,Home Care - Elderly - South,Other Small Contracts,AliMo Care Ltd,1496.72, 17-Nov-2016,,,,,,,,,,,,,,,,,,,,,,,,,,,,,,,,,,,,,1203939,"Kingswood House, South Road, Kingswood, Bristol, BS15 8JF",IF364,1CAHD,IF364/6705,1203939P201627,SP495939,1496.72,CAHA
498,Revenue,CAHD,Pathway 2 - (Interim Beds),Permanent Nursing,Brunelcare,51086.88, 17-Nov-2016,,,,,,,,,,,,,,,,,,,,,,,,,,,,,,,,,,,,,0332192,"Saffron Gardens, Prospect Place, Whitehall, Bristol, BS5 9FF",IE901,1CAHD,IE901/6710,ORP20972,RP029020,51086.88,CAHA
499,Revenue,CAHD,Information Systems - Software,Software Support & Maintenance,Capita Business Services Ltd,16409.25, 17-Nov-2016,,,,,,,,,,,,,,,,,,,,,,,,,,,,,,,,,,,,,0342768,"PO Box 212, Faverdale Industrial Estate, Darlington, , DL1 9HN",KS042,1CAHD,KS042/5552,6003400238,A0300534,19691.10,CAHA
500,Revenue,CAHD,Minor Adaptations Service,Operational Equipment,Eastman & Co (Timber) Limited,898.22, 17-Nov-2016,,,,,,,,,,,,,,,,,,,,,,,,,,,,,,,,,,,,,0049948,"Princess Street, Bedminster, Bristol, , BS3 4AG",XK401,1CAHD,XK401/5040,96333,A0303432,1077.86,CAHA
501,Revenue,CAHD,Home Care - Elderly - South,Day Care / Social Activities,Elite Home Care Ltd,188.16, 17-Nov-2016,,,,,,,,,,,,,,,,,,,,,,,,,,,,,,,,,,,,,1176502,"7 The Square, Broad Street, Staple Hill, Bristol, BS16 5LR",IF364,1CAHD,IF364/6704,1176502P201629,SP496567,7430.42,CAHA
502,Revenue,CAHD,Home Care - Elderly - South,Other Small Contracts,Elite Home Care Ltd,7134.74, 17-Nov-2016,,,,,,,,,,,,,,,,,,,,,,,,,,,,,,,,,,,,,1176502,"7 The Square, Broad Street, Staple Hill, Bristol, BS16 5LR",IF364,1CAHD,IF364/6705,1176502P201629,SP496567,7430.42,CAHA
503,Revenue,CAHD,Home Care - Elderly - North,Other Small Contracts,Elite Home Care Ltd,107.52, 17-Nov-2016,,,,,,,,,,,,,,,,,,,,,,,,,,,,,,,,,,,,,1176502,"7 The Square, Broad Street, Staple Hill, Bristol, BS16 5LR",IF365,1CAHD,IF365/6705,1176502P201629,SP496567,7430.42,CAHA
504,Revenue,CAHD,Home Care - Elderly - South,Other Small Contracts,Everycare (Bristol) Ltd,3069.44, 17-Nov-2016,,,,,,,,,,,,,,,,,,,,,,,,,,,,,,,,,,,,,1174803,"The Vassall Centre, Gill Avenue, Fishponds, Bristol, BS16 2QQ",IF364,1CAHD,IF364/6705,1174803P201629,SP496563,4935.52,CAHA
505,Revenue,CAHD,Home Care - Elderly - North,Other Small Contracts,Everycare (Bristol) Ltd,1866.08, 17-Nov-2016,,,,,,,,,,,,,,,,,,,,,,,,,,,,,,,,,,,,,1174803,"The Vassall Centre, Gill Avenue, Fishponds, Bristol, BS16 2QQ",IF365,1CAHD,IF365/6705,1174803P201629,SP496563,4935.52,CAHA
506,Revenue,CAHD,Intermediate Care Accommodation,Other Supplies & Services,Merlin Housing Society,553.38, 17-Nov-2016,,,,,,,,,,,,,,,,,,,,,,,,,,,,,,,,,,,,,0917973,"Building 2 Riverside Court, Bowling Hill, Chipping Sodbury, South Gloucestershire., BS37 6JX",IE512,1CAHD,IE512/5990,ROII/00001595,A0303316,563.44,CAHA
507,Revenue,CAHD,Home Care - Elderly - South,Day Care / Social Activities,Milestones Supported Living Services,7439.34, 17-Nov-2016,,,,,,,,,,,,,,,,,,,,,,,,,,,,,,,,,,,,,1210217,"Milestones Trust, Unit 10, Eclipse Office Park, High Street, Staple Hill, Bristol, BS16 5EL",IF364,1CAHD,IF364/6704,1210217P201603,SP496575,17563.44,CAHA
508,Revenue,CAHD,Home Care - Elderly - South,Other Small Contracts,Milestones Supported Living Services,3910.10, 17-Nov-2016,,,,,,,,,,,,,,,,,,,,,,,,,,,,,,,,,,,,,1210217,"Milestones Trust, Unit 10, Eclipse Office Park, High Street, Staple Hill, Bristol, BS16 5EL",IF364,1CAHD,IF364/6705,1210217P201603,SP496575,17563.44,CAHA
509,Revenue,CAHD,Home Care - Elderly - South,Supported Living,Milestones Supported Living Services,2291.20, 17-Nov-2016,,,,,,,,,,,,,,,,,,,,,,,,,,,,,,,,,,,,,1210217,"Milestones Trust, Unit 10, Eclipse Office Park, High Street, Staple Hill, Bristol, BS16 5EL",IF364,1CAHD,IF364/6707,1210217P201603,SP496575,17563.44,CAHA
510,Revenue,CAHD,Home Care - Elderly - North,Day Care / Social Activities,Milestones Supported Living Services,721.00, 17-Nov-2016,,,,,,,,,,,,,,,,,,,,,,,,,,,,,,,,,,,,,1210217,"Milestones Trust, Unit 10, Eclipse Office Park, High Street, Staple Hill, Bristol, BS16 5EL",IF365,1CAHD,IF365/6704,1210217P201603,SP496575,17563.44,CAHA
511,Revenue,CAHD,Home Care - Elderly - North,Other Small Contracts,Milestones Supported Living Services,2752.72, 17-Nov-2016,,,,,,,,,,,,,,,,,,,,,,,,,,,,,,,,,,,,,1210217,"Milestones Trust, Unit 10, Eclipse Office Park, High Street, Staple Hill, Bristol, BS16 5EL",IF365,1CAHD,IF365/6705,1210217P201603,SP496575,17563.44,CAHA
512,Revenue,CAHD,Home Care - Elderly - North,Supported Living,Milestones Supported Living Services,164.80, 17-Nov-2016,,,,,,,,,,,,,,,,,,,,,,,,,,,,,,,,,,,,,1210217,"Milestones Trust, Unit 10, Eclipse Office Park, High Street, Staple Hill, Bristol, BS16 5EL",IF365,1CAHD,IF365/6707,1210217P201603,SP496575,17563.44,CAHA
513,Revenue,CAHD,Day Care - North,Day Care / Social Activities,Milestones Supported Living Services,127.72, 17-Nov-2016,,,,,,,,,,,,,,,,,,,,,,,,,,,,,,,,,,,,,1210217,"Milestones Trust, Unit 10, Eclipse Office Park, High Street, Staple Hill, Bristol, BS16 5EL",IF901,1CAHD,IF901/6704,1210217P201603,SP496575,17563.44,CAHA
514,Revenue,CAHD,Younger MH non-res purchasing,Day Care / Social Activities,Milestones Supported Living Services,24.72, 17-Nov-2016,,,,,,,,,,,,,,,,,,,,,,,,,,,,,,,,,,,,,1210217,"Milestones Trust, Unit 10, Eclipse Office Park, High Street, Staple Hill, Bristol, BS16 5EL",IP335,1CAHD,IP335/6704,1210217P201603,SP496575,17563.44,CAHA
515,Revenue,CAHD,Home care - Elderly MH - North,Other Small Contracts,Milestones Supported Living Services,131.84, 17-Nov-2016,,,,,,,,,,,,,,,,,,,,,,,,,,,,,,,,,,,,,1210217,"Milestones Trust, Unit 10, Eclipse Office Park, High Street, Staple Hill, Bristol, BS16 5EL",IP336,1CAHD,IP336/6705,1210217P201603,SP496575,17563.44,CAHA
516,Revenue,CAHD,Home Care - Elderly - South,Day Care / Social Activities,Milestones Supported Living Services,6494.84, 17-Nov-2016,,,,,,,,,,,,,,,,,,,,,,,,,,,,,,,,,,,,,1210217,"Milestones Trust, Unit 10, Eclipse Office Park, High Street, Staple Hill, Bristol, BS16 5EL",IF364,1CAHD,IF364/6704,1210217P201604,SP496568,16742.62,CAHA
517,Revenue,CAHD,Home Care - Elderly - South,Other Small Contracts,Milestones Supported Living Services,3840.06, 17-Nov-2016,,,,,,,,,,,,,,,,,,,,,,,,,,,,,,,,,,,,,1210217,"Milestones Trust, Unit 10, Eclipse Office Park, High Street, Staple Hill, Bristol, BS16 5EL",IF364,1CAHD,IF364/6705,1210217P201604,SP496568,16742.62,CAHA
518,Revenue,CAHD,Home Care - Elderly - South,Supported Living,Milestones Supported Living Services,2513.76, 17-Nov-2016,,,,,,,,,,,,,,,,,,,,,,,,,,,,,,,,,,,,,1210217,"Milestones Trust, Unit 10, Eclipse Office Park, High Street, Staple Hill, Bristol, BS16 5EL",IF364,1CAHD,IF364/6707,1210217P201604,SP496568,16742.62,CAHA
519,Revenue,CAHD,Home Care - Elderly - North,Day Care / Social Activities,Milestones Supported Living Services,683.92, 17-Nov-2016,,,,,,,,,,,,,,,,,,,,,,,,,,,,,,,,,,,,,1210217,"Milestones Trust, Unit 10, Eclipse Office Park, High Street, Staple Hill, Bristol, BS16 5EL",IF365,1CAHD,IF365/6704,1210217P201604,SP496568,16742.62,CAHA
520,Revenue,CAHD,Home Care - Elderly - North,Other Small Contracts,Milestones Supported Living Services,2917.52, 17-Nov-2016,,,,,,,,,,,,,,,,,,,,,,,,,,,,,,,,,,,,,1210217,"Milestones Trust, Unit 10, Eclipse Office Park, High Street, Staple Hill, Bristol, BS16 5EL",IF365,1CAHD,IF365/6705,1210217P201604,SP496568,16742.62,CAHA
521,Revenue,CAHD,Home Care - Elderly - North,Supported Living,Milestones Supported Living Services,140.08, 17-Nov-2016,,,,,,,,,,,,,,,,,,,,,,,,,,,,,,,,,,,,,1210217,"Milestones Trust, Unit 10, Eclipse Office Park, High Street, Staple Hill, Bristol, BS16 5EL",IF365,1CAHD,IF365/6707,1210217P201604,SP496568,16742.62,CAHA
522,Revenue,CAHD,Day Care - North,Day Care / Social Activities,Milestones Supported Living Services,127.72, 17-Nov-2016,,,,,,,,,,,,,,,,,,,,,,,,,,,,,,,,,,,,,1210217,"Milestones Trust, Unit 10, Eclipse Office Park, High Street, Staple Hill, Bristol, BS16 5EL",IF901,1CAHD,IF901/6704,1210217P201604,SP496568,16742.62,CAHA
523,Revenue,CAHD,Younger MH non-res purchasing,Day Care / Social Activities,Milestones Supported Living Services,24.72, 17-Nov-2016,,,,,,,,,,,,,,,,,,,,,,,,,,,,,,,,,,,,,1210217,"Milestones Trust, Unit 10, Eclipse Office Park, High Street, Staple Hill, Bristol, BS16 5EL",IP335,1CAHD,IP335/6704,1210217P201604,SP496568,16742.62,CAHA
524,Revenue,CAHD,Home Care - Elderly - South,Day Care / Social Activities,Milestones Supported Living Services,7448.96, 17-Nov-2016,,,,,,,,,,,,,,,,,,,,,,,,,,,,,,,,,,,,,1210217,"Milestones Trust, Unit 10, Eclipse Office Park, High Street, Staple Hill, Bristol, BS16 5EL",IF364,1CAHD,IF364/6704,1210217P201605,SP496570,19996.26,CAHA
525,Revenue,CAHD,Home Care - Elderly - South,Other Small Contracts,Milestones Supported Living Services,3938.94, 17-Nov-2016,,,,,,,,,,,,,,,,,,,,,,,,,,,,,,,,,,,,,1210217,"Milestones Trust, Unit 10, Eclipse Office Park, High Street, Staple Hill, Bristol, BS16 5EL",IF364,1CAHD,IF364/6705,1210217P201605,SP496570,19996.26,CAHA
526,Revenue,CAHD,Home Care - Elderly - South,Supported Living,Milestones Supported Living Services,4504.28, 17-Nov-2016,,,,,,,,,,,,,,,,,,,,,,,,,,,,,,,,,,,,,1210217,"Milestones Trust, Unit 10, Eclipse Office Park, High Street, Staple Hill, Bristol, BS16 5EL",IF364,1CAHD,IF364/6707,1210217P201605,SP496570,19996.26,CAHA
527,Revenue,CAHD,Home Care - Elderly - North,Day Care / Social Activities,Milestones Supported Living Services,807.52, 17-Nov-2016,,,,,,,,,,,,,,,,,,,,,,,,,,,,,,,,,,,,,1210217,"Milestones Trust, Unit 10, Eclipse Office Park, High Street, Staple Hill, Bristol, BS16 5EL",IF365,1CAHD,IF365/6704,1210217P201605,SP496570,19996.26,CAHA
528,Revenue,CAHD,Home Care - Elderly - North,Other Small Contracts,Milestones Supported Living Services,2975.20, 17-Nov-2016,,,,,,,,,,,,,,,,,,,,,,,,,,,,,,,,,,,,,1210217,"Milestones Trust, Unit 10, Eclipse Office Park, High Street, Staple Hill, Bristol, BS16 5EL",IF365,1CAHD,IF365/6705,1210217P201605,SP496570,19996.26,CAHA
529,Revenue,CAHD,Home Care - Elderly - North,Supported Living,Milestones Supported Living Services,164.80, 17-Nov-2016,,,,,,,,,,,,,,,,,,,,,,,,,,,,,,,,,,,,,1210217,"Milestones Trust, Unit 10, Eclipse Office Park, High Street, Staple Hill, Bristol, BS16 5EL",IF365,1CAHD,IF365/6707,1210217P201605,SP496570,19996.26,CAHA
530,Revenue,CAHD,Day Care - North,Day Care / Social Activities,Milestones Supported Living Services,131.84, 17-Nov-2016,,,,,,,,,,,,,,,,,,,,,,,,,,,,,,,,,,,,,1210217,"Milestones Trust, Unit 10, Eclipse Office Park, High Street, Staple Hill, Bristol, BS16 5EL",IF901,1CAHD,IF901/6704,1210217P201605,SP496570,19996.26,CAHA
531,Revenue,CAHD,Younger MH non-res purchasing,Day Care / Social Activities,Milestones Supported Living Services,24.72, 17-Nov-2016,,,,,,,,,,,,,,,,,,,,,,,,,,,,,,,,,,,,,1210217,"Milestones Trust, Unit 10, Eclipse Office Park, High Street, Staple Hill, Bristol, BS16 5EL",IP335,1CAHD,IP335/6704,1210217P201605,SP496570,19996.26,CAHA
532,Revenue,CAHD,Home Care - Elderly - South,Day Care / Social Activities,Milestones Supported Living Services,6364.28, 17-Nov-2016,,,,,,,,,,,,,,,,,,,,,,,,,,,,,,,,,,,,,1210217,"Milestones Trust, Unit 10, Eclipse Office Park, High Street, Staple Hill, Bristol, BS16 5EL",IF364,1CAHD,IF364/6704,1210217P201609,SP496569,19297.54,CAHA
533,Revenue,CAHD,Home Care - Elderly - South,Other Small Contracts,Milestones Supported Living Services,5920.66, 17-Nov-2016,,,,,,,,,,,,,,,,,,,,,,,,,,,,,,,,,,,,,1210217,"Milestones Trust, Unit 10, Eclipse Office Park, High Street, Staple Hill, Bristol, BS16 5EL",IF364,1CAHD,IF364/6705,1210217P201609,SP496569,19297.54,CAHA
534,Revenue,CAHD,Home Care - Elderly - South,Supported Living,Milestones Supported Living Services,2810.96, 17-Nov-2016,,,,,,,,,,,,,,,,,,,,,,,,,,,,,,,,,,,,,1210217,"Milestones Trust, Unit 10, Eclipse Office Park, High Street, Staple Hill, Bristol, BS16 5EL",IF364,1CAHD,IF364/6707,1210217P201609,SP496569,19297.54,CAHA
535,Revenue,CAHD,Home Care - Elderly - North,Day Care / Social Activities,Milestones Supported Living Services,752.64, 17-Nov-2016,,,,,,,,,,,,,,,,,,,,,,,,,,,,,,,,,,,,,1210217,"Milestones Trust, Unit 10, Eclipse Office Park, High Street, Staple Hill, Bristol, BS16 5EL",IF365,1CAHD,IF365/6704,1210217P201609,SP496569,19297.54,CAHA
536,Revenue,CAHD,Home Care - Elderly - North,Other Small Contracts,Milestones Supported Living Services,3119.40, 17-Nov-2016,,,,,,,,,,,,,,,,,,,,,,,,,,,,,,,,,,,,,1210217,"Milestones Trust, Unit 10, Eclipse Office Park, High Street, Staple Hill, Bristol, BS16 5EL",IF365,1CAHD,IF365/6705,1210217P201609,SP496569,19297.54,CAHA
537,Revenue,CAHD,Home Care - Elderly - North,Supported Living,Milestones Supported Living Services,164.80, 17-Nov-2016,,,,,,,,,,,,,,,,,,,,,,,,,,,,,,,,,,,,,1210217,"Milestones Trust, Unit 10, Eclipse Office Park, High Street, Staple Hill, Bristol, BS16 5EL",IF365,1CAHD,IF365/6707,1210217P201609,SP496569,19297.54,CAHA
538,Revenue,CAHD,Day Care - North,Day Care / Social Activities,Milestones Supported Living Services,135.96, 17-Nov-2016,,,,,,,,,,,,,,,,,,,,,,,,,,,,,,,,,,,,,1210217,"Milestones Trust, Unit 10, Eclipse Office Park, High Street, Staple Hill, Bristol, BS16 5EL",IF901,1CAHD,IF901/6704,1210217P201609,SP496569,19297.54,CAHA
539,Revenue,CAHD,Younger MH non-res purchasing,Day Care / Social Activities,Milestones Supported Living Services,28.84, 17-Nov-2016,,,,,,,,,,,,,,,,,,,,,,,,,,,,,,,,,,,,,1210217,"Milestones Trust, Unit 10, Eclipse Office Park, High Street, Staple Hill, Bristol, BS16 5EL",IP335,1CAHD,IP335/6704,1210217P201609,SP496569,19297.54,CAHA
540,Revenue,CAHD,Home Care - Elderly - South,Day Care / Social Activities,Milestones Supported Living Services,6838.83, 17-Nov-2016,,,,,,,,,,,,,,,,,,,,,,,,,,,,,,,,,,,,,1210217,"Milestones Trust, Unit 10, Eclipse Office Park, High Street, Staple Hill, Bristol, BS16 5EL",IF364,1CAHD,IF364/6704,1210217P201610,SP496572,19656.36,CAHA
541,Revenue,CAHD,Home Care - Elderly - South,Other Small Contracts,Milestones Supported Living Services,5869.53, 17-Nov-2016,,,,,,,,,,,,,,,,,,,,,,,,,,,,,,,,,,,,,1210217,"Milestones Trust, Unit 10, Eclipse Office Park, High Street, Staple Hill, Bristol, BS16 5EL",IF364,1CAHD,IF364/6705,1210217P201610,SP496572,19656.36,CAHA
542,Revenue,CAHD,Home Care - Elderly - South,Supported Living,Milestones Supported Living Services,2831.56, 17-Nov-2016,,,,,,,,,,,,,,,,,,,,,,,,,,,,,,,,,,,,,1210217,"Milestones Trust, Unit 10, Eclipse Office Park, High Street, Staple Hill, Bristol, BS16 5EL",IF364,1CAHD,IF364/6707,1210217P201610,SP496572,19656.36,CAHA
543,Revenue,CAHD,Home Care - Elderly - North,Day Care / Social Activities,Milestones Supported Living Services,766.32, 17-Nov-2016,,,,,,,,,,,,,,,,,,,,,,,,,,,,,,,,,,,,,1210217,"Milestones Trust, Unit 10, Eclipse Office Park, High Street, Staple Hill, Bristol, BS16 5EL",IF365,1CAHD,IF365/6704,1210217P201610,SP496572,19656.36,CAHA
544,Revenue,CAHD,Home Care - Elderly - North,Other Small Contracts,Milestones Supported Living Services,3024.64, 17-Nov-2016,,,,,,,,,,,,,,,,,,,,,,,,,,,,,,,,,,,,,1210217,"Milestones Trust, Unit 10, Eclipse Office Park, High Street, Staple Hill, Bristol, BS16 5EL",IF365,1CAHD,IF365/6705,1210217P201610,SP496572,19656.36,CAHA
545,Revenue,CAHD,Home Care - Elderly - North,Supported Living,Milestones Supported Living Services,156.56, 17-Nov-2016,,,,,,,,,,,,,,,,,,,,,,,,,,,,,,,,,,,,,1210217,"Milestones Trust, Unit 10, Eclipse Office Park, High Street, Staple Hill, Bristol, BS16 5EL",IF365,1CAHD,IF365/6707,1210217P201610,SP496572,19656.36,CAHA
546,Revenue,CAHD,Day Care - North,Day Care / Social Activities,Milestones Supported Living Services,135.96, 17-Nov-2016,,,,,,,,,,,,,,,,,,,,,,,,,,,,,,,,,,,,,1210217,"Milestones Trust, Unit 10, Eclipse Office Park, High Street, Staple Hill, Bristol, BS16 5EL",IF901,1CAHD,IF901/6704,1210217P201610,SP496572,19656.36,CAHA
547,Revenue,CAHD,Younger MH non-res purchasing,Day Care / Social Activities,Milestones Supported Living Services,32.96, 17-Nov-2016,,,,,,,,,,,,,,,,,,,,,,,,,,,,,,,,,,,,,1210217,"Milestones Trust, Unit 10, Eclipse Office Park, High Street, Staple Hill, Bristol, BS16 5EL",IP335,1CAHD,IP335/6704,1210217P201610,SP496572,19656.36,CAHA
548,Revenue,CAHD,Home Care - Elderly - South,Day Care / Social Activities,Mrs B Kimber -  CM2000,1947.56, 17-Nov-2016,,,,,,,,,,,,,,,,,,,,,,,,,,,,,,,,,,,,,1175163,"SSI, 99 High Street, Hanham, Bristol, BS15 3QG",IF364,1CAHD,IF364/6704,1175163P201628,SP496564,16578.18,CAHA
549,Revenue,CAHD,Home Care - Elderly - South,Other Small Contracts,Mrs B Kimber -  CM2000,9211.70, 17-Nov-2016,,,,,,,,,,,,,,,,,,,,,,,,,,,,,,,,,,,,,1175163,"SSI, 99 High Street, Hanham, Bristol, BS15 3QG",IF364,1CAHD,IF364/6705,1175163P201628,SP496564,16578.18,CAHA
550,Revenue,CAHD,Home Care - Elderly - South,Supported Living,Mrs B Kimber -  CM2000,33.76, 17-Nov-2016,,,,,,,,,,,,,,,,,,,,,,,,,,,,,,,,,,,,,1175163,"SSI, 99 High Street, Hanham, Bristol, BS15 3QG",IF364,1CAHD,IF364/6707,1175163P201628,SP496564,16578.18,CAHA
551,Revenue,CAHD,Home Care - Elderly - North,Day Care / Social Activities,Mrs B Kimber -  CM2000,286.96, 17-Nov-2016,,,,,,,,,,,,,,,,,,,,,,,,,,,,,,,,,,,,,1175163,"SSI, 99 High Street, Hanham, Bristol, BS15 3QG",IF365,1CAHD,IF365/6704,1175163P201628,SP496564,16578.18,CAHA
552,Revenue,CAHD,Home Care - Elderly - North,Other Small Contracts,Mrs B Kimber -  CM2000,5098.20, 17-Nov-2016,,,,,,,,,,,,,,,,,,,,,,,,,,,,,,,,,,,,,1175163,"SSI, 99 High Street, Hanham, Bristol, BS15 3QG",IF365,1CAHD,IF365/6705,1175163P201628,SP496564,16578.18,CAHA
553,Revenue,CAHD,Home Care - Elderly - South,Day Care / Social Activities,Mrs B Kimber -  CM2000,1859.84, 17-Nov-2016,,,,,,,,,,,,,,,,,,,,,,,,,,,,,,,,,,,,,1175163,"SSI, 99 High Street, Hanham, Bristol, BS15 3QG",IF364,1CAHD,IF364/6704,1175163P201629,SP496565,16984.14,CAHA
554,Revenue,CAHD,Home Care - Elderly - South,Other Small Contracts,Mrs B Kimber -  CM2000,9599.02, 17-Nov-2016,,,,,,,,,,,,,,,,,,,,,,,,,,,,,,,,,,,,,1175163,"SSI, 99 High Street, Hanham, Bristol, BS15 3QG",IF364,1CAHD,IF364/6705,1175163P201629,SP496565,16984.14,CAHA
555,Revenue,CAHD,Home Care - Elderly - South,Supported Living,Mrs B Kimber -  CM2000,33.76, 17-Nov-2016,,,,,,,,,,,,,,,,,,,,,,,,,,,,,,,,,,,,,1175163,"SSI, 99 High Street, Hanham, Bristol, BS15 3QG",IF364,1CAHD,IF364/6707,1175163P201629,SP496565,16984.14,CAHA
556,Revenue,CAHD,Home Care - Elderly - North,Day Care / Social Activities,Mrs B Kimber -  CM2000,286.96, 17-Nov-2016,,,,,,,,,,,,,,,,,,,,,,,,,,,,,,,,,,,,,1175163,"SSI, 99 High Street, Hanham, Bristol, BS15 3QG",IF365,1CAHD,IF365/6704,1175163P201629,SP496565,16984.14,CAHA
557,Revenue,CAHD,Home Care - Elderly - North,Other Small Contracts,Mrs B Kimber -  CM2000,5204.56, 17-Nov-2016,,,,,,,,,,,,,,,,,,,,,,,,,,,,,,,,,,,,,1175163,"SSI, 99 High Street, Hanham, Bristol, BS15 3QG",IF365,1CAHD,IF365/6705,1175163P201629,SP496565,16984.14,CAHA
558,Revenue,CAHD,Home Care - Elderly - South,Day Care / Social Activities,Mrs B Kimber -  CM2000,2229.88, 17-Nov-2016,,,,,,,,,,,,,,,,,,,,,,,,,,,,,,,,,,,,,1175163,"SSI, 99 High Street, Hanham, Bristol, BS15 3QG",IF364,1CAHD,IF364/6704,1175163P201630,SP496566,14883.40,CAHA
559,Revenue,CAHD,Home Care - Elderly - South,Other Small Contracts,Mrs B Kimber -  CM2000,8308.54, 17-Nov-2016,,,,,,,,,,,,,,,,,,,,,,,,,,,,,,,,,,,,,1175163,"SSI, 99 High Street, Hanham, Bristol, BS15 3QG",IF364,1CAHD,IF364/6705,1175163P201630,SP496566,14883.40,CAHA
560,Revenue,CAHD,Home Care - Elderly - South,Supported Living,Mrs B Kimber -  CM2000,37.98, 17-Nov-2016,,,,,,,,,,,,,,,,,,,,,,,,,,,,,,,,,,,,,1175163,"SSI, 99 High Street, Hanham, Bristol, BS15 3QG",IF364,1CAHD,IF364/6707,1175163P201630,SP496566,14883.40,CAHA
561,Revenue,CAHD,Home Care - Elderly - North,Day Care / Social Activities,Mrs B Kimber -  CM2000,291.18, 17-Nov-2016,,,,,,,,,,,,,,,,,,,,,,,,,,,,,,,,,,,,,1175163,"SSI, 99 High Street, Hanham, Bristol, BS15 3QG",IF365,1CAHD,IF365/6704,1175163P201630,SP496566,14883.40,CAHA
562,Revenue,CAHD,Home Care - Elderly - North,Other Small Contracts,Mrs B Kimber -  CM2000,4015.82, 17-Nov-2016,,,,,,,,,,,,,,,,,,,,,,,,,,,,,,,,,,,,,1175163,"SSI, 99 High Street, Hanham, Bristol, BS15 3QG",IF365,1CAHD,IF365/6705,1175163P201630,SP496566,14883.40,CAHA
563,Revenue,CAHD,Minor Adaptations Service,Daily Living Equipment,TVM Cheltenham Limited,2940.00, 17-Nov-2016,,,,,,,,,,,,,,,,,,,,,,,,,,,,,,,,,,,,,0791005,"The Merecoombs, Granna Lane, Gotherington, Cheltenham, GL52 9QZ",XK401,1CAHD,XK401/5881,5407,A0303616,3528.00,CAHA
564,Revenue,CAHD,Social Lettings Agency,Fees - General,Individual,12.22, 17-Nov-2016,,,,,,,,,,,,,,,,,,,,,,,,,,,,,,,,,,,,,1208439,"7 Winford Court, Downspark West, Bristol, , BS5 7QN",RC003,1CAHD,RC003/5700/SG0035,3000450,PP009447,690.32,CAHA
565,Revenue,CAHD,Social Lettings Agency,Other Supplies & Services,Individual,690.32, 17-Nov-2016,,,,,,,,,,,,,,,,,,,,,,,,,,,,,,,,,,,,,1208439,"7 Winford Court, Downspark West, Bristol, , BS5 7QN",RC003,1CAHD,RC003/5990/SG0035,3000450,PP009447,690.32,CAHA
566,Revenue,CAHD,Home Care - Elderly - North,Supported Living,Willowbank Care Limited,5818.00, 17-Nov-2016,,,,,,,,,,,,,,,,,,,,,,,,,,,,,,,,,,,,,0703572,"88 Filton Road, Horfield, Bristol, , BS7 0PD",IF365,1CAHD,IF365/6707,WBL203 WIL/SC 1.,A0303265,5818.00,CAHA
567,Revenue,CAHD,Home Care - Elderly - North,Supported Living,Willowbank Care Limited,12399.80, 17-Nov-2016,,,,,,,,,,,,,,,,,,,,,,,,,,,,,,,,,,,,,0703572,"88 Filton Road, Horfield, Bristol, , BS7 0PD",IF365,1CAHD,IF365/6707,WIL00366 WIL/RP 1.,A0303264,12399.80,CAHA
568,Revenue,CAHD,Home Care - Elderly - North,Supported Living,Willowbank Care Limited,9140.24, 17-Nov-2016,,,,,,,,,,,,,,,,,,,,,,,,,,,,,,,,,,,,,0703572,"88 Filton Road, Horfield, Bristol, , BS7 0PD",IF365,1CAHD,IF365/6707,WIL0144 WIL/JHL.,A0303261,9140.24,CAHA
569,Revenue,CAHD,Home Care - Elderly - North,Supported Living,Willowbank Care Limited,9490.52, 17-Nov-2016,,,,,,,,,,,,,,,,,,,,,,,,,,,,,,,,,,,,,0703572,"88 Filton Road, Horfield, Bristol, , BS7 0PD",IF365,1CAHD,IF365/6707,WIL0146 WIL/GB 1.,A0303209,9490.52,CAHA
570,Revenue,CAHD,Home Care - Elderly - South,Supported Living,Willowbank Care Limited,6301.68, 17-Nov-2016,,,,,,,,,,,,,,,,,,,,,,,,,,,,,,,,,,,,,0703572,"88 Filton Road, Horfield, Bristol, , BS7 0PD",IF364,1CAHD,IF364/6707,WIL022 WIL/JonB1,A0303262,6301.68,CAHA
571,Revenue,CAHD,Home Care - Elderly - North,Supported Living,Willowbank Care Limited,7271.60, 17-Nov-2016,,,,,,,,,,,,,,,,,,,,,,,,,,,,,,,,,,,,,0703572,"88 Filton Road, Horfield, Bristol, , BS7 0PD",IF365,1CAHD,IF365/6707,WIL061 WIL/AG 1.,A0303258,7271.60,CAHA
572,Revenue,CAHD,Home Care - Elderly - North,Supported Living,Willowbank Care Limited,10710.52, 17-Nov-2016,,,,,,,,,,,,,,,,,,,,,,,,,,,,,,,,,,,,,0703572,"88 Filton Road, Horfield, Bristol, , BS7 0PD",IF365,1CAHD,IF365/6707,WIL164 WIL/DS 1.,A0303208,10710.52,CAHA
573,Revenue,CAHD,Home Care - Elderly - North,Supported Living,Willowbank Care Limited,9490.52, 17-Nov-2016,,,,,,,,,,,,,,,,,,,,,,,,,,,,,,,,,,,,,0703572,"88 Filton Road, Horfield, Bristol, , BS7 0PD",IF365,1CAHD,IF365/6707,WIL196 WIL/CB00 1.,A0303204,9490.52,CAHA
574,Revenue,CAHD,Home Care - Elderly - North,Supported Living,Willowbank Care Limited,5332.20, 17-Nov-2016,,,,,,,,,,,,,,,,,,,,,,,,,,,,,,,,,,,,,0703572,"88 Filton Road, Horfield, Bristol, , BS7 0PD",IF365,1CAHD,IF365/6707,WIL257 WIL/HG.,A0303210,5332.20,CAHA
575,Revenue,CAHD,Home Care - Elderly - North,Supported Living,Willowbank Care Limited,7167.28, 17-Nov-2016,,,,,,,,,,,,,,,,,,,,,,,,,,,,,,,,,,,,,0703572,"88 Filton Road, Horfield, Bristol, , BS7 0PD",IF365,1CAHD,IF365/6707,WIL264 JB WIL/JB 1.,A0303216,7167.28,CAHA
576,Revenue,CAHD,CAHA - Complaints and FOI,Complaints External Expenses,Act Now Training Limited,1950.00, 18-Nov-2016,,,,,,,,,,,,,,,,,,,,,,,,,,,,,,,,,,,,,0880291,"64 Bradford Road, Dewsbury, , , WF13 2DU",KS044,1CAHD,KS044/5741,19897,A0302527,2340.00,CAHA
577,Revenue,CAHD,Training - Adult Services,Training Expenses,Bristol MIND,1320.00, 18-Nov-2016,,,,,,,,,,,,,,,,,,,,,,,,,,,,,,,,,,,,,1063484,"C/O The Treasurer, 35 Old Market Street, Bristol, , BS2 0EZ",KW203,1CAHD,KW203/2831,T100322,A0302209,1320.00,CAHA
578,Revenue,CAHD,Home Care - Elderly - North,Day Care / Social Activities,Camphill Communities Thornbury Limited,884.00, 18-Nov-2016,,,,,,,,,,,,,,,,,,,,,,,,,,,,,,,,,,,,,0773191,"The Hatch Office, Kington Lane, Thornbury, , BS35 1NA",IF365,1CAHD,IF365/6704,0773191P201627,SP496068,2060.00,CAHA
579,Revenue,CAHD,Home Care - Elderly - North,Other Small Contracts,Camphill Communities Thornbury Limited,144.00, 18-Nov-2016,,,,,,,,,,,,,,,,,,,,,,,,,,,,,,,,,,,,,0773191,"The Hatch Office, Kington Lane, Thornbury, , BS35 1NA",IF365,1CAHD,IF365/6705,0773191P201627,SP496068,2060.00,CAHA
580,Revenue,CAHD,Home Care - Elderly - North,Supported Living,Camphill Communities Thornbury Limited,1032.00, 18-Nov-2016,,,,,,,,,,,,,,,,,,,,,,,,,,,,,,,,,,,,,0773191,"The Hatch Office, Kington Lane, Thornbury, , BS35 1NA",IF365,1CAHD,IF365/6707,0773191P201627,SP496068,2060.00,CAHA
581,Revenue,CAHD,Information Systems - Software,Telephones,Evolving Networks Limited,945.00, 18-Nov-2016,,,,,,,,,,,,,,,,,,,,,,,,,,,,,,,,,,,,,1229736,"Datum House, 3 Commerce Road, Lynch Wood, Peterborough, Cambs, PE2 6LR",KS042,1CAHD,KS042/5510,14228,A0299470,1134.00,CAHA
582,Revenue,CAHD,Training - Adult Services,Training Expenses,Gloucestershire Deaf Association,650.00, 18-Nov-2016,,,,,,,,,,,,,,,,,,,,,,,,,,,,,,,,,,,,,1240413,"Colin Road, Barnwood, Gloucester, , GL4 3JL",KW203,1CAHD,KW203/2831,13770,A0301788,650.00,CAHA
583,Revenue,CAHD,Home Care - Elderly - South,Other Small Contracts,Helping Hands Homecare,1093.44, 18-Nov-2016,,,,,,,,,,,,,,,,,,,,,,,,,,,,,,,,,,,,,1202141,"Arrow House, 8 & 9 Church Street, Alcester, Warwickshire, B49 5AJ",IF364,1CAHD,IF364/6705,1202141P201627,SP495198,4012.32,CAHA
584,Revenue,CAHD,Home Care - Elderly - North,Day Care / Social Activities,Helping Hands Homecare,205.02, 18-Nov-2016,,,,,,,,,,,,,,,,,,,,,,,,,,,,,,,,,,,,,1202141,"Arrow House, 8 & 9 Church Street, Alcester, Warwickshire, B49 5AJ",IF365,1CAHD,IF365/6704,1202141P201627,SP495198,4012.32,CAHA
585,Revenue,CAHD,Home Care - Elderly - North,Other Small Contracts,Helping Hands Homecare,2713.86, 18-Nov-2016,,,,,,,,,,,,,,,,,,,,,,,,,,,,,,,,,,,,,1202141,"Arrow House, 8 & 9 Church Street, Alcester, Warwickshire, B49 5AJ",IF365,1CAHD,IF365/6705,1202141P201627,SP495198,4012.32,CAHA
586,Revenue,CAHD,Social Lettings Agency,Fees - General,Individual,12.22, 18-Nov-2016,,,,,,,,,,,,,,,,,,,,,,,,,,,,,,,,,,,,,1164407,"229 Selly Oak Road, Kings Norton, Birmingham, , B30 1HR",RC003,1CAHD,RC003/5700/SG0016,3000412,PP009452,690.32,CAHA
587,Revenue,CAHD,Social Lettings Agency,Other Supplies & Services,Individual,690.32, 18-Nov-2016,,,,,,,,,,,,,,,,,,,,,,,,,,,,,,,,,,,,,1164407,"229 Selly Oak Road, Kings Norton, Birmingham, , B30 1HR",RC003,1CAHD,RC003/5990/SG0016,3000412,PP009452,690.32,CAHA
588,Revenue,CAHD,Social Lettings Agency,Fees - General,Individual,12.22, 18-Nov-2016,,,,,,,,,,,,,,,,,,,,,,,,,,,,,,,,,,,,,1179268,"C/O 11 Holly Hill Road, Kingswood, Bristol, , BS15 4DB",RC003,1CAHD,RC003/5700/SG0008,3000394,PP009454,690.32,CAHA
589,Revenue,CAHD,Social Lettings Agency,Other Supplies & Services,Individual,690.32, 18-Nov-2016,,,,,,,,,,,,,,,,,,,,,,,,,,,,,,,,,,,,,1179268,"C/O 11 Holly Hill Road, Kingswood, Bristol, , BS15 4DB",RC003,1CAHD,RC003/5990/SG0008,3000394,PP009454,690.32,CAHA
590,Revenue,CAHD,Social Lettings Agency,Fees - General,Individual,12.22, 18-Nov-2016,,,,,,,,,,,,,,,,,,,,,,,,,,,,,,,,,,,,,1226316,"Launay Fouquet, 50370 Vermix, Lower Normandy, France, .",RC003,1CAHD,RC003/5700/SG0049,3000491,PP009455,680.32,CAHA
591,Revenue,CAHD,Social Lettings Agency,Other Supplies & Services,Individual,680.32, 18-Nov-2016,,,,,,,,,,,,,,,,,,,,,,,,,,,,,,,,,,,,,1226316,"Launay Fouquet, 50370 Vermix, Lower Normandy, France, .",RC003,1CAHD,RC003/5990/SG0049,3000491,PP009455,680.32,CAHA
592,Revenue,CAHD,Planning and Partnerships Team,Training Expenses,PSC Business Consultants,660.00, 18-Nov-2016,,,,,,,,,,,,,,,,,,,,,,,,,,,,,,,,,,,,,1006301,"Furzehatt House, 102 Furzehatt Road, Plymouth, Devon, PL9 9JT",KS036,1CAHD,KS036/2831,A2016 - 042-69,A0302004,792.00,CAHA
593,Revenue,CAHD,Home Care - Elderly - South,Day Care / Social Activities,Selborne Care Ltd,508.58, 18-Nov-2016,,,,,,,,,,,,,,,,,,,,,,,,,,,,,,,,,,,,,1103242,"97 Friar Street, Droitwich, Worcestershire, , WR9 8EG",IF364,1CAHD,IF364/6704,1103242P201629,SP496450,2021.39,CAHA
594,Revenue,CAHD,Home Care - Elderly - South,Supported Living,Selborne Care Ltd,909.41, 18-Nov-2016,,,,,,,,,,,,,,,,,,,,,,,,,,,,,,,,,,,,,1103242,"97 Friar Street, Droitwich, Worcestershire, , WR9 8EG",IF364,1CAHD,IF364/6707,1103242P201629,SP496450,2021.39,CAHA
595,Revenue,CAHD,Home Care - Elderly - North,Day Care / Social Activities,Selborne Care Ltd,499.96, 18-Nov-2016,,,,,,,,,,,,,,,,,,,,,,,,,,,,,,,,,,,,,1103242,"97 Friar Street, Droitwich, Worcestershire, , WR9 8EG",IF365,1CAHD,IF365/6704,1103242P201629,SP496450,2021.39,CAHA
596,Revenue,CAHD,Home Care - Elderly - North,Supported Living,Selborne Care Ltd,103.44, 18-Nov-2016,,,,,,,,,,,,,,,,,,,,,,,,,,,,,,,,,,,,,1103242,"97 Friar Street, Droitwich, Worcestershire, , WR9 8EG",IF365,1CAHD,IF365/6707,1103242P201629,SP496450,2021.39,CAHA
597,Revenue,CAHD,Home Care - Elderly - South,Other Small Contracts,United Response,6591.50, 18-Nov-2016,,,,,,,,,,,,,,,,,,,,,,,,,,,,,,,,,,,,,1027372,"Vantage House, 1 Weir Road, Wimbledon Park, London, SW19 8UX",IF364,1CAHD,IF364/6705,1027372P201627,SP495773,11780.75,CAHA
598,Revenue,CAHD,Home Care - Elderly - North,Day Care / Social Activities,United Response,1610.75, 18-Nov-2016,,,,,,,,,,,,,,,,,,,,,,,,,,,,,,,,,,,,,1027372,"Vantage House, 1 Weir Road, Wimbledon Park, London, SW19 8UX",IF365,1CAHD,IF365/6704,1027372P201627,SP495773,11780.75,CAHA
599,Revenue,CAHD,Home Care - Elderly - North,Other Small Contracts,United Response,1785.00, 18-Nov-2016,,,,,,,,,,,,,,,,,,,,,,,,,,,,,,,,,,,,,1027372,"Vantage House, 1 Weir Road, Wimbledon Park, London, SW19 8UX",IF365,1CAHD,IF365/6705,1027372P201627,SP495773,11780.75,CAHA
600,Revenue,CAHD,Home Care - Elderly - North,Supported Living,United Response,1793.50, 18-Nov-2016,,,,,,,,,,,,,,,,,,,,,,,,,,,,,,,,,,,,,1027372,"Vantage House, 1 Weir Road, Wimbledon Park, London, SW19 8UX",IF365,1CAHD,IF365/6707,1027372P201627,SP495773,11780.75,CAHA
601,Revenue,CAHD,Home Care - Elderly - North,Day Care / Social Activities,Agincare UK Nutfield,148.58, 21-Nov-2016,,,,,,,,,,,,,,,,,,,,,,,,,,,,,,,,,,,,,1205796,"Nutfield House, Nutfield Grove, Filton, , BS34 7LJ",IF365,1CAHD,IF365/6704,1205796P201627,SP496964,2158.32,CAHA
602,Revenue,CAHD,Home Care - Elderly - North,Other Small Contracts,Agincare UK Nutfield,1958.91, 21-Nov-2016,,,,,,,,,,,,,,,,,,,,,,,,,,,,,,,,,,,,,1205796,"Nutfield House, Nutfield Grove, Filton, , BS34 7LJ",IF365,1CAHD,IF365/6705,1205796P201627,SP496964,2158.32,CAHA
603,Revenue,CAHD,Home care - Elderly MH - South,Other Small Contracts,Agincare UK Nutfield,50.83, 21-Nov-2016,,,,,,,,,,,,,,,,,,,,,,,,,,,,,,,,,,,,,1205796,"Nutfield House, Nutfield Grove, Filton, , BS34 7LJ",IP339,1CAHD,IP339/6705,1205796P201627,SP496964,2158.32,CAHA
604,Revenue,CAHD,Home Care - Elderly - North,Day Care / Social Activities,Agincare UK Nutfield,148.58, 21-Nov-2016,,,,,,,,,,,,,,,,,,,,,,,,,,,,,,,,,,,,,1205796,"Nutfield House, Nutfield Grove, Filton, , BS34 7LJ",IF365,1CAHD,IF365/6704,1205796P201628,SP496965,2134.86,CAHA
605,Revenue,CAHD,Home Care - Elderly - North,Other Small Contracts,Agincare UK Nutfield,1927.63, 21-Nov-2016,,,,,,,,,,,,,,,,,,,,,,,,,,,,,,,,,,,,,1205796,"Nutfield House, Nutfield Grove, Filton, , BS34 7LJ",IF365,1CAHD,IF365/6705,1205796P201628,SP496965,2134.86,CAHA
606,Revenue,CAHD,Home care - Elderly MH - South,Other Small Contracts,Agincare UK Nutfield,58.65, 21-Nov-2016,,,,,,,,,,,,,,,,,,,,,,,,,,,,,,,,,,,,,1205796,"Nutfield House, Nutfield Grove, Filton, , BS34 7LJ",IP339,1CAHD,IP339/6705,1205796P201628,SP496965,2134.86,CAHA
607,Revenue,CAHD,Home Care - Elderly - North,Day Care / Social Activities,Agincare UK Nutfield,152.49, 21-Nov-2016,,,,,,,,,,,,,,,,,,,,,,,,,,,,,,,,,,,,,1205796,"Nutfield House, Nutfield Grove, Filton, , BS34 7LJ",IF365,1CAHD,IF365/6704,1205796P201629,SP496966,2056.66,CAHA
608,Revenue,CAHD,Home Care - Elderly - North,Other Small Contracts,Agincare UK Nutfield,1849.43, 21-Nov-2016,,,,,,,,,,,,,,,,,,,,,,,,,,,,,,,,,,,,,1205796,"Nutfield House, Nutfield Grove, Filton, , BS34 7LJ",IF365,1CAHD,IF365/6705,1205796P201629,SP496966,2056.66,CAHA
609,Revenue,CAHD,Home care - Elderly MH - South,Other Small Contracts,Agincare UK Nutfield,54.74, 21-Nov-2016,,,,,,,,,,,,,,,,,,,,,,,,,,,,,,,,,,,,,1205796,"Nutfield House, Nutfield Grove, Filton, , BS34 7LJ",IP339,1CAHD,IP339/6705,1205796P201629,SP496966,2056.66,CAHA
610,Revenue,CAHD,Home Care - Elderly - North,Day Care / Social Activities,Agincare UK Nutfield,144.67, 21-Nov-2016,,,,,,,,,,,,,,,,,,,,,,,,,,,,,,,,,,,,,1205796,"Nutfield House, Nutfield Grove, Filton, , BS34 7LJ",IF365,1CAHD,IF365/6704,1205796P201630,SP496967,2103.58,CAHA
611,Revenue,CAHD,Home Care - Elderly - North,Other Small Contracts,Agincare UK Nutfield,1900.26, 21-Nov-2016,,,,,,,,,,,,,,,,,,,,,,,,,,,,,,,,,,,,,1205796,"Nutfield House, Nutfield Grove, Filton, , BS34 7LJ",IF365,1CAHD,IF365/6705,1205796P201630,SP496967,2103.58,CAHA
612,Revenue,CAHD,Home care - Elderly MH - South,Other Small Contracts,Agincare UK Nutfield,58.65, 21-Nov-2016,,,,,,,,,,,,,,,,,,,,,,,,,,,,,,,,,,,,,1205796,"Nutfield House, Nutfield Grove, Filton, , BS34 7LJ",IP339,1CAHD,IP339/6705,1205796P201630,SP496967,2103.58,CAHA
613,Revenue,CAHD,Home Care - Elderly - North,Private & Voluntary Home Care,Brunelcare,23822.65, 21-Nov-2016,,,,,,,,,,,,,,,,,,,,,,,,,,,,,,,,,,,,,0332192,"Saffron Gardens, Prospect Place, Whitehall, Bristol, BS5 9FF",IF365,1CAHD,IF365/6703,3000378,PP009456,23822.65,CAHA
614,Revenue,CAHD,Bed Purchasing - North,Respite Emergency - Nursing,Cotswold House Limited,1706.22, 21-Nov-2016,,,,,,,,,,,,,,,,,,,,,,,,,,,,,,,,,,,,,C40384,"Unit 3, Sheppard Road, Gloucester, , GL2 5EL",IE107,1CAHD,IE107/6711/S300112327,300112327-161116,C1054793,1706.22,CAHA
615,Revenue,CAHD,Home Care - Elderly - South,Day Care / Social Activities,Headway Bristol,671.58, 21-Nov-2016,,,,,,,,,,,,,,,,,,,,,,,,,,,,,,,,,,,,,0093334,"Frenchay Beckspool Building, Frenchay Park Road, Bristol, , BS16 1LE",IF364,1CAHD,IF364/6704,0093334P201628,SP495764,1844.18,CAHA
616,Revenue,CAHD,Home Care - Elderly - South,Other Small Contracts,Headway Bristol,341.12, 21-Nov-2016,,,,,,,,,,,,,,,,,,,,,,,,,,,,,,,,,,,,,0093334,"Frenchay Beckspool Building, Frenchay Park Road, Bristol, , BS16 1LE",IF364,1CAHD,IF364/6705,0093334P201628,SP495764,1844.18,CAHA
617,Revenue,CAHD,Home Care - Elderly - North,Day Care / Social Activities,Headway Bristol,639.60, 21-Nov-2016,,,,,,,,,,,,,,,,,,,,,,,,,,,,,,,,,,,,,0093334,"Frenchay Beckspool Building, Frenchay Park Road, Bristol, , BS16 1LE",IF365,1CAHD,IF365/6704,0093334P201628,SP495764,1844.18,CAHA
618,Revenue,CAHD,Home Care - Elderly - North,Other Small Contracts,Headway Bristol,191.88, 21-Nov-2016,,,,,,,,,,,,,,,,,,,,,,,,,,,,,,,,,,,,,0093334,"Frenchay Beckspool Building, Frenchay Park Road, Bristol, , BS16 1LE",IF365,1CAHD,IF365/6705,0093334P201628,SP495764,1844.18,CAHA
619,Revenue,CAHD,Home Care - Elderly - North,Other Small Contracts,Make it Mentoring CIC Ltd,3144.84, 21-Nov-2016,,,,,,,,,,,,,,,,,,,,,,,,,,,,,,,,,,,,,1227892,"6 St Aldams Drive, Pucklechurch, South Gloucestershire, , BS16 9QQ",IF365,1CAHD,IF365/6705,199,A0291303,3144.84,CAHA
620,Revenue,CAHD,Younger MH non-res purchasing,Supported Living,Maples Community Care Limited,809.60, 21-Nov-2016,,,,,,,,,,,,,,,,,,,,,,,,,,,,,,,,,,,,,0892962,"The Laurels, 24 High Street, Staple Hill, South Gloucestershire, BS16 5HW",IP335,1CAHD,IP335/6707,11694,A0303779,809.60,CAHA
621,Revenue,CAHD,Younger MH non-res purchasing,Supported Living,Maples Community Care Limited,769.12, 21-Nov-2016,,,,,,,,,,,,,,,,,,,,,,,,,,,,,,,,,,,,,0892962,"The Laurels, 24 High Street, Staple Hill, South Gloucestershire, BS16 5HW",IP335,1CAHD,IP335/6707,11698,A0298756,769.12,CAHA
622,Revenue,CAHD,Community Support - South,Preventative Assistance,Overhill Kennels & Exports,627.50, 21-Nov-2016,,,,,,,,,,,,,,,,,,,,,,,,,,,,,,,,,,,,,1101339,"Norton Lane, Pensford, Bristol, , BS39 4EY",KR364,1CAHD,kr364/5880,681-1,A0304588,627.50,CAHA
623,Revenue,CAHD,Home Care - Elderly - South,Day Care / Social Activities,Smile Independent Living Support Limited,218.04, 21-Nov-2016,,,,,,,,,,,,,,,,,,,,,,,,,,,,,,,,,,,,,1112714,"7a High Street, Chipping Sodbury, South Gloucestershire, , BS37 6BA",IF364,1CAHD,IF364/6704,1112714P201630,SP496452,1270.32,CAHA
624,Revenue,CAHD,Home Care - Elderly - South,Other Small Contracts,Smile Independent Living Support Limited,161.16, 21-Nov-2016,,,,,,,,,,,,,,,,,,,,,,,,,,,,,,,,,,,,,1112714,"7a High Street, Chipping Sodbury, South Gloucestershire, , BS37 6BA",IF364,1CAHD,IF364/6705,1112714P201630,SP496452,1270.32,CAHA
625,Revenue,CAHD,Home Care - Elderly - North,Day Care / Social Activities,Smile Independent Living Support Limited,677.82, 21-Nov-2016,,,,,,,,,,,,,,,,,,,,,,,,,,,,,,,,,,,,,1112714,"7a High Street, Chipping Sodbury, South Gloucestershire, , BS37 6BA",IF365,1CAHD,IF365/6704,1112714P201630,SP496452,1270.32,CAHA
626,Revenue,CAHD,Home Care - Elderly - North,Supported Living,Smile Independent Living Support Limited,213.30, 21-Nov-2016,,,,,,,,,,,,,,,,,,,,,,,,,,,,,,,,,,,,,1112714,"7a High Street, Chipping Sodbury, South Gloucestershire, , BS37 6BA",IF365,1CAHD,IF365/6707,1112714P201630,SP496452,1270.32,CAHA
627,Revenue,CAHD,Bed Purchasing - South,Permanent Residential,.,1589.20, 22-Nov-2016,,,,,,,,,,,,,,,,,,,,,,,,,,,,,,,,,,,,,C37740,"The Crescent, Colchester Business Park, Colchester, , CO4 9QB",IE101,1CAHD,IE101/6700/S300055235,300055235-161116,C1054617,1589.20,CAHA
628,Revenue,CAHD,Bed Purchasing - North,Permanent Nursing,.,2729.20, 22-Nov-2016,,,,,,,,,,,,,,,,,,,,,,,,,,,,,,,,,,,,,C39939,"84 High Street, Winterbourne, Bristol, , BS36 1RB",IE107,1CAHD,IE107/6710/S103334,103334-161116,C1054682,2729.20,CAHA
629,Revenue,CAHD,Bed Purchasing - South,Permanent Nursing,.,2943.00, 22-Nov-2016,,,,,,,,,,,,,,,,,,,,,,,,,,,,,,,,,,,,,C39939,"84 High Street, Winterbourne, Bristol, , BS36 1RB",IE101,1CAHD,IE101/6710/S114481,114481-161116,C1054680,2943.00,CAHA
630,Revenue,CAHD,South Glos Users in South Glos Homes,Permanent Nursing,.,625.00, 22-Nov-2016,,,,,,,,,,,,,,,,,,,,,,,,,,,,,,,,,,,,,C39939,"84 High Street, Winterbourne, Bristol, , BS36 1RB",IE900,1CAHD,IE900/6710/S114481,114481-161116,C1054697,625.00,CAHA
631,Revenue,CAHD,Bed Purchasing - North,Permanent Nursing,.,2753.20, 22-Nov-2016,,,,,,,,,,,,,,,,,,,,,,,,,,,,,,,,,,,,,C39939,"84 High Street, Winterbourne, Bristol, , BS36 1RB",IE107,1CAHD,IE107/6710/S114559,114559-161116,C1054681,2753.20,CAHA
632,Revenue,CAHD,South Glos Users in South Glos Homes,Permanent Nursing,.,625.00, 22-Nov-2016,,,,,,,,,,,,,,,,,,,,,,,,,,,,,,,,,,,,,C39939,"84 High Street, Winterbourne, Bristol, , BS36 1RB",IE900,1CAHD,IE900/6710/S114559,114559-161116,C1054698,625.00,CAHA
633,Revenue,CAHD,Bed Purchasing - South,Permanent Nursing,.,2729.20, 22-Nov-2016,,,,,,,,,,,,,,,,,,,,,,,,,,,,,,,,,,,,,C39939,"84 High Street, Winterbourne, Bristol, , BS36 1RB",IE101,1CAHD,IE101/6710/S130451,130451-161116,C1054683,2729.20,CAHA
634,Revenue,CAHD,South Glos Users in South Glos Homes,Permanent Nursing,.,625.00, 22-Nov-2016,,,,,,,,,,,,,,,,,,,,,,,,,,,,,,,,,,,,,C39939,"84 High Street, Winterbourne, Bristol, , BS36 1RB",IE900,1CAHD,IE900/6710/S130451,130451-161116,C1054699,625.00,CAHA
635,Revenue,CAHD,Bed Purchasing - North,Permanent Residential,.,4135.87, 22-Nov-2016,,,,,,,,,,,,,,,,,,,,,,,,,,,,,,,,,,,,,C39939,"84 High Street, Winterbourne, Bristol, , BS36 1RB",IE107,1CAHD,IE107/6700/S135229,135229-161116,C1054678,4135.87,CAHA
636,Revenue,CAHD,Bed Purchasing - North,Permanent Residential,.,1555.44, 22-Nov-2016,,,,,,,,,,,,,,,,,,,,,,,,,,,,,,,,,,,,,C39939,"84 High Street, Winterbourne, Bristol, , BS36 1RB",IE107,1CAHD,IE107/6700/S135229,135229-161116,C1054691,1555.44,CAHA
637,Revenue,CAHD,Bed Purchasing - South,Permanent Nursing,.,2586.08, 22-Nov-2016,,,,,,,,,,,,,,,,,,,,,,,,,,,,,,,,,,,,,C39939,"84 High Street, Winterbourne, Bristol, , BS36 1RB",IE101,1CAHD,IE101/6710/S135437,135437-161116,C1054686,2586.08,CAHA
638,Revenue,CAHD,South Glos Users in South Glos Homes,Permanent Nursing,.,1205.36, 22-Nov-2016,,,,,,,,,,,,,,,,,,,,,,,,,,,,,,,,,,,,,C39939,"84 High Street, Winterbourne, Bristol, , BS36 1RB",IE900,1CAHD,IE900/6710/S135437,135437-161116,C1054694,1205.36,CAHA
639,Revenue,CAHD,South Glos Users in South Glos Homes,Permanent Nursing,.,625.00, 22-Nov-2016,,,,,,,,,,,,,,,,,,,,,,,,,,,,,,,,,,,,,C39939,"84 High Street, Winterbourne, Bristol, , BS36 1RB",IE900,1CAHD,IE900/6710/S135437,135437-161116,C1054700,625.00,CAHA
640,Revenue,CAHD,Bed Purchasing - North,Permanent Nursing,.,4184.12, 22-Nov-2016,,,,,,,,,,,,,,,,,,,,,,,,,,,,,,,,,,,,,C39939,"84 High Street, Winterbourne, Bristol, , BS36 1RB",IE107,1CAHD,IE107/6710/S139533,139533-161116,C1054677,4184.12,CAHA
641,Revenue,CAHD,South Glos Users in South Glos Homes,Permanent Nursing,.,625.00, 22-Nov-2016,,,,,,,,,,,,,,,,,,,,,,,,,,,,,,,,,,,,,C39939,"84 High Street, Winterbourne, Bristol, , BS36 1RB",IE900,1CAHD,IE900/6710/S139533,139533-161116,C1054701,625.00,CAHA
642,Revenue,CAHD,South Glos Users in South Glos Homes,Permanent Nursing,.,625.00, 22-Nov-2016,,,,,,,,,,,,,,,,,,,,,,,,,,,,,,,,,,,,,C39939,"84 High Street, Winterbourne, Bristol, , BS36 1RB",IE900,1CAHD,IE900/6710/S144129,144129-161116,C1054702,625.00,CAHA
643,Revenue,CAHD,Bed Purchasing - Southmead Hospital,Permanent Nursing,.,6336.61, 22-Nov-2016,,,,,,,,,,,,,,,,,,,,,,,,,,,,,,,,,,,,,C39939,"84 High Street, Winterbourne, Bristol, , BS36 1RB",IE345,1CAHD,IE345/6710/S152089,152089-161116,C1054676,6336.61,CAHA
644,Revenue,CAHD,South Glos Users in South Glos Homes,Permanent Nursing,.,2500.00, 22-Nov-2016,,,,,,,,,,,,,,,,,,,,,,,,,,,,,,,,,,,,,C39939,"84 High Street, Winterbourne, Bristol, , BS36 1RB",IE900,1CAHD,IE900/6710/S153844,153844-161116,C1054687,2500.00,CAHA
645,Revenue,CAHD,South Glos Users in South Glos Homes,Permanent Nursing,.,625.00, 22-Nov-2016,,,,,,,,,,,,,,,,,,,,,,,,,,,,,,,,,,,,,C39939,"84 High Street, Winterbourne, Bristol, , BS36 1RB",IE900,1CAHD,IE900/6710/S153844,153844-161116,C1054703,625.00,CAHA
646,Revenue,CAHD,South Glos Users in South Glos Homes,Permanent Nursing,.,625.00, 22-Nov-2016,,,,,,,,,,,,,,,,,,,,,,,,,,,,,,,,,,,,,C39939,"84 High Street, Winterbourne, Bristol, , BS36 1RB",IE900,1CAHD,IE900/6710/S154650,154650-161116,C1054704,625.00,CAHA
647,Revenue,CAHD,South Glos Users in South Glos Homes,Permanent Nursing,.,625.00, 22-Nov-2016,,,,,,,,,,,,,,,,,,,,,,,,,,,,,,,,,,,,,C39939,"84 High Street, Winterbourne, Bristol, , BS36 1RB",IE900,1CAHD,IE900/6710/S154729,154729-161116,C1054705,625.00,CAHA
648,Revenue,CAHD,South Glos Users in South Glos Homes,Permanent Nursing,.,2477.68, 22-Nov-2016,,,,,,,,,,,,,,,,,,,,,,,,,,,,,,,,,,,,,C39939,"84 High Street, Winterbourne, Bristol, , BS36 1RB",IE900,1CAHD,IE900/6710/S154764,154764-161116,C1054688,2477.68,CAHA
649,Revenue,CAHD,South Glos Users in South Glos Homes,Permanent Nursing,.,625.00, 22-Nov-2016,,,,,,,,,,,,,,,,,,,,,,,,,,,,,,,,,,,,,C39939,"84 High Street, Winterbourne, Bristol, , BS36 1RB",IE900,1CAHD,IE900/6710/S154764,154764-161116,C1054706,625.00,CAHA
650,Revenue,CAHD,South Glos Users in South Glos Homes,Permanent Nursing,.,625.00, 22-Nov-2016,,,,,,,,,,,,,,,,,,,,,,,,,,,,,,,,,,,,,C39939,"84 High Street, Winterbourne, Bristol, , BS36 1RB",IE900,1CAHD,IE900/6710/S155026,155026-161116,C1054707,625.00,CAHA
651,Revenue,CAHD,South Glos Users in South Glos Homes,Permanent Nursing,.,625.00, 22-Nov-2016,,,,,,,,,,,,,,,,,,,,,,,,,,,,,,,,,,,,,C39939,"84 High Street, Winterbourne, Bristol, , BS36 1RB",IE900,1CAHD,IE900/6710/S155059,155059-161116,C1054708,625.00,CAHA
652,Revenue,CAHD,South Glos Users in South Glos Homes,Permanent Nursing,.,625.00, 22-Nov-2016,,,,,,,,,,,,,,,,,,,,,,,,,,,,,,,,,,,,,C39939,"84 High Street, Winterbourne, Bristol, , BS36 1RB",IE900,1CAHD,IE900/6710/S155062,155062-161116,C1054709,625.00,CAHA
653,Revenue,CAHD,South Glos Users in South Glos Homes,Permanent Nursing,.,1808.04, 22-Nov-2016,,,,,,,,,,,,,,,,,,,,,,,,,,,,,,,,,,,,,C39939,"84 High Street, Winterbourne, Bristol, , BS36 1RB",IE900,1CAHD,IE900/6710/S155556,155556-161116,C1054690,1808.04,CAHA
654,Revenue,CAHD,South Glos Users in South Glos Homes,Permanent Nursing,.,625.00, 22-Nov-2016,,,,,,,,,,,,,,,,,,,,,,,,,,,,,,,,,,,,,C39939,"84 High Street, Winterbourne, Bristol, , BS36 1RB",IE900,1CAHD,IE900/6710/S155556,155556-161116,C1054710,625.00,CAHA
655,Revenue,CAHD,South Glos Users in South Glos Homes,Permanent Nursing,.,1339.29, 22-Nov-2016,,,,,,,,,,,,,,,,,,,,,,,,,,,,,,,,,,,,,C39939,"84 High Street, Winterbourne, Bristol, , BS36 1RB",IE900,1CAHD,IE900/6710/S155568,155568-161116,C1054693,1339.29,CAHA
656,Revenue,CAHD,South Glos Users in South Glos Homes,Permanent Nursing,.,625.00, 22-Nov-2016,,,,,,,,,,,,,,,,,,,,,,,,,,,,,,,,,,,,,C39939,"84 High Street, Winterbourne, Bristol, , BS36 1RB",IE900,1CAHD,IE900/6710/S155568,155568-161116,C1054711,625.00,CAHA
657,Revenue,CAHD,South Glos Users in South Glos Homes,Permanent Nursing,.,803.57, 22-Nov-2016,,,,,,,,,,,,,,,,,,,,,,,,,,,,,,,,,,,,,C39939,"84 High Street, Winterbourne, Bristol, , BS36 1RB",IE900,1CAHD,IE900/6710/S155578,155578-161116,C1054695,803.57,CAHA
658,Revenue,CAHD,Bed Purchasing - North,Permanent Nursing,.,2718.60, 22-Nov-2016,,,,,,,,,,,,,,,,,,,,,,,,,,,,,,,,,,,,,C39939,"84 High Street, Winterbourne, Bristol, , BS36 1RB",IE107,1CAHD,IE107/6710/S300001196,300001196-161116,C1054684,2718.60,CAHA
659,Revenue,CAHD,South Glos Users in South Glos Homes,Permanent Nursing,.,625.00, 22-Nov-2016,,,,,,,,,,,,,,,,,,,,,,,,,,,,,,,,,,,,,C39939,"84 High Street, Winterbourne, Bristol, , BS36 1RB",IE900,1CAHD,IE900/6710/S300001196,300001196-161116,C1054712,625.00,CAHA
660,Revenue,CAHD,Bed Purchasing - North,Permanent Nursing,.,3052.20, 22-Nov-2016,,,,,,,,,,,,,,,,,,,,,,,,,,,,,,,,,,,,,C39939,"84 High Street, Winterbourne, Bristol, , BS36 1RB",IE107,1CAHD,IE107/6710/S300091328,300091328-161116,C1054679,3052.20,CAHA
661,Revenue,CAHD,Bed Purchasing - North,Permanent Nursing,.,1417.09, 22-Nov-2016,,,,,,,,,,,,,,,,,,,,,,,,,,,,,,,,,,,,,C39939,"84 High Street, Winterbourne, Bristol, , BS36 1RB",IE107,1CAHD,IE107/6710/S300091328,300091328-161116,C1054692,1417.09,CAHA
662,Revenue,CAHD,Bed Purchasing - North,Permanent Nursing,.,2432.44, 22-Nov-2016,,,,,,,,,,,,,,,,,,,,,,,,,,,,,,,,,,,,,C39939,"84 High Street, Winterbourne, Bristol, , BS36 1RB",IE107,1CAHD,IE107/6710/S300100667,300100667-161116,C1054689,2432.44,CAHA
663,Revenue,CAHD,South Glos Users in South Glos Homes,Permanent Nursing,.,625.00, 22-Nov-2016,,,,,,,,,,,,,,,,,,,,,,,,,,,,,,,,,,,,,C39939,"84 High Street, Winterbourne, Bristol, , BS36 1RB",IE900,1CAHD,IE900/6710/S300100667,300100667-161116,C1054713,625.00,CAHA
664,Revenue,CAHD,Bed Purchasing - North,Permanent Nursing,.,2644.88, 22-Nov-2016,,,,,,,,,,,,,,,,,,,,,,,,,,,,,,,,,,,,,C39939,"84 High Street, Winterbourne, Bristol, , BS36 1RB",IE107,1CAHD,IE107/6710/S64547,64547-161116,C1054685,2644.88,CAHA
665,Revenue,CAHD,South Glos Users in South Glos Homes,Permanent Nursing,.,625.00, 22-Nov-2016,,,,,,,,,,,,,,,,,,,,,,,,,,,,,,,,,,,,,C39939,"84 High Street, Winterbourne, Bristol, , BS36 1RB",IE900,1CAHD,IE900/6710/S64547,64547-161116,C1054696,625.00,CAHA
666,Revenue,CAHD,18-25 Year Olds,Permanent Residential,1 St Georges House,13663.04, 22-Nov-2016,,,,,,,,,,,,,,,,,,,,,,,,,,,,,,,,,,,,,C36679,"., Vernon Gate, ., Derby, DE1 1UQ",IE025,1CAHD,IE025/6700/S124935,124935-161116,C1054607,13663.04,CAHA
667,Revenue,CAHD,Home Care - Elderly - North,Supported Living,2430 The Quadrant,5041.76, 22-Nov-2016,,,,,,,,,,,,,,,,,,,,,,,,,,,,,,,,,,,,,C0804798,"130, Aztec West, Almondsbury, Bristol, BS32 4UB",IF365,1CAHD,IF365/6707/S200012417,200012417-161116,C1053199,5041.76,CAHA
668,Revenue,CAHD,Home Care - Elderly - North,Supported Living,2430 The Quadrant,5041.76, 22-Nov-2016,,,,,,,,,,,,,,,,,,,,,,,,,,,,,,,,,,,,,C0804798,"130, Aztec West, Almondsbury, Bristol, BS32 4UB",IF365,1CAHD,IF365/6707/S200013026,200013026-161116,C1053200,5041.76,CAHA
669,Revenue,CAHD,Home Care - Elderly - South,Day Care / Social Activities,3 Trees Community Support Ltd,91.60, 22-Nov-2016,,,,,,,,,,,,,,,,,,,,,,,,,,,,,,,,,,,,,1139679,"56 A Greystoke Avenue, Westbury on Trym, Bristol, , BS10 6AZ",IF364,1CAHD,IF364/6704,1139679P201630,SP497134,10773.06,CAHA
670,Revenue,CAHD,Home Care - Elderly - North,Day Care / Social Activities,3 Trees Community Support Ltd,1378.58, 22-Nov-2016,,,,,,,,,,,,,,,,,,,,,,,,,,,,,,,,,,,,,1139679,"56 A Greystoke Avenue, Westbury on Trym, Bristol, , BS10 6AZ",IF365,1CAHD,IF365/6704,1139679P201630,SP497134,10773.06,CAHA
671,Revenue,CAHD,Home Care - Elderly - North,Other Small Contracts,3 Trees Community Support Ltd,696.16, 22-Nov-2016,,,,,,,,,,,,,,,,,,,,,,,,,,,,,,,,,,,,,1139679,"56 A Greystoke Avenue, Westbury on Trym, Bristol, , BS10 6AZ",IF365,1CAHD,IF365/6705,1139679P201630,SP497134,10773.06,CAHA
672,Revenue,CAHD,Home Care - Elderly - North,Supported Living,3 Trees Community Support Ltd,8606.72, 22-Nov-2016,,,,,,,,,,,,,,,,,,,,,,,,,,,,,,,,,,,,,1139679,"56 A Greystoke Avenue, Westbury on Trym, Bristol, , BS10 6AZ",IF365,1CAHD,IF365/6707,1139679P201630,SP497134,10773.06,CAHA
673,Revenue,CAHD,Home Care - Elderly - South,Day Care / Social Activities,3 Trees Community Support Ltd,92.20, 22-Nov-2016,,,,,,,,,,,,,,,,,,,,,,,,,,,,,,,,,,,,,1139679,"56 A Greystoke Avenue, Westbury on Trym, Bristol, , BS10 6AZ",IF364,1CAHD,IF364/6704,1139679P201631,SP497133,10902.65,CAHA
674,Revenue,CAHD,Home Care - Elderly - North,Day Care / Social Activities,3 Trees Community Support Ltd,1355.34, 22-Nov-2016,,,,,,,,,,,,,,,,,,,,,,,,,,,,,,,,,,,,,1139679,"56 A Greystoke Avenue, Westbury on Trym, Bristol, , BS10 6AZ",IF365,1CAHD,IF365/6704,1139679P201631,SP497133,10902.65,CAHA
675,Revenue,CAHD,Home Care - Elderly - North,Other Small Contracts,3 Trees Community Support Ltd,700.72, 22-Nov-2016,,,,,,,,,,,,,,,,,,,,,,,,,,,,,,,,,,,,,1139679,"56 A Greystoke Avenue, Westbury on Trym, Bristol, , BS10 6AZ",IF365,1CAHD,IF365/6705,1139679P201631,SP497133,10902.65,CAHA
676,Revenue,CAHD,Home Care - Elderly - North,Supported Living,3 Trees Community Support Ltd,8754.39, 22-Nov-2016,,,,,,,,,,,,,,,,,,,,,,,,,,,,,,,,,,,,,1139679,"56 A Greystoke Avenue, Westbury on Trym, Bristol, , BS10 6AZ",IF365,1CAHD,IF365/6707,1139679P201631,SP497133,10902.65,CAHA
677,Revenue,CAHD,Bed Purchasing - South,Permanent Residential,5Th Floor Harlech Court,16462.84, 22-Nov-2016,,,,,,,,,,,,,,,,,,,,,,,,,,,,,,,,,,,,,C33157,"Hayes Road, Sully, Penarth, , CF64 5SE",IE101,1CAHD,IE101/6700/S119099,119099-161116,C1054453,16462.84,CAHA
678,Revenue,CAHD,18-25 Year Olds,Permanent Residential,5Th Floor Harlech Court,14031.44, 22-Nov-2016,,,,,,,,,,,,,,,,,,,,,,,,,,,,,,,,,,,,,C33157,"Hayes Road, Sully, Penarth, , CF64 5SE",IE025,1CAHD,IE025/6700/S120488,120488-161116,C1054457,14031.44,CAHA
679,Revenue,CAHD,18-25 Year Olds,Permanent Residential,5Th Floor Harlech Court,14309.60, 22-Nov-2016,,,,,,,,,,,,,,,,,,,,,,,,,,,,,,,,,,,,,C33157,"Hayes Road, Sully, Penarth, , CF64 5SE",IE025,1CAHD,IE025/6700/S121918,121918-161116,C1054456,14309.60,CAHA
680,Revenue,CAHD,18-25 Year Olds,Permanent Residential,5Th Floor Harlech Court,12561.64, 22-Nov-2016,,,,,,,,,,,,,,,,,,,,,,,,,,,,,,,,,,,,,C33157,"Hayes Road, Sully, Penarth, , CF64 5SE",IE025,1CAHD,IE025/6700/S135128,135128-161116,C1054458,12561.64,CAHA
681,Revenue,CAHD,Bed Purchasing - North,Permanent Residential,5Th Floor Harlech Court,15666.92, 22-Nov-2016,,,,,,,,,,,,,,,,,,,,,,,,,,,,,,,,,,,,,C33157,"Hayes Road, Sully, Penarth, , CF64 5SE",IE107,1CAHD,IE107/6700/S136315,136315-161116,C1054455,15666.92,CAHA
682,Revenue,CAHD,Bed Purchasing - North,Permanent Residential,5Th Floor Harlech Court,19367.24, 22-Nov-2016,,,,,,,,,,,,,,,,,,,,,,,,,,,,,,,,,,,,,C33157,"Hayes Road, Sully, Penarth, , CF64 5SE",IE107,1CAHD,IE107/6700/S300000454,300000454-161116,C1054450,19367.24,CAHA
683,Revenue,CAHD,Bed Purchasing - North,Permanent Residential,5Th Floor Harlech Court,13923.28, 22-Nov-2016,,,,,,,,,,,,,,,,,,,,,,,,,,,,,,,,,,,,,C33157,"Hayes Road, Sully, Penarth, , CF64 5SE",IE107,1CAHD,IE107/6700/S300019843,300019843-161116,C1054451,13923.28,CAHA
684,Revenue,CAHD,Jointly Funded H&SC Packages,Permanent Residential,5Th Floor Harlech Court,3078.96, 22-Nov-2016,,,,,,,,,,,,,,,,,,,,,,,,,,,,,,,,,,,,,C33157,"Hayes Road, Sully, Penarth, , CF64 5SE",XL099,1CAHD,XL099/6700/S300019843,300019843-161116,C1054452,3078.96,CAHA
685,Revenue,CAHD,18-25 Year Olds,Permanent Residential,5Th Floor Harlech Court,16146.32, 22-Nov-2016,,,,,,,,,,,,,,,,,,,,,,,,,,,,,,,,,,,,,C33157,"Hayes Road, Sully, Penarth, , CF64 5SE",IE025,1CAHD,IE025/6700/S500042315,500042315-161116,C1054454,16146.32,CAHA
686,Revenue,CAHD,Bed Purchasing - South,Permanent Residential,5Th Floor Harlech Court,9535.64, 22-Nov-2016,,,,,,,,,,,,,,,,,,,,,,,,,,,,,,,,,,,,,C36880,"., Bute Terrace, ., Cardiff, CF10 2FE",IE101,1CAHD,IE101/6700/S300001402,300001402-161116,C1054611,9535.64,CAHA
687,Revenue,CAHD,Bed purchasing - S28A Under 65 - South,Permanent Residential,5Th Floor Harlech Court,9950.84, 22-Nov-2016,,,,,,,,,,,,,,,,,,,,,,,,,,,,,,,,,,,,,C36880,"., Bute Terrace, ., Cardiff, CF10 2FE",XL703,1CAHD,XL703/6700/S300020203,300020203-161116,C1054610,9950.84,CAHA
688,Revenue,CAHD,Bed Purchasing - South,Permanent Residential,5Th Floor Harlech Court,10497.68, 22-Nov-2016,,,,,,,,,,,,,,,,,,,,,,,,,,,,,,,,,,,,,C36880,"., Bute Terrace, ., Cardiff, CF10 2FE",IE101,1CAHD,IE101/6700/S300021951,300021951-161116,C1054609,10497.68,CAHA
689,Revenue,CAHD,Bed Purchasing - Southmead Hospital,Permanent Residential,Abbots Leigh Nursing,2591.42, 22-Nov-2016,,,,,,,,,,,,,,,,,,,,,,,,,,,,,,,,,,,,,C40387,"., Manor Road, Abbots Leigh, Bristol, BS8 3RP",IE345,1CAHD,IE345/6700/S145958,145958-161116,C1054794,2591.42,CAHA
690,Revenue,CAHD,Bed Purchasing - North,Permanent Nursing,ABI Development Limited,7147.00, 22-Nov-2016,,,,,,,,,,,,,,,,,,,,,,,,,,,,,,,,,,,,,C35659,"1 Sewardstone Close, Sewardstone Road, London, , E4 7RG",IE107,1CAHD,IE107/6710/S300098528,300098528-161116,C1054491,7147.00,CAHA
691,Revenue,CAHD,Bed Purchasing - South,Permanent Nursing,Ambleside Nusing Home,1576.08, 22-Nov-2016,,,,,,,,,,,,,,,,,,,,,,,,,,,,,,,,,,,,,C34579,"6, Southside, ., Weston-Super-Mare, BS23 2QT",IE101,1CAHD,IE101/6710/S128244,128244-161116,C1054469,1576.08,CAHA
692,Revenue,CAHD,Bed Purchasing - Southmead Hospital,Permanent Nursing,Amerind Grove Nursing Home,1950.64, 22-Nov-2016,,,,,,,,,,,,,,,,,,,,,,,,,,,,,,,,,,,,,C12764,"124, Raleigh Road, Ashton, Bristol, BS3 1QN",IE345,1CAHD,IE345/6710/S106622,106622-161116,C1053636,1950.64,CAHA
693,Revenue,CAHD,Bed Purchasing - Southmead Hospital,Permanent Nursing,Amerind Grove Nursing Home,1711.28, 22-Nov-2016,,,,,,,,,,,,,,,,,,,,,,,,,,,,,,,,,,,,,C12764,"124, Raleigh Road, Ashton, Bristol, BS3 1QN",IE345,1CAHD,IE345/6710/S85870,85870-161116,C1053637,1711.28,CAHA
694,Revenue,CAHD,Bed Purchasing - North,Permanent Residential,Ark Care Homes Ltd,10494.48, 22-Nov-2016,,,,,,,,,,,,,,,,,,,,,,,,,,,,,,,,,,,,,C23084,"141, Bay View Road, Northam, Bideford, EX39 1BJ",IE107,1CAHD,IE107/6700/S300026051,300026051-161116,C1054024,10494.48,CAHA
695,Revenue,CAHD,S117 Placements PCT,Permanent Residential,Ash View House,7148.68, 22-Nov-2016,,,,,,,,,,,,,,,,,,,,,,,,,,,,,,,,,,,,,C29004,"30D, Cock Road, Kingswood, Bristol, BS15 9SH",XL338,1CAHD,XL338/6700/S300000780,300000780-161116,C1054279,7148.68,CAHA
696,Revenue,CAHD,18-25 Year Olds,Permanent Residential,Ash View House,6315.92, 22-Nov-2016,,,,,,,,,,,,,,,,,,,,,,,,,,,,,,,,,,,,,C29004,"30D, Cock Road, Kingswood, Bristol, BS15 9SH",IE025,1CAHD,IE025/6700/S300037513,300037513-161116,C1054278,6315.92,CAHA
697,Revenue,CAHD,Section 117 Placements MH Younger,Permanent Residential,Ash View House,4658.52, 22-Nov-2016,,,,,,,,,,,,,,,,,,,,,,,,,,,,,,,,,,,,,C29004,"30D, Cock Road, Kingswood, Bristol, BS15 9SH",IN339,1CAHD,IN339/6700/S300093000,300093000-161116,C1054280,4658.52,CAHA
698,Revenue,CAHD,Jointly Funded H&SC Packages,Permanent Residential,Ash View House,1996.52, 22-Nov-2016,,,,,,,,,,,,,,,,,,,,,,,,,,,,,,,,,,,,,C29004,"30D, Cock Road, Kingswood, Bristol, BS15 9SH",XL099,1CAHD,XL099/6700/S300093000,300093000-161116,C1054281,1996.52,CAHA
699,Revenue,CAHD,Bed purchasing - Elderly S117 - South,Permanent Residential,Ash View House,6331.72, 22-Nov-2016,,,,,,,,,,,,,,,,,,,,,,,,,,,,,,,,,,,,,C29004,"30D, Cock Road, Kingswood, Bristol, BS15 9SH",IN332,1CAHD,IN332/6700/S70185,70185-161116,C1054282,6331.72,CAHA
700,Revenue,CAHD,Bed Purchasing - North,Permanent Residential,Aspects 2 Limited,6441.16, 22-Nov-2016,,,,,,,,,,,,,,,,,,,,,,,,,,,,,,,,,,,,,C32703,"Unit 1, Salmon Springs Trading Estate, Cheltenham Road, Stroud, GL6 6NU",IE107,1CAHD,IE107/6700/S300034369,300034369-161116,C1054416,6441.16,CAHA
701,Revenue,CAHD,Bed Purchasing - South,Permanent Residential,Autism Specialised Care Homes,5755.24, 22-Nov-2016,,,,,,,,,,,,,,,,,,,,,,,,,,,,,,,,,,,,,C13697,"68, Strathearn Drive, Westbury-On-Trym, Bristol, BS10 6TJ",IE101,1CAHD,IE101/6700/S400023354,400023354-161116,C1053855,5755.24,CAHA
702,Revenue,CAHD,Bed Purchasing - Southmead Hospital,Permanent Nursing,Bayview Nursing & Residential Home,1503.96, 22-Nov-2016,,,,,,,,,,,,,,,,,,,,,,,,,,,,,,,,,,,,,C34998,"2-6, Bay Road, ., Clevedon, BS21 7BT",IE345,1CAHD,IE345/6710/S104862,104862-161116,C1054474,1503.96,CAHA
703,Revenue,CAHD,South Glos Users in South Glos Homes,Permanent Nursing,Beaufort Grange Care Home,625.00, 22-Nov-2016,,,,,,,,,,,,,,,,,,,,,,,,,,,,,,,,,,,,,C35759,"., Hatton Road, ., Bristol, BS16 1AH",IE900,1CAHD,IE900/6710/S101984,101984-161116,C1054496,625.00,CAHA
704,Revenue,CAHD,South Glos Users in South Glos Homes,Permanent Nursing,Beaufort Grange Care Home,625.00, 22-Nov-2016,,,,,,,,,,,,,,,,,,,,,,,,,,,,,,,,,,,,,C35759,"., Hatton Road, ., Bristol, BS16 1AH",IE900,1CAHD,IE900/6710/S102324,102324-161116,C1054497,625.00,CAHA
705,Revenue,CAHD,South Glos Users in South Glos Homes,Permanent Nursing,Beaufort Grange Care Home,625.00, 22-Nov-2016,,,,,,,,,,,,,,,,,,,,,,,,,,,,,,,,,,,,,C35759,"., Hatton Road, ., Bristol, BS16 1AH",IE900,1CAHD,IE900/6710/S125267,125267-161116,C1054498,625.00,CAHA
706,Revenue,CAHD,South Glos Users in South Glos Homes,Permanent Nursing,Beaufort Grange Care Home,625.00, 22-Nov-2016,,,,,,,,,,,,,,,,,,,,,,,,,,,,,,,,,,,,,C35759,"., Hatton Road, ., Bristol, BS16 1AH",IE900,1CAHD,IE900/6710/S132476,132476-161116,C1054499,625.00,CAHA
707,Revenue,CAHD,South Glos Users in South Glos Homes,Permanent Nursing,Beaufort Grange Care Home,625.00, 22-Nov-2016,,,,,,,,,,,,,,,,,,,,,,,,,,,,,,,,,,,,,C35759,"., Hatton Road, ., Bristol, BS16 1AH",IE900,1CAHD,IE900/6710/S136700,136700-161116,C1054500,625.00,CAHA
708,Revenue,CAHD,South Glos Users in South Glos Homes,Permanent Nursing,Beaufort Grange Care Home,625.00, 22-Nov-2016,,,,,,,,,,,,,,,,,,,,,,,,,,,,,,,,,,,,,C35759,"., Hatton Road, ., Bristol, BS16 1AH",IE900,1CAHD,IE900/6710/S139049,139049-161116,C1054501,625.00,CAHA
709,Revenue,CAHD,South Glos Users in South Glos Homes,Permanent Nursing,Beaufort Grange Care Home,625.00, 22-Nov-2016,,,,,,,,,,,,,,,,,,,,,,,,,,,,,,,,,,,,,C35759,"., Hatton Road, ., Bristol, BS16 1AH",IE900,1CAHD,IE900/6710/S139235,139235-161116,C1054502,625.00,CAHA
710,Revenue,CAHD,South Glos Users in South Glos Homes,Permanent Nursing,Beaufort Grange Care Home,625.00, 22-Nov-2016,,,,,,,,,,,,,,,,,,,,,,,,,,,,,,,,,,,,,C35759,"., Hatton Road, ., Bristol, BS16 1AH",IE900,1CAHD,IE900/6710/S141027,141027-161116,C1054503,625.00,CAHA
711,Revenue,CAHD,South Glos Users in South Glos Homes,Permanent Nursing,Beaufort Grange Care Home,625.00, 22-Nov-2016,,,,,,,,,,,,,,,,,,,,,,,,,,,,,,,,,,,,,C35759,"., Hatton Road, ., Bristol, BS16 1AH",IE900,1CAHD,IE900/6710/S141029,141029-161116,C1054504,625.00,CAHA
712,Revenue,CAHD,South Glos Users in South Glos Homes,Permanent Nursing,Beaufort Grange Care Home,625.00, 22-Nov-2016,,,,,,,,,,,,,,,,,,,,,,,,,,,,,,,,,,,,,C35759,"., Hatton Road, ., Bristol, BS16 1AH",IE900,1CAHD,IE900/6710/S141500,141500-161116,C1054505,625.00,CAHA
713,Revenue,CAHD,South Glos Users in South Glos Homes,Permanent Nursing,Beaufort Grange Care Home,625.00, 22-Nov-2016,,,,,,,,,,,,,,,,,,,,,,,,,,,,,,,,,,,,,C35759,"., Hatton Road, ., Bristol, BS16 1AH",IE900,1CAHD,IE900/6710/S143073,143073-161116,C1054506,625.00,CAHA
714,Revenue,CAHD,South Glos Users in South Glos Homes,Permanent Nursing,Beaufort Grange Care Home,625.00, 22-Nov-2016,,,,,,,,,,,,,,,,,,,,,,,,,,,,,,,,,,,,,C35759,"., Hatton Road, ., Bristol, BS16 1AH",IE900,1CAHD,IE900/6710/S143324,143324-161116,C1054507,625.00,CAHA
715,Revenue,CAHD,South Glos Users in South Glos Homes,Permanent Nursing,Beaufort Grange Care Home,625.00, 22-Nov-2016,,,,,,,,,,,,,,,,,,,,,,,,,,,,,,,,,,,,,C35759,"., Hatton Road, ., Bristol, BS16 1AH",IE900,1CAHD,IE900/6710/S145280,145280-161116,C1054508,625.00,CAHA
716,Revenue,CAHD,South Glos Users in South Glos Homes,Permanent Nursing,Beaufort Grange Care Home,625.00, 22-Nov-2016,,,,,,,,,,,,,,,,,,,,,,,,,,,,,,,,,,,,,C35759,"., Hatton Road, ., Bristol, BS16 1AH",IE900,1CAHD,IE900/6710/S145528,145528-161116,C1054509,625.00,CAHA
717,Revenue,CAHD,South Glos Users in South Glos Homes,Permanent Nursing,Beaufort Grange Care Home,625.00, 22-Nov-2016,,,,,,,,,,,,,,,,,,,,,,,,,,,,,,,,,,,,,C35759,"., Hatton Road, ., Bristol, BS16 1AH",IE900,1CAHD,IE900/6710/S145609,145609-161116,C1054510,625.00,CAHA
718,Revenue,CAHD,Bed Purchasing - Elderly S117- North,Permanent Nursing,Beaufort Grange Care Home,4411.20, 22-Nov-2016,,,,,,,,,,,,,,,,,,,,,,,,,,,,,,,,,,,,,C35759,"., Hatton Road, ., Bristol, BS16 1AH",IN337,1CAHD,IN337/6710/S145896,145896-161116,C1054494,4411.20,CAHA
719,Revenue,CAHD,South Glos Users in South Glos Homes,Permanent Nursing,Beaufort Grange Care Home,625.00, 22-Nov-2016,,,,,,,,,,,,,,,,,,,,,,,,,,,,,,,,,,,,,C35759,"., Hatton Road, ., Bristol, BS16 1AH",IE900,1CAHD,IE900/6710/S145896,145896-161116,C1054511,625.00,CAHA
720,Revenue,CAHD,South Glos Users in South Glos Homes,Permanent Nursing,Beaufort Grange Care Home,625.00, 22-Nov-2016,,,,,,,,,,,,,,,,,,,,,,,,,,,,,,,,,,,,,C35759,"., Hatton Road, ., Bristol, BS16 1AH",IE900,1CAHD,IE900/6710/S145979,145979-161116,C1054512,625.00,CAHA
